Workbook

Sheet Listas (hidden)
A1: GRUPO A | C1: Horária verde
A2: OPTANTE B | C2: Horária azul
C3: Optante B
A6: Subestação aérea | F6: Jan | G6: 2025
A7: Subestação aérea p/ canteiro de obras | F7: Fev | G7: 2026
F8: Mar | G8: 2027
F9: Abr | G9: 2028
A10: Pessoa Física | D10: CPF: | F10: Mai | G10: 2029
A11: Poder Público | D11: CNPJ: | F11: Jun | G11: 2030
A12: Empresa Privada | F12: Jul | G12: 2031
F13: Ago | G13: 2032
A14: TO | C14: Não possui | D14: 1 | F14: Set | G14: 2033
D15: 2 | F15: Out | G15: 2034
D16: 18 | F16: Nov | G16: 2035
D17: 19 | F17: Dez | G17: 2036
A18: Urbana | D18: 20 | G18: 2037
A19: Rural | D19: 21 | G19: 2038
D20: 22 | G20: 2039
A21: Sim | D21: 23 | G21: 2040
A22: Não | D22: 24 | G22: 2041
D23: 25 | G23: 2042
A24: Nº da UC | C24: Nº da UC (Que será desligada) | G24: 2043
A25: Nº do Medidor | C25: Nº do Medidor (Que será desligado) | G25: 2044
G26: 2045
G27: 2046
A28: CREA | G28: 2047
A29: CFT | G29: 2048
A30: Outros | G30: 2049
G31: 2050
A32: Sim - Geração Isolada
A33: Sim - Geração com paralelismo momentâneo
A34: Não - Sem Gerador
A36: Critério de cálculo de demanda por Carga Instalada (prevista e/ou existente) - NDU 001
A37: Critério de cálculo de demanda por Ramo de atividade - NDU 002

Sheet LISTA CIDADES (hidden)
A1: AC | B1: MG | C1: MS | D1: MT | E1: PB | F1: PR | G1: RJ | H1: RO | I1: SE | J1: SP | K1: TO
A2: Acrelândia | B2: Abadia Dos Dourados | C2: Água Clara | D2: Acorizal | E2: Água Branca | F2: Guarapuava | G2: Angra Dos Reis | H2: Alta Floresta D´oeste | I2: Amparo de São Francisco | J2: Adamantina | K2: Abreulândia
A3: Assis Brasil | B3: Abaeté | C3: Alcinópolis | D3: Água Boa | E3: Aguiar | G3: Aperibé | H3: Ariquemes | I3: Aquidabã | J3: Adolfo | K3: Aguiarnópolis
A4: Brasiléia | B4: Abre Campo | C4: Amambaí | D4: Alta Floresta | E4: Alagoa Grande | G4: Araruama | H4: Cabixi | I4: Aracaju | J4: Aguaí | K4: Aliança do Tocantins
A5: Bujari | B5: Acaiaca | C5: Anastácio | D5: Alto Araguaia | E5: Alagoa Nova | G5: Areal | H5: Cacoal | I5: Arauá | J5: Águas da Prata | K5: Almas
A6: Capixaba | B6: Açucena | C6: Anaurilândia | D6: Alto Boa Vista | E6: Alagoinha | G6: Armação Dos Búzios | H6: Cerejeiras | I6: Areia Branca | J6: Águas de Lindóia | K6: Alvorada
A7: Cruzeiro do Sul | B7: Água Boa | C7: Angélica | D7: Alto Garças | E7: Alcantil | G7: Arraial do Cabo | H7: Colorado do Oeste | I7: Barra Dos Coqueiros | J7: Águas de Santa Bárbara | K7: Ananás
A8: Epitaciolândia | B8: Água Comprida | C8: Antônio João | D8: Alto Paraguai | E8: Algodão de Jandaíra | G8: Barra do Piraí | H8: Corumbiara | I8: Boquim | J8: Águas de São Pedro | K8: Angico
A9: Feijó | B9: Aguanil | C9: Aparecida do Taboado | D9: Alto Taquari | E9: Alhandra | G9: Barra Mansa | H9: Costa Marques | I9: Brejo Grande | J9: Agudos | K9: Aparecida do Rio Negro
A10: Jordão | B10: Águas Formosas | C10: Aquidauana | D10: Apiacás | E10: São João do Rio do Peixe | G10: Belford Roxo | H10: Espigão D´oeste | I10: Campo do Brito | J10: Alambari | K10: Aragominas
A11: Mâncio Lima | B11: Águas Vermelhas | C11: Aral Moreira | D11: Araguaiana | E11: Amparo | G11: Bom Jardim | H11: Guajará-mirim | I11: Canhoba | J11: Alfredo Marcondes | K11: Araguacema
A12: Manoel Urbano | B12: Aimorés | C12: Bandeirantes | D12: Araguainha | E12: Aparecida | G12: Bom Jesus do Itabapoana | H12: Jaru | I12: Canindé de São Francisco | J12: Altair | K12: Araguaçu
A13: Marechal Thaumaturgo | B13: Aiuruoca | C13: Bataguassu | D13: Araputanga | E13: Araçagi | G13: Cabo Frio | H13: Ji-paraná | I13: Capela | J13: Altinópolis | K13: Araguaína
A14: Plácido de Castro | B14: Alagoa | C14: Batayporã | D14: Arenápolis | E14: Arara | G14: Cachoeiras de Macacu | H14: Machadinho D´oeste | I14: Carira | J14: Alto Alegre | K14: Araguanã
A15: Porto Walter | B15: Albertina | C15: Bela Vista | D15: Aripuanã | E15: Araruna | G15: Cambuci | H15: Nova Brasilândia D´oeste | I15: Carmópolis | J15: Alumínio | K15: Araguatins
A16: Rio Branco | B16: Além Paraíba | C16: Bodoquena | D16: Barão de Melgaço | E16: Areia | G16: Carapebus | H16: Ouro Preto do Oeste | I16: Cedro de São João | J16: Álvares Florence | K16: Arapoema
A17: Rodrigues Alves | B17: Alfenas | C17: Bonito | D17: Barra do Bugres | E17: Areia de Baraúnas | G17: Comendador Levy Gasparian | H17: Pimenta Bueno | I17: Cristinápolis | J17: Álvares Machado | K17: Arraias
A18: Santa Rosa do Purus | B18: Alfredo Vasconcelos | C18: Brasilândia | D18: Barra do Garças | E18: Areial | G18: Campos Dos Goytacazes | H18: Porto Velho | I18: Cumbe | J18: Álvaro de Carvalho | K18: Augustinópolis
A19: Senador Guiomard | B19: Almenara | C19: Caarapó | D19: Bom Jesus do Araguaia | E19: Aroeiras | G19: Cantagalo | H19: Presidente Médici | I19: Divina Pastora | J19: Alvinlândia | K19: Aurora do Tocantins
A20: Sena Madureira | B20: Alpercata | C20: Camapuã | D20: Brasnorte | E20: Assunção | G20: Cardoso Moreira | H20: Rio Crespo | I20: Estância | J20: Americana | K20: Axixá do Tocantins
A21: Tarauacá | B21: Alpinópolis | C21: Campo Grande | D21: Cáceres | E21: Baía da Traição | G21: Carmo | H21: Rolim de Moura | I21: Feira Nova | J21: Américo Brasiliense | K21: Babaçulândia
A22: Xapuri | B22: Alterosa | C22: Caracol | D22: Campinápolis | E22: Bananeiras | G22: Casimiro de Abreu | H22: Santa Luzia D´oeste | I22: Frei Paulo | J22: Américo de Campos | K22: Bandeirantes do Tocantins
A23: Porto Acre | B23: Alto Caparaó | C23: Cassilândia | D23: Campo Novo do Parecis | E23: Baraúna | G23: Conceição de Macabu | H23: Vilhena | I23: Gararu | J23: Amparo | K23: Barra do Ouro
B24: Alto Rio Doce | C24: Chapadão do Sul | D24: Campo Verde | E24: Barra de Santana | G24: Cordeiro | H24: São Miguel do Guaporé | I24: General Maynard | J24: Analândia | K24: Barrolândia
B25: Alvarenga | C25: Corguinho | D25: Campos de Júlio | E25: Barra de Santa Rosa | G25: Duas Barras | H25: Nova Mamoré | I25: Gracho Cardoso | J25: Andradina | K25: Bernardo Sayão
B26: Alvinópolis | C26: Coronel Sapucaia | D26: Canabrava do Norte | E26: Barra de São Miguel | G26: Duque de Caxias | H26: Alvorada D´oeste | I26: Ilha Das Flores | J26: Angatuba | K26: Bom Jesus do Tocantins
B27: Alvorada de Minas | C27: Corumbá | D27: Canarana | E27: Bayeux | G27: Engenheiro Paulo de Frontin | H27: Alto Alegre Dos Parecis | I27: Indiaroba | J27: Anhembi | K27: Brasilândia do Tocantins
B28: Amparo do Serra | C28: Costa Rica | D28: Carlinda | E28: Belém | G28: Guapimirim | H28: Alto Paraíso | I28: Itabaiana | J28: Anhumas | K28: Brejinho de Nazaré
B29: Andradas | C29: Coxim | D29: Castanheira | E29: Belém do Brejo do Cruz | G29: Iguaba Grande | H29: Buritis | I29: Itabaianinha | J29: Aparecida | K29: Buriti do Tocantins
B30: Cachoeira de Pajeú | C30: Deodápolis | D30: Chapada Dos Guimarães | E30: Bernardino Batista | G30: Itaboraí | H30: Novo Horizonte do Oeste | I30: Itabi | J30: Aparecida D´oeste | K30: Cachoeirinha
B31: Andrelândia | C31: Dois Irmãos do Buriti | D31: Cláudia | E31: Boa Ventura | G31: Itaguaí | H31: Cacaulândia | I31: Itaporanga D´ajuda | J31: Apiaí | K31: Campos Lindos
B32: Angelândia | C32: Douradina | D32: Cocalinho | E32: Boa Vista | G32: Italva | H32: Campo Novo de Rondônia | I32: Japaratuba | J32: Araçariguama | K32: Cariri do Tocantins
B33: Antônio Carlos | C33: Dourados | D33: Colíder | E33: Bom Jesus | G33: Itaocara | H33: Candeias do Jamari | I33: Japoatã | J33: Araçatuba | K33: Carmolândia
B34: Antônio Dias | C34: Eldorado | D34: Colniza | E34: Bom Sucesso | G34: Itaperuna | H34: Castanheiras | I34: Lagarto | J34: Araçoiaba da Serra | K34: Carrasco Bonito
B35: Antônio Prado de Minas | C35: Fátima do Sul | D35: Comodoro | E35: Bonito de Santa fé | G35: Itatiaia | H35: Chupinguaia | I35: Laranjeiras | J35: Aramina | K35: Caseara
B36: Araçaí | C36: Figueirão | D36: Confresa | E36: Boqueirão | G36: Japeri | H36: Cujubim | I36: Macambira | J36: Arandu | K36: Centenário
B37: Aracitaba | C37: Glória de Dourados | D37: Conquista D´oeste | E37: Igaracy | G37: Laje do Muriaé | H37: Governador Jorge Teixeira | I37: Malhada Dos Bois | J37: Arapeí | K37: Chapada de Areia
B38: Araçuaí | C38: Guia Lopes da Laguna | D38: Cotriguaçu | E38: Borborema | G38: Macaé | H38: Itapuã do Oeste | I38: Malhador | J38: Araraquara | K38: Chapada da Natividade
B39: Araguari | C39: Iguatemi | D39: Cuiabá | E39: Brejo do Cruz | G39: Macuco | H39: Ministro Andreazza | I39: Maruim | J39: Araras | K39: Colinas do Tocantins
B40: Arantina | C40: Inocência | D40: Curvelândia | E40: Brejo Dos Santos | G40: Magé | H40: Mirante da Serra | I40: Moita Bonita | J40: Arco-íris | K40: Combinado
B41: Araponga | C41: Itaporã | D41: Denise | E41: Caaporã | G41: Mangaratiba | H41: Monte Negro | I41: Monte Alegre de Sergipe | J41: Arealva | K41: Conceição do Tocantins
B42: Araporã | C42: Itaquiraí | D42: Diamantino | E42: Cabaceiras | G42: Maricá | H42: Nova União | I42: Muribeca | J42: Areias | K42: Couto de Magalhães
B43: Arapuá | C43: Ivinhema | D43: Dom Aquino | E43: Cabedelo | G43: Mendes | H43: Parecis | I43: Neópolis | J43: Areiópolis | K43: Cristalândia
B44: Araújos | C44: Japorã | D44: Feliz Natal | E44: Cachoeira Dos Índios | G44: Mesquita | H44: Pimenteiras do Oeste | I44: Nossa Senhora Aparecida | J44: Ariranha | K44: Crixás do Tocantins
B45: Araxá | C45: Jaraguari | D45: Figueirópolis D´oeste | E45: Cacimba de Areia | G45: Miguel Pereira | H45: Primavera de Rondônia | I45: Nossa Senhora da Glória | J45: Artur Nogueira | K45: Darcinópolis
B46: Arceburgo | C46: Jardim | D46: Gaúcha do Norte | E46: Cacimba de Dentro | G46: Miracema | H46: São Felipe D´oeste | I46: Nossa Senhora Das Dores | J46: Arujá | K46: Dianópolis
B47: Arcos | C47: Jateí | D47: General Carneiro | E47: Cacimbas | G47: Natividade | H47: São Francisco do Guaporé | I47: Nossa Senhora de Lourdes | J47: Aspásia | K47: Divinópolis do Tocantins
B48: Areado | C48: Juti | D48: Glória D´oeste | E48: Caiçara | G48: Nilópolis | H48: Seringueiras | I48: Nossa Senhora do Socorro | J48: Assis | K48: Dois Irmãos do Tocantins
B49: Argirita | C49: Ladário | D49: Guarantã do Norte | E49: Cajazeiras | G49: Niterói | H49: Teixeirópolis | I49: Pacatuba | J49: Atibaia | K49: Dueré
B50: Aricanduva | C50: Laguna Carapã | D50: Guiratinga | E50: Cajazeirinhas | G50: Nova Friburgo | H50: Theobroma | I50: Pedra Mole | J50: Auriflama | K50: Esperantina
B51: Arinos | C51: Maracaju | D51: Indiavaí | E51: Caldas Brandão | G51: Nova Iguaçu | H51: Urupá | I51: Pedrinhas | J51: Avaí | K51: Fátima
B52: Astolfo Dutra | C52: Miranda | D52: Ipiranga do Norte | E52: Camalaú | G52: Paracambi | H52: Vale do Anari | I52: Pinhão | J52: Avanhandava | K52: Figueirópolis
B53: Ataléia | C53: Mundo Novo | D53: Itanhangá | E53: Campina Grande | G53: Paraíba do Sul | H53: Vale do Paraíso | I53: Pirambu | J53: Avaré | K53: Filadélfia
B54: Augusto de Lima | C54: Naviraí | D54: Itaúba | E54: Capim | G54: Parati | I54: Poço Redondo | J54: Bady Bassitt | K54: Formoso do Araguaia
B55: Baependi | C55: Nioaque | D55: Itiquira | E55: Caraúbas | G55: Paty do Alferes | I55: Poço Verde | J55: Balbinos | K55: Fortaleza do Tabocão
B56: Baldim | C56: Nova Alvorada do Sul | D56: Jaciara | E56: Carrapateira | G56: Petrópolis | I56: Porto da Folha | J56: Bálsamo | K56: Goianorte
B57: Bambuí | C57: Nova Andradina | D57: Jangada | E57: Casserengue | G57: Pinheiral | I57: Propriá | J57: Bananal | K57: Goiatins
B58: Bandeira | C58: Novo Horizonte do Sul | D58: Jauru | E58: Catingueira | G58: Piraí | I58: Riachão do Dantas | J58: Barão de Antonina | K58: Guaraí
B59: Bandeira do Sul | C59: Paraíso das Águas | D59: Juara | E59: Catolé do Rocha | G59: Porciúncula | I59: Riachuelo | J59: Barbosa | K59: Gurupi
B60: Barão de Cocais | C60: Paranaíba | D60: Juína | E60: Caturité | G60: Porto Real | I60: Ribeirópolis | J60: Bariri | K60: Ipueiras
B61: Barão de Monte Alto | C61: Paranhos | D61: Juruena | E61: Conceição | G61: Quatis | I61: Rosário do Catete | J61: Barra Bonita | K61: Itacajá
B62: Barbacena | C62: Pedro Gomes | D62: Juscimeira | E62: Condado | G62: Queimados | I62: Salgado | J62: Barra do Chapéu | K62: Itaguatins
B63: Barra Longa | C63: Ponta Porã | D63: Lambari D´oeste | E63: Conde | G63: Quissamã | I63: Santa Luzia do Itanhy | J63: Barra do Turvo | K63: Itapiratins
B64: Barroso | C64: Porto Murtinho | D64: Lucas do Rio Verde | E64: Congo | G64: Resende | I64: Santana do São Francisco | J64: Barretos | K64: Itaporã do Tocantins
B65: Bela Vista de Minas | C65: Ribas do Rio Pardo | D65: Luciára | E65: Coremas | G65: Rio Bonito | I65: Santa Rosa de Lima | J65: Barrinha | K65: Jaú do Tocantins
B66: Belmiro Braga | C66: Rio Brilhante | D66: Vila Bela da Santíssima Trindade | E66: Coxixola | G66: Rio Claro | I66: Santo Amaro Das Brotas | J66: Barueri | K66: Juarina
B67: Belo Horizonte | C67: Rio Negro | D67: Marcelândia | E67: Cruz do Espírito Santo | G67: Rio Das Flores | I67: São Cristóvão | J67: Bastos | K67: Lagoa da Confusão
B68: Belo Oriente | C68: Rio Verde de Mato Grosso | D68: Matupá | E68: Cubati | G68: Rio Das Ostras | I68: São Domingos | J68: Batatais | K68: Lagoa do Tocantins
B69: Belo Vale | C69: Rochedo | D69: Mirassol D´oeste | E69: Cuité | G69: Rio de Janeiro | I69: São Francisco | J69: Bauru | K69: Lajeado
B70: Berilo | C70: Santa Rita do Pardo | D70: Nobres | E70: Cuitegi | G70: Santa Maria Madalena | I70: São Miguel do Aleixo | J70: Bebedouro | K70: Lavandeira
B71: Bertópolis | C71: São Gabriel do Oeste | D71: Nortelândia | E71: Cuité de Mamanguape | G71: Santo Antônio de Pádua | I71: Simão Dias | J71: Bento de Abreu | K71: Lizarda
B72: Berizal | C72: Sete Quedas | D72: Nossa Senhora do Livramento | E72: Curral de Cima | G72: São Francisco de Itabapoana | I72: Siriri | J72: Bernardino de Campos | K72: Luzinópolis
B73: Betim | C73: Selvíria | D73: Nova Bandeirantes | E73: Curral Velho | G73: São Fidélis | I73: Telha | J73: Bertioga | K73: Marianópolis do Tocantins
B74: Bias Fortes | C74: Sidrolândia | D74: Nova Nazaré | E74: Damião | G74: São Gonçalo | I74: Tobias Barreto | J74: Bilac | K74: Mateiros
B75: Bicas | C75: Sonora | D75: Nova Lacerda | E75: Desterro | G75: São João da Barra | I75: Tomar do Geru | J75: Birigui | K75: Maurilândia do Tocantins
B76: Biquinhas | C76: Tacuru | D76: Nova Santa Helena | E76: Vista Serrana | G76: São João de Meriti | I76: Umbaúba | J76: Biritiba-mirim | K76: Miracema do Tocantins
B77: Boa Esperança | C77: Taquarussu | D77: Nova Brasilândia | E77: Diamante | G77: São José de Ubá | J77: Boa Esperança do Sul | K77: Miranorte
B78: Bocaina de Minas | C78: Terenos | D78: Nova Canaã do Norte | E78: Dona Inês | G78: São José do Vale do Rio Preto | J78: Bocaina | K78: Monte do Carmo
B79: Bocaiúva | C79: Três Lagoas | D79: Nova Mutum | E79: Duas Estradas | G79: São Pedro da Aldeia | J79: Bofete | K79: Monte Santo do Tocantins
B80: Bom Despacho | C80: Vicentina | D80: Nova Olímpia | E80: Emas | G80: São Sebastião do Alto | J80: Boituva | K80: Palmeiras do Tocantins
B81: Bom Jardim de Minas | D81: Nova Ubiratã | E81: Esperança | G81: Sapucaia | J81: Bom Jesus Dos Perdões | K81: Muricilândia
B82: Bom Jesus da Penha | D82: Nova Xavantina | E82: Fagundes | G82: Saquarema | J82: Bom Sucesso de Itararé | K82: Natividade
B83: Bom Jesus do Amparo | D83: Novo Mundo | E83: Frei Martinho | G83: Seropédica | J83: Borá | K83: Nazaré
B84: Bom Jesus do Galho | D84: Novo Horizonte do Norte | E84: Gado Bravo | G84: Silva Jardim | J84: Boracéia | K84: Nova Olinda
B85: Bom Repouso | D85: Novo São Joaquim | E85: Guarabira | G85: Sumidouro | J85: Borborema | K85: Nova Rosalândia
B86: Bom Sucesso | D86: Paranaíta | E86: Gurinhém | G86: Tanguá | J86: Borebi | K86: Novo Acordo
B87: Bonfim | D87: Paranatinga | E87: Gurjão | G87: Teresópolis | J87: Botucatu | K87: Novo Alegre
B88: Bonfinópolis de Minas | D88: Novo Santo Antônio | E88: Ibiara | G88: Trajano de Morais | J88: Bragança Paulista | K88: Novo Jardim
B89: Bonito de Minas | D89: Pedra Preta | E89: Imaculada | G89: Três Rios | J89: Braúna | K89: Oliveira de Fátima
B90: Borda da Mata | D90: Peixoto de Azevedo | E90: Ingá | G90: Valença | J90: Brejo Alegre | K90: Palmeirante
B91: Botelhos | D91: Planalto da Serra | E91: Itabaiana | G91: Varre-sai | J91: Brodowski | K91: Palmeirópolis
B92: Botumirim | D92: Poconé | E92: Itaporanga | G92: Vassouras | J92: Brotas | K92: Paraíso do Tocantins
B93: Brasilândia de Minas | D93: Pontal do Araguaia | E93: Itapororoca | G93: Volta Redonda | J93: Buri | K93: Paranã
B94: Brasília de Minas | D94: Ponte Branca | E94: Itatuba | J94: Buritama | K94: Pau D´arco
B95: Brás Pires | D95: Pontes e Lacerda | E95: Jacaraú | J95: Buritizal | K95: Pedro Afonso
B96: Braúnas | D96: Porto Alegre do Norte | E96: Jericó | J96: Cabrália Paulista | K96: Peixe
B97: Brasópolis | D97: Porto Dos Gaúchos | E97: João Pessoa | J97: Cabreúva | K97: Pequizeiro
B98: Brumadinho | D98: Porto Esperidião | E98: Juarez Távora | J98: Caçapava | K98: Colméia
B99: Bueno Brandão | D99: Porto Estrela | E99: Juazeirinho | J99: Cachoeira Paulista | K99: Pindorama do Tocantins
B100: Buenópolis | D100: Poxoréo | E100: Junco do Seridó | J100: Caconde | K100: Piraquê
B101: Bugre | D101: Primavera do Leste | E101: Juripiranga | J101: Cafelândia | K101: Pium
B102: Buritis | D102: Querência | E102: Juru | J102: Caiabu | K102: Ponte Alta do Bom Jesus
B103: Buritizeiro | D103: São José Dos Quatro Marcos | E103: Lagoa | J103: Caieiras | K103: Ponte Alta do Tocantins
B104: Cabeceira Grande | D104: Reserva do Cabaçal | E104: Lagoa de Dentro | J104: Caiuá | K104: Porto Alegre do Tocantins
B105: Cabo Verde | D105: Ribeirão Cascalheira | E105: Lagoa Seca | J105: Cajamar | K105: Porto Nacional
B106: Cachoeira da Prata | D106: Ribeirãozinho | E106: Lastro | J106: Cajati | K106: Praia Norte
B107: Cachoeira de Minas | D107: Rio Branco | E107: Livramento | J107: Cajobi | K107: Presidente Kennedy
B108: Cachoeira Dourada | D108: Santa Carmem | E108: Logradouro | J108: Cajuru | K108: Pugmil
B109: Caetanópolis | D109: Santo Afonso | E109: Lucena | J109: Campina do Monte Alegre | K109: Recursolândia
B110: Caeté | D110: São José do Povo | E110: Mãe D´água | J110: Campinas | K110: Riachinho
B111: Caiana | D111: São José do Rio Claro | E111: Malta | J111: Campo Limpo Paulista | K111: Rio da Conceição
B112: Cajuri | D112: São José do Xingu | E112: Mamanguape | J112: Campos do Jordão | K112: Rio Dos Bois
B113: Caldas | D113: São Pedro da Cipa | E113: Manaíra | J113: Campos Novos Paulista | K113: Rio Sono
B114: Camacho | D114: Rondolândia | E114: Marcação | J114: Cananéia | K114: Sampaio
B115: Camanducaia | D115: Rondonópolis | E115: Mari | J115: Canas | K115: Sandolândia
B116: Cambuí | D116: Rosário Oeste | E116: Marizópolis | J116: Cândido Mota | K116: Santa fé do Araguaia
B117: Cambuquira | D117: Santa Cruz do Xingu | E117: Massaranduba | J117: Cândido Rodrigues | K117: Santa Maria do Tocantins
B118: Campanário | D118: Salto do Céu | E118: Mataraca | J118: Canitar | K118: Santa Rita do Tocantins
B119: Campanha | D119: Santa Rita do Trivelato | E119: Matinhas | J119: Capão Bonito | K119: Santa Rosa do Tocantins
B120: Campestre | D120: Santa Terezinha | E120: Mato Grosso | J120: Capela do Alto | K120: Santa Tereza do Tocantins
B121: Campina Verde | D121: Santo Antônio do Leste | E121: Maturéia | J121: Capivari | K121: Santa Terezinha do Tocantins
B122: Campo Azul | D122: Santo Antônio do Leverger | E122: Mogeiro | J122: Caraguatatuba | K122: São Bento do Tocantins
B123: Campo Belo | D123: São Félix do Araguaia | E123: Montadas | J123: Carapicuíba | K123: São Félix do Tocantins
B124: Campo do Meio | D124: Sapezal | E124: Monte Horebe | J124: Cardoso | K124: São Miguel do Tocantins
B125: Campo Florido | D125: Serra Nova Dourada | E125: Monteiro | J125: Casa Branca | K125: São Salvador do Tocantins
B126: Campos Altos | D126: Sinop | E126: Mulungu | J126: Cássia Dos Coqueiros | K126: São Sebastião do Tocantins
B127: Campos Gerais | D127: Sorriso | E127: Natuba | J127: Castilho | K127: São Valério da Natividade
B128: Canaã | D128: Tabaporã | E128: Nazarezinho | J128: Catanduva | K128: Silvanópolis
B129: Canápolis | D129: Tangará da Serra | E129: Nova Floresta | J129: Catiguá | K129: Sítio Novo do Tocantins
B130: Cana Verde | D130: Tapurah | E130: Nova Olinda | J130: Cedral | K130: Sucupira
B131: Candeias | D131: Terra Nova do Norte | E131: Nova Palmeira | J131: Cerqueira César | K131: Taguatinga
B132: Cantagalo | D132: Tesouro | E132: Olho D´água | J132: Cerquilho | K132: Taipas do Tocantins
B133: Caparaó | D133: Torixoréu | E133: Olivedos | J133: Cesário Lange | K133: Talismã
B134: Capela Nova | D134: União do Sul | E134: Ouro Velho | J134: Charqueada | K134: Palmas
B135: Capelinha | D135: Vale de São Domingos | E135: Parari | J135: Clementina | K135: Tocantínia
B136: Capetinga | D136: Várzea Grande | E136: Passagem | J136: Colina | K136: Tocantinópolis
B137: Capim Branco | D137: Vera | E137: Patos | J137: Colômbia | K137: Tupirama
B138: Capinópolis | D138: Vila Rica | E138: Paulista | J138: Conchal | K138: Tupiratins
B139: Capitão Andrade | D139: Nova Guarita | E139: Pedra Branca | J139: Conchas | K139: Wanderlândia
B140: Capitão Enéas | D140: Nova Marilândia | E140: Pedra Lavrada | J140: Cordeirópolis | K140: Xambioá
B141: Capitólio | D141: Nova Maringá | E141: Pedras de Fogo | J141: Coroados
B142: Caputira | D142: Nova Monte Verde | E142: Piancó | J142: Coronel Macedo
B143: Caraí | E143: Picuí | J143: Corumbataí
B144: Caranaíba | E144: Pilar | J144: Cosmópolis
B145: Carandaí | E145: Pilões | J145: Cosmorama
B146: Carangola | E146: Pilõezinhos | J146: Cotia
B147: Caratinga | E147: Pirpirituba | J147: Cravinhos
B148: Carbonita | E148: Pitimbu | J148: Cristais Paulista
B149: Careaçu | E149: Pocinhos | J149: Cruzália
B150: Carlos Chagas | E150: Poço Dantas | J150: Cruzeiro
B151: Carmésia | E151: Poço de José de Moura | J151: Cubatão
B152: Carmo da Cachoeira | E152: Pombal | J152: Cunha
B153: Carmo da Mata | E153: Prata | J153: Descalvado
B154: Carmo de Minas | E154: Princesa Isabel | J154: Diadema
B155: Carmo do Cajuru | E155: Puxinanã | J155: Dirce Reis
B156: Carmo do Paranaíba | E156: Queimadas | J156: Divinolândia
B157: Carmo do Rio Claro | E157: Quixabá | J157: Dobrada
B158: Carmópolis de Minas | E158: Remígio | J158: Dois Córregos
B159: Carneirinho | E159: Pedro Régis | J159: Dolcinópolis
B160: Carrancas | E160: Riachão | J160: Dourado
B161: Carvalhópolis | E161: Riachão do Bacamarte | J161: Dracena
B162: Carvalhos | E162: Riachão do Poço | J162: Duartina
B163: Casa Grande | E163: Riacho de Santo Antônio | J163: Dumont
B164: Cascalho Rico | E164: Riacho Dos Cavalos | J164: Echaporã
B165: Cássia | E165: Rio Tinto | J165: Eldorado
B166: Conceição da Barra de Minas | E166: Salgadinho | J166: Elias Fausto
B167: Cataguases | E167: Salgado de São Félix | J167: Elisiário
B168: Catas Altas | E168: Santa Cecília | J168: Embaúba
B169: Catas Altas da Noruega | E169: Santa Cruz | J169: Embu
B170: Catuji | E170: Santa Helena | J170: Embu-guaçu
B171: Catuti | E171: Santa Inês | J171: Emilianópolis
B172: Caxambu | E172: Santa Luzia | J172: Engenheiro Coelho
B173: Cedro do Abaeté | E173: Santana de Mangueira | J173: Espírito Santo do Pinhal
B174: Central de Minas | E174: Santana Dos Garrotes | J174: Espírito Santo do Turvo
B175: Centralina | E175: Santarém | J175: Estrela D´oeste
B176: Chácara | E176: Santa Rita | J176: Estrela do Norte
B177: Chalé | E177: Santa Teresinha | J177: Euclides da Cunha Paulista
B178: Chapada do Norte | E178: Santo André | J178: Fartura
B179: Chapada Gaúcha | E179: São Bento | J179: Fernandópolis
B180: Chiador | E180: São Bentinho | J180: Fernando Prestes
B181: Cipotânea | E181: São Domingos do Cariri | J181: Fernão
B182: Claraval | E182: São Domingos de Pombal | J182: Ferraz de Vasconcelos
B183: Claro Dos Poções | E183: São Francisco | J183: Flora Rica
B184: Cláudio | E184: São João do Cariri | J184: Floreal
B185: Coimbra | E185: São João do Tigre | J185: Flórida Paulista
B186: Coluna | E186: São José da Lagoa Tapada | J186: Florínia
B187: Comendador Gomes | E187: São José de Caiana | J187: Franca
B188: Comercinho | E188: São José de Espinharas | J188: Francisco Morato
B189: Conceição da Aparecida | E189: São José Dos Ramos | J189: Franco da Rocha
B190: Conceição Das Pedras | E190: São José de Piranhas | J190: Gabriel Monteiro
B191: Conceição Das Alagoas | E191: São José de Princesa | J191: Gália
B192: Conceição de Ipanema | E192: São José do Bonfim | J192: Garça
B193: Conceição do Mato Dentro | E193: São José do Brejo do Cruz | J193: Gastão Vidigal
B194: Conceição do Pará | E194: São José do Sabugi | J194: Gavião Peixoto
B195: Conceição do Rio Verde | E195: São José Dos Cordeiros | J195: General Salgado
B196: Conceição Dos Ouros | E196: São Mamede | J196: Getulina
B197: Cônego Marinho | E197: São Miguel de Taipu | J197: Glicério
B198: Confins | E198: São Sebastião de Lagoa de Roça | J198: Guaiçara
B199: Congonhal | E199: São Sebastião do Umbuzeiro | J199: Guaimbê
B200: Congonhas | E200: Sapé | J200: Guaíra
... 654 more rows

Sheet DADOS
C1: MEMORIAL DESCRITIVO DE SUBESTAÇÃO AÉREA (75 A 300 kVA)
A4: MEMORIAL
A5: TIPO DO PROJETO: | E5: PREVISÃO DE ATENDIMENTO
A6: OBJETIVO / OBSERVAÇÃO:
A8: DADOS DO PROPRIETÁRIO
A9: NOME: | N9: =_xlfn.CONCAT("PROJETO DE SE ÁEREA ", 'POSTO DE TRANSFORMAÇÃO'!D13:F14," KVA - ", DADOS!B9) -> PROJETO DE SE ÁEREA kVACÓDIGO DA PRANCHA PRÉ APROVADA: KVA -
A10: PESSOA: | E10: =IF(B10="","",IF(B10=Listas!A10,"CPF:","CNPJ:")) -> 
A11: ENDEREÇO:
A12: BAIRRO: | E12: ESTADO: | G12: CIDADE:
A13: EMAIL:
A14: CELULAR-01: | E14: CELULAR-02:
A15: TEL. FIXO-01: | E15: TEL. FIXO-02:
A16: DADOS DA OBRA
A17: COORDENADAS DO POSTO DE TRANSFORMAÇÃO EM UTM: FUSO: | F17: X: | H17: Y:
A18: ENDEREÇO: | G18: Zona:
A19: BAIRRO: | E19: ESTADO: | G19: CIDADE:
A20: SERÁ INSTALADO GERAÇÃO PRÓPRIA (GRUPO GERADOR)? | E20: =IF(D20="","",IF(D20=Listas!A32,"Obs.: Apresentar Termo de Geração isolada! (Apêndice E)",IF(D20=Listas!A33,"Obs.: Apresentar Termo de Geração em Regime de Paralelismo Momentâneo! (Apêndice D)","Obs.: Apresentar Termo de Não Geração (Apêndice F)"))) -> 
A21: POSSUI UNIDADE CONSUMIDORA (UC) EXISTENTE NO PONTO/EDIFICAÇÃO QUE DESEJA ATENDIMENTO? OBS.: Se sim e também for atendida por esse transformador, selecionar a opção "SIM", caso contrário selecionar "NÃO". | G21: QUANTAS UNIDADES EXISTENTES OU PREVISTAS? | L21: =IF(I21=2,"dois","um") -> um
A22: INFORMAÇÕES DAS UNIDADES EXISTENTES | G22: =IF(I21="","",IF(I21=2,"AS UC'S SERÃO UNIFICADAS?","")) -> 
A23: Nº da UC | D23: Nº da UC (Que será desligada) | G23: =IF(OR(I21="",I21="Não possui"),"",IF(I21=1,"Obs.: Informar o nº de UC ou medidor no primeiro campo de informações das unidades existentes",IF(AND(I21=2,L23="Sim"),"Obs.: Informar qual unidade será desligada no campo de observações e informar o nº de UC ou medidor nos campos de informações das unidades existentes","ATENÇÃO: Este memorial não se aplica a compartilhamento. Para seguir, apresentar memorial próprio para a tipologia compartilhamento."))) ->  | L23: =I22 -> 0
A24: TIPO DE CÁLCULO DE CARGA/DEMANDA
A26: RESUMO
A27: INSTALAÇÃO:
A28: ="Poste: 1 pc DT " & 'POSTO DE TRANSFORMAÇÃO'!D15&"/"&'POSTO DE TRANSFORMAÇÃO'!D16 -> Poste: 1 pc DT /
A29: ="Condutor MT:" &'POSTO DE TRANSFORMAÇÃO'!F7 &"m_3#"&'POSTO DE TRANSFORMAÇÃO'!I6 -> Condutor MT:m_3#
A30: ="Transformador: 1x" & IF('POSTO DE TRANSFORMAÇÃO'!D14="SIM",'POSTO DE TRANSFORMAÇÃO'!D13,'POSTO DE TRANSFORMAÇÃO'!H14) & "kVA - " & 'POSTO DE TRANSFORMAÇÃO'!D4 & " kV- " & 'POSTO DE TRANSFORMAÇÃO'!C9 & " - 60 HZ." -> Transformador: 1xkVA - kV- - 60 HZ.
A31: ="Estruturas Primárias: 1un. – " & IF('POSTO DE TRANSFORMAÇÃO'!G6="ALUMÍNIO NU","N3",IF('POSTO DE TRANSFORMAÇÃO'!G6="PROTEGIDO","CE3","")) & "-T" -> Estruturas Primárias: 1un. – -T
A32: DADOS DO RESPONSÁVEL TÉCNICO
A33: NOME:
A34: CPF: | E34: Nº DE REGISTRO PROFISSIONAL: | H34: ORGÃO:
A35: E-MAIL:
A36: CELULAR-01: | E36: CELULAR-02:
A37: TEL. FIXO-01: | E37: TEL. FIXO-02:
A38: DADOS DA EMPRESA RESPONSÁVEL POR PRESTAR O SERVIÇO
A39: EMPRESA:
A40: CNPJ:
A41: ESPAÇO DISPONÍVEL PARA ASSINATURA DO RESPONSÁVEL TÉCNICO E/OU APRESENTAR LOGO DA EMPRESA
A46: =A33&B33 -> NOME:
A47: =A34&B34 -> CPF:
A48: =E34& G34&" - "&I34 -> Nº DE REGISTRO PROFISSIONAL: -

Sheet CARGA INSTALADA_NDU 001 (hidden)
F1: RELAÇÃO DE CARGA INSTALADA - NDU 001 | P1: CÁLCULO DE DEMANDA | Z1: Hospital e Similares | AA1: P/ os Primeiro 50KW | AB1: P/ o que exceder de 50kW | AD1: Para os primeiros 50 kW considerar 40% e para o que exceder de 50 kW considerar 50% | AV1: TABELA 18 - Dimensionamento das categorias de atendimento - 380/220 V
P2: FINALIDADE: | Z2: Hotel e Similares | AA2: P/ os Primeiro 20KW | AB2: P/ o seguintes de 80kW | AC2: P/ o que exceder de 100kW | AD2: para os primeiros 20 kW considerar 50% para os seguintes 80KW considerado 40% e o que exceder 100kW considerar 30 | AP2: Monofásico | AS2: Categoria | AU2: Número de fios | AV2: Número de fases | AW2: Demanda | AX2: Carga instalada | AY2: Condutores | BF2: Aterramento | BH2: Disjuntor termomagnético | BI2: Eletroduto | BJ2: Poste | BL2: Pontalete | BM2: Tipo Caixa
F3: ITEM | G3: EQUIPAMENTOS | K3: POTÊNCIA (W) | L3: QUANT. | M3: TOTAL (W) | N3: CATEGORIA | O3: CV | P3: D1 - Demanda de iluminação e tomadas, calculada conforme fatores de demanda da Tabela 8 (NDU 003), em quilowatts (kW) | Z3: Escritório | AA3: P/ os Primeiro 20KW | AB3: P/ o que exceder de 20kW | AD3: Para os primeiros 20 kW considerar 86% para o que exceder 20kW considerar 70% | AN3: 70°C | AP3: Bifásico | AR3: Residêcia | AY3: Ramal de conexão (Al) | BB3: Ramal de entrada Embutido e Subterrâneo (Cobre) | BF3: Condutor aterramento | BG3: Haste para aterramento | BI3: Embutido ou subterrâneo | BJ3: Concreto duplo T | BK3: Aço galvanizado | CF3: kW | CH3: kVA
F4: 1 | M4: =IF(OR(K4="",L4=""),"",L4*K4) ->  | O4: =IF(OR(N4="D6 MONO",N4="D6 TRI"),_xlfn.XLOOKUP(K4,$AQ$93:$AQ$112,$AP$93:$AP$112,"",1,1),"") ->  | P4: Condição: | R4: =IFERROR(VLOOKUP($R$2,$Z$1:$AC$5,2,0),"") ->  | T4: =IFERROR(VLOOKUP($R$2,$Z$1:$AC$5,3,0),"") ->  | W4: =IFERROR(IF((VLOOKUP($R$2,$Z$1:$AC$5,4,0))=0,"",VLOOKUP($R$2,$Z$1:$AC$5,4,0)),"") ->  | Z4: Escola e Similares | AA4: P/ os Primeiro 12KW | AB4: P/ o que exceder de 12kW | AD4: Para os primeiros 12 kW considerar 86% para o que exceder 12 kW considerar 50% | AN4: 90°C | AP4: Trifásico | AR4: Salas comerciais | AY4: Condutor multiplex (fase) | AZ4: rico | BB4: Isolação PVC 70°C | BD4: XLPE/HEPR/EPR 90°C | CF4: =IF(N4="D6 MONO",L4*_xlfn.XLOOKUP(O4,$AP$64:$AP$74,CHOOSE(IF(L4=1,1,IF(L4=2,2,IF(AND(L4>=3,L4<=5),3,4))),$AW$64:$AW$74,$AX$64:$AX$74,$AY$64:$AY$74,$AZ$64:$AZ$74),"",0,1)*_xlfn.XLOOKUP(O4,$AP$64:$AP$74,$AS$64:$AS$74,"",0,1),IF(N4="D6 TRI",L4*_xlfn.XLOOKUP(O4,$BC$64:$BC$82,CHOOSE(IF(L4=1,1,IF(L4=2,2,IF(AND(L4>=3,L4<=5),3,4))),$BJ$64:$BJ$82,$BK$64:$BK$82,$BL$64:$BL$82,$BM$64:$BM$82),"",0,1)*_xlfn.XLOOKUP(O4,$BC$64:$BC$82,$BF$64:$BF$82,"",0,1))) -> FALSE | CH4: =IF(N4="D6 MONO",L4*_xlfn.XLOOKUP(O4,$AP$64:$AP$74,CHOOSE(IF(L4=1,1,IF(L4=2,2,IF(AND(L4>=3,L4<=5),3,4))),$AW$64:$AW$74,$AX$64:$AX$74,$AY$64:$AY$74,$AZ$64:$AZ$74),"",0,1),IF(N4="D6 TRI",L4*_xlfn.XLOOKUP(O4,$BC$64:$BC$82,CHOOSE(IF(L4=1,1,IF(L4=2,2,IF(AND(L4>=3,L4<=5),3,4))),$BJ$64:$BJ$82,$BK$64:$BK$82,$BL$64:$BL$82,$BM$64:$BM$82),"",0,1))) -> FALSE
F5: 2 | O5: =IF(OR(N5="D6 MONO",N5="D6 TRI"),_xlfn.XLOOKUP(K5,$AQ$93:$AQ$112,$AP$93:$AP$112,"",1,1),"") ->  | P5: Fator de Demanda: | R5: =IF(R2="","",VLOOKUP(R2,'CARGA INSTALADA_NDU 001'!A99:G113,2,0)) ->  | T5: =VLOOKUP(R2,'CARGA INSTALADA_NDU 001'!A99:G113,3,0) ->  | W5: =VLOOKUP(R2,'CARGA INSTALADA_NDU 001'!A44:G113,4,0) ->  | Z5: Quartel e Similares | AA5: P/ os Primeiro 15KW | AB5: P/ o que exceder de 15kW | AD5: Para os primeiros 15 kW considerar 100% para o que exceder 15 kW considerar 40% | AZ5: Condutor concênt (fase) | BA5: Condutor neutr | BB5: Condutor fase | BC5: Condutor neutro | BD5: Condutor fase | BE5: Condutor neutro | BN5: carga | BO5: demanda | BT5: =MATCH(TRUE,INDIRECT(BU5),0) ->  | BU5: =IF(BR6="Monofásico","BR7:BR9",IF(BR6="Bifásico","BR10:BR12",IF(BR6="Trifásico","BR13:BR17",""))) ->  | CF5: =IF(N5="D6 MONO",L5*_xlfn.XLOOKUP(O5,$AP$64:$AP$74,CHOOSE(IF(L5=1,1,IF(L5=2,2,IF(AND(L5>=3,L5<=5),3,4))),$AW$64:$AW$74,$AX$64:$AX$74,$AY$64:$AY$74,$AZ$64:$AZ$74),"",0,1)*_xlfn.XLOOKUP(O5,$AP$64:$AP$74,$AS$64:$AS$74,"",0,1),IF(N5="D6 TRI",L5*_xlfn.XLOOKUP(O5,$BC$64:$BC$82,CHOOSE(IF(L5=1,1,IF(L5=2,2,IF(AND(L5>=3,L5<=5),3,4))),$BJ$64:$BJ$82,$BK$64:$BK$82,$BL$64:$BL$82,$BM$64:$BM$82),"",0,1)*_xlfn.XLOOKUP(O5,$BC$64:$BC$82,$BF$64:$BF$82,"",0,1))) -> FALSE | CH5: =IF(N5="D6 MONO",L5*_xlfn.XLOOKUP(O5,$AP$64:$AP$74,CHOOSE(IF(L5=1,1,IF(L5=2,2,IF(AND(L5>=3,L5<=5),3,4))),$AW$64:$AW$74,$AX$64:$AX$74,$AY$64:$AY$74,$AZ$64:$AZ$74),"",0,1),IF(N5="D6 TRI",L5*_xlfn.XLOOKUP(O5,$BC$64:$BC$82,CHOOSE(IF(L5=1,1,IF(L5=2,2,IF(AND(L5>=3,L5<=5),3,4))),$BJ$64:$BJ$82,$BK$64:$BK$82,$BL$64:$BL$82,$BM$64:$BM$82),"",0,1))) -> FALSE
F6: 3 | P6: Carga: | R6: =IFERROR(VLOOKUP('CARGA INSTALADA_NDU 001'!R2,'CARGA INSTALADA_NDU 001'!A99:E113,5,FALSE),"") ->  | S6: W | T6: =VLOOKUP(R2,'CARGA INSTALADA_NDU 001'!A99:G113,6,0) ->  | V6: W | W6: =VLOOKUP(R2,'CARGA INSTALADA_NDU 001'!A99:G113,7,0) ->  | X6: W | AP6: LISTA | AW6: (kVA) | AX6: (kW) | AY6: (mm²) | BF6: (mm²) | BH6: (A) | BI6: (pol) | BJ6: (daN) | BL6: (daN) | BN6: =F37 -> 0 | BO6: =H37 -> 0 | BR6: =J37 -> 0 | BU6: =IF(BR6="Monofásico","BN7:BR9",IF(BR6="Bifásico","BN10:BR12",IF(BR6="Trifásico","BN13:BR17",""))) ->  | BV6: =IF(F37>BQ17,"",INDEX(INDIRECT(BU6),BT5,1)) ->  | CF6: =IF(N6="D6 MONO",L6*_xlfn.XLOOKUP(O6,$AP$64:$AP$74,CHOOSE(IF(L6=1,1,IF(L6=2,2,IF(AND(L6>=3,L6<=5),3,4))),$AW$64:$AW$74,$AX$64:$AX$74,$AY$64:$AY$74,$AZ$64:$AZ$74),"",0,1)*_xlfn.XLOOKUP(O6,$AP$64:$AP$74,$AS$64:$AS$74,"",0,1),IF(N6="D6 TRI",L6*_xlfn.XLOOKUP(O6,$BC$64:$BC$82,CHOOSE(IF(L6=1,1,IF(L6=2,2,IF(AND(L6>=3,L6<=5),3,4))),$BJ$64:$BJ$82,$BK$64:$BK$82,$BL$64:$BL$82,$BM$64:$BM$82),"",0,1)*_xlfn.XLOOKUP(O6,$BC$64:$BC$82,$BF$64:$BF$82,"",0,1))) -> FALSE | CH6: =IF(N6="D6 MONO",L6*_xlfn.XLOOKUP(O6,$AP$64:$AP$74,CHOOSE(IF(L6=1,1,IF(L6=2,2,IF(AND(L6>=3,L6<=5),3,4))),$AW$64:$AW$74,$AX$64:$AX$74,$AY$64:$AY$74,$AZ$64:$AZ$74),"",0,1),IF(N6="D6 TRI",L6*_xlfn.XLOOKUP(O6,$BC$64:$BC$82,CHOOSE(IF(L6=1,1,IF(L6=2,2,IF(AND(L6>=3,L6<=5),3,4))),$BJ$64:$BJ$82,$BK$64:$BK$82,$BL$64:$BL$82,$BM$64:$BM$82),"",0,1))) -> FALSE
F7: 4 | P7: Demanda: | R7: =IF(R2="","",R6*R5+T6*T5+W6*W5) ->  | V7: W | AP7: 30 | AR7: M1 | AS7: Monofásico | AT7: M1 | AU7: 2 | AV7: 1 | AW7: - | AX7: 0 < C ≤ 6,0 | AY7: 10 | AZ7: 10 | BA7: 10 | BB7: 6 | BC7: 6 | BD7: 6 | BE7: 6 | BF7: 6 | BG7: 1H | BH7: 30/32 | BI7: 3/4" | BJ7: 100 | BK7: 90 | BL7: 75 | BM7: CMI-01 | BN7: =IF(AND($BN$6>BP7,$BN$6<=BQ7),AT7,0) -> 0 | BP7: 0 | BQ7: 6 | BR7: =AND($BN$6>BP7,$BN$6<=BQ7) -> FALSE | CF7: =IF(N7="D6 MONO",L7*_xlfn.XLOOKUP(O7,$AP$64:$AP$74,CHOOSE(IF(L7=1,1,IF(L7=2,2,IF(AND(L7>=3,L7<=5),3,4))),$AW$64:$AW$74,$AX$64:$AX$74,$AY$64:$AY$74,$AZ$64:$AZ$74),"",0,1)*_xlfn.XLOOKUP(O7,$AP$64:$AP$74,$AS$64:$AS$74,"",0,1),IF(N7="D6 TRI",L7*_xlfn.XLOOKUP(O7,$BC$64:$BC$82,CHOOSE(IF(L7=1,1,IF(L7=2,2,IF(AND(L7>=3,L7<=5),3,4))),$BJ$64:$BJ$82,$BK$64:$BK$82,$BL$64:$BL$82,$BM$64:$BM$82),"",0,1)*_xlfn.XLOOKUP(O7,$BC$64:$BC$82,$BF$64:$BF$82,"",0,1))) -> FALSE | CH7: =IF(N7="D6 MONO",L7*_xlfn.XLOOKUP(O7,$AP$64:$AP$74,CHOOSE(IF(L7=1,1,IF(L7=2,2,IF(AND(L7>=3,L7<=5),3,4))),$AW$64:$AW$74,$AX$64:$AX$74,$AY$64:$AY$74,$AZ$64:$AZ$74),"",0,1),IF(N7="D6 TRI",L7*_xlfn.XLOOKUP(O7,$BC$64:$BC$82,CHOOSE(IF(L7=1,1,IF(L7=2,2,IF(AND(L7>=3,L7<=5),3,4))),$BJ$64:$BJ$82,$BK$64:$BK$82,$BL$64:$BL$82,$BM$64:$BM$82),"",0,1))) -> FALSE
F8: 5 | P8: D2 - Demanda dos aparelhos para aquecimento de água (chuveiros, aquecedores, torneiras etc.), calculada conforme Tabela 9 (NDU 003), em quilowatts (kW) | AR8: 30 | AT8: M2 | AV8: 1 | AW8: - | AX8: 6,0 < C ≤ 11,0 | AY8: 10 | AZ8: 10 | BA8: 10 | BB8: 10 | BC8: 10 | BD8: 6 | BE8: 6 | BF8: 10 | BH8: 50 | BN8: 0 | BP8: 6 | BQ8: 11 | BR8: FALSE | CF8: =IF(N8="D6 MONO",L8*_xlfn.XLOOKUP(O8,$AP$64:$AP$74,CHOOSE(IF(L8=1,1,IF(L8=2,2,IF(AND(L8>=3,L8<=5),3,4))),$AW$64:$AW$74,$AX$64:$AX$74,$AY$64:$AY$74,$AZ$64:$AZ$74),"",0,1)*_xlfn.XLOOKUP(O8,$AP$64:$AP$74,$AS$64:$AS$74,"",0,1),IF(N8="D6 TRI",L8*_xlfn.XLOOKUP(O8,$BC$64:$BC$82,CHOOSE(IF(L8=1,1,IF(L8=2,2,IF(AND(L8>=3,L8<=5),3,4))),$BJ$64:$BJ$82,$BK$64:$BK$82,$BL$64:$BL$82,$BM$64:$BM$82),"",0,1)*_xlfn.XLOOKUP(O8,$BC$64:$BC$82,$BF$64:$BF$82,"",0,1))) -> FALSE | CH8: =IF(N8="D6 MONO",L8*_xlfn.XLOOKUP(O8,$AP$64:$AP$74,CHOOSE(IF(L8=1,1,IF(L8=2,2,IF(AND(L8>=3,L8<=5),3,4))),$AW$64:$AW$74,$AX$64:$AX$74,$AY$64:$AY$74,$AZ$64:$AZ$74),"",0,1),IF(N8="D6 TRI",L8*_xlfn.XLOOKUP(O8,$BC$64:$BC$82,CHOOSE(IF(L8=1,1,IF(L8=2,2,IF(AND(L8>=3,L8<=5),3,4))),$BJ$64:$BJ$82,$BK$64:$BK$82,$BL$64:$BL$82,$BM$64:$BM$82),"",0,1))) -> FALSE
F9: 6 | AR9: 32 | AT9: M3 | AV9: 1 | AW9: - | AX9: 11,0 < C ≤ 15,4 | AY9: 16 | AZ9: N.A. | BA9: 16 | BB9: 16 | BC9: 16 | BD9: 10 | BE9: 10 | BF9: 16 | BH9: 70 | BI9: 1" | BN9: 0 | BP9: 11 | BQ9: 15.4 | BR9: FALSE | CF9: =IF(N9="D6 MONO",L9*_xlfn.XLOOKUP(O9,$AP$64:$AP$74,CHOOSE(IF(L9=1,1,IF(L9=2,2,IF(AND(L9>=3,L9<=5),3,4))),$AW$64:$AW$74,$AX$64:$AX$74,$AY$64:$AY$74,$AZ$64:$AZ$74),"",0,1)*_xlfn.XLOOKUP(O9,$AP$64:$AP$74,$AS$64:$AS$74,"",0,1),IF(N9="D6 TRI",L9*_xlfn.XLOOKUP(O9,$BC$64:$BC$82,CHOOSE(IF(L9=1,1,IF(L9=2,2,IF(AND(L9>=3,L9<=5),3,4))),$BJ$64:$BJ$82,$BK$64:$BK$82,$BL$64:$BL$82,$BM$64:$BM$82),"",0,1)*_xlfn.XLOOKUP(O9,$BC$64:$BC$82,$BF$64:$BF$82,"",0,1))) -> FALSE | CH9: =IF(N9="D6 MONO",L9*_xlfn.XLOOKUP(O9,$AP$64:$AP$74,CHOOSE(IF(L9=1,1,IF(L9=2,2,IF(AND(L9>=3,L9<=5),3,4))),$AW$64:$AW$74,$AX$64:$AX$74,$AY$64:$AY$74,$AZ$64:$AZ$74),"",0,1),IF(N9="D6 TRI",L9*_xlfn.XLOOKUP(O9,$BC$64:$BC$82,CHOOSE(IF(L9=1,1,IF(L9=2,2,IF(AND(L9>=3,L9<=5),3,4))),$BJ$64:$BJ$82,$BK$64:$BK$82,$BL$64:$BL$82,$BM$64:$BM$82),"",0,1))) -> FALSE
F10: 7 | P10: Fator de Demanda: | R10: ='CARGA INSTALADA_NDU 001'!L61 -> 1 | S10: Carga: | T10: ='CARGA INSTALADA_NDU 001'!$K$61 -> 0 | U10: W | V10: Demanda: | W10: =T10*R10 -> 0 | X10: W | AP10: 60 | AR10: B2 | AS10: Bifásico | AT10: B1 | AU10: 3 | AV10: 2 | AW10: - | AX10: 0 < C ≤ 17,6 | AY10: 10 | BA10: 10 | BB10: 10 | BC10: 10 | BD10: 10 | BE10: 10 | BF10: 10 | BG10: 1H | BH10: 50 | BI10: 3/4" | BJ10: 100 | BK10: 90 | BM10: CMI-02 | BN10: 0 | BP10: 0 | BQ10: 17.6 | BR10: FALSE | CF10: =IF(N10="D6 MONO",L10*_xlfn.XLOOKUP(O10,$AP$64:$AP$74,CHOOSE(IF(L10=1,1,IF(L10=2,2,IF(AND(L10>=3,L10<=5),3,4))),$AW$64:$AW$74,$AX$64:$AX$74,$AY$64:$AY$74,$AZ$64:$AZ$74),"",0,1)*_xlfn.XLOOKUP(O10,$AP$64:$AP$74,$AS$64:$AS$74,"",0,1),IF(N10="D6 TRI",L10*_xlfn.XLOOKUP(O10,$BC$64:$BC$82,CHOOSE(IF(L10=1,1,IF(L10=2,2,IF(AND(L10>=3,L10<=5),3,4))),$BJ$64:$BJ$82,$BK$64:$BK$82,$BL$64:$BL$82,$BM$64:$BM$82),"",0,1)*_xlfn.XLOOKUP(O10,$BC$64:$BC$82,$BF$64:$BF$82,"",0,1))) -> FALSE | CH10: =IF(N10="D6 MONO",L10*_xlfn.XLOOKUP(O10,$AP$64:$AP$74,CHOOSE(IF(L10=1,1,IF(L10=2,2,IF(AND(L10>=3,L10<=5),3,4))),$AW$64:$AW$74,$AX$64:$AX$74,$AY$64:$AY$74,$AZ$64:$AZ$74),"",0,1),IF(N10="D6 TRI",L10*_xlfn.XLOOKUP(O10,$BC$64:$BC$82,CHOOSE(IF(L10=1,1,IF(L10=2,2,IF(AND(L10>=3,L10<=5),3,4))),$BJ$64:$BJ$82,$BK$64:$BK$82,$BL$64:$BL$82,$BM$64:$BM$82),"",0,1))) -> FALSE
F11: 8 | P11: D3 - Demanda secador de roupa, forno de micro-ondas máquina de lavar louça e hidromassagem, calculada conforme Tabela 10 (NDU 003), em quilowatts (kW) | AR11: 60 | AT11: B2 | AV11: 2 | AW11: - | AX11: 17,6 < C ≤ 22,0 | AY11: 16 | BA11: 16 | BB11: 16 | BC11: 16 | BD11: 10 (16)¹ | BE11: 10 (16)¹ | BF11: 16 | BH11: 60/63 | BI11: 1" | BN11: 0 | BP11: 17.6 | BQ11: 22 | BR11: FALSE | CF11: =IF(N11="D6 MONO",L11*_xlfn.XLOOKUP(O11,$AP$64:$AP$74,CHOOSE(IF(L11=1,1,IF(L11=2,2,IF(AND(L11>=3,L11<=5),3,4))),$AW$64:$AW$74,$AX$64:$AX$74,$AY$64:$AY$74,$AZ$64:$AZ$74),"",0,1)*_xlfn.XLOOKUP(O11,$AP$64:$AP$74,$AS$64:$AS$74,"",0,1),IF(N11="D6 TRI",L11*_xlfn.XLOOKUP(O11,$BC$64:$BC$82,CHOOSE(IF(L11=1,1,IF(L11=2,2,IF(AND(L11>=3,L11<=5),3,4))),$BJ$64:$BJ$82,$BK$64:$BK$82,$BL$64:$BL$82,$BM$64:$BM$82),"",0,1)*_xlfn.XLOOKUP(O11,$BC$64:$BC$82,$BF$64:$BF$82,"",0,1))) -> FALSE | CH11: =IF(N11="D6 MONO",L11*_xlfn.XLOOKUP(O11,$AP$64:$AP$74,CHOOSE(IF(L11=1,1,IF(L11=2,2,IF(AND(L11>=3,L11<=5),3,4))),$AW$64:$AW$74,$AX$64:$AX$74,$AY$64:$AY$74,$AZ$64:$AZ$74),"",0,1),IF(N11="D6 TRI",L11*_xlfn.XLOOKUP(O11,$BC$64:$BC$82,CHOOSE(IF(L11=1,1,IF(L11=2,2,IF(AND(L11>=3,L11<=5),3,4))),$BJ$64:$BJ$82,$BK$64:$BK$82,$BL$64:$BL$82,$BM$64:$BM$82),"",0,1))) -> FALSE
F12: 9 | AR12: 63 | AT12: B3 | AV12: 2 | AW12: - | AX12: 22,0 < C ≤ 26,3 | AY12: 25 | BA12: 25 | BB12: 25 | BC12: 25 | BD12: 16 | BE12: 16 | BF12: 16 | BH12: 70 | BI12: 1 1/4" | BN12: 0 | BP12: 22 | BQ12: 26.3 | BR12: FALSE | CF12: =IF(N12="D6 MONO",L12*_xlfn.XLOOKUP(O12,$AP$64:$AP$74,CHOOSE(IF(L12=1,1,IF(L12=2,2,IF(AND(L12>=3,L12<=5),3,4))),$AW$64:$AW$74,$AX$64:$AX$74,$AY$64:$AY$74,$AZ$64:$AZ$74),"",0,1)*_xlfn.XLOOKUP(O12,$AP$64:$AP$74,$AS$64:$AS$74,"",0,1),IF(N12="D6 TRI",L12*_xlfn.XLOOKUP(O12,$BC$64:$BC$82,CHOOSE(IF(L12=1,1,IF(L12=2,2,IF(AND(L12>=3,L12<=5),3,4))),$BJ$64:$BJ$82,$BK$64:$BK$82,$BL$64:$BL$82,$BM$64:$BM$82),"",0,1)*_xlfn.XLOOKUP(O12,$BC$64:$BC$82,$BF$64:$BF$82,"",0,1))) -> FALSE | CH12: =IF(N12="D6 MONO",L12*_xlfn.XLOOKUP(O12,$AP$64:$AP$74,CHOOSE(IF(L12=1,1,IF(L12=2,2,IF(AND(L12>=3,L12<=5),3,4))),$AW$64:$AW$74,$AX$64:$AX$74,$AY$64:$AY$74,$AZ$64:$AZ$74),"",0,1),IF(N12="D6 TRI",L12*_xlfn.XLOOKUP(O12,$BC$64:$BC$82,CHOOSE(IF(L12=1,1,IF(L12=2,2,IF(AND(L12>=3,L12<=5),3,4))),$BJ$64:$BJ$82,$BK$64:$BK$82,$BL$64:$BL$82,$BM$64:$BM$82),"",0,1))) -> FALSE
F13: 10 | P13: Fator de Demanda: | R13: ='CARGA INSTALADA_NDU 001'!S61 -> 1 | S13: Carga: | T13: ='CARGA INSTALADA_NDU 001'!R61 -> 0 | U13: W | V13: Demanda: | W13: =T13*R13 -> 0 | X13: W | AP13: DEMAIS CASOS | AQ13: =IF(OR(#REF!=AR10,#REF!=AR7),"OUTRO CRITÉRIO",#REF!) ->  | AR13: =VLOOKUP(AQ13,AT7:BH17,15,FALSE) ->  | AS13: Trifásico | AT13: T1 | AU13: 4 | AV13: 3 | AW13: 0 < D ≤ 26,1 | AX13: 0 < C ≤ 75,0 | AY13: 10 | AZ13: N.A. | BA13: 10 | BB13: 10 | BC13: 10 | BD13: 6 | BE13: 6 | BF13: 10 | BG13: 3H | BH13: 40 | BI13: 3/4" | BJ13: 100 | BK13: 90 | BN13: =IF(AND($BO$6>BP13,$BO$6<=BQ13),AT13,0) -> 0 | BP13: 0 | BQ13: 26.1 | BR13: =AND($BO$6>BP13,$BO$6<=BQ13) -> FALSE | CF13: =IF(N13="D6 MONO",L13*_xlfn.XLOOKUP(O13,$AP$64:$AP$74,CHOOSE(IF(L13=1,1,IF(L13=2,2,IF(AND(L13>=3,L13<=5),3,4))),$AW$64:$AW$74,$AX$64:$AX$74,$AY$64:$AY$74,$AZ$64:$AZ$74),"",0,1)*_xlfn.XLOOKUP(O13,$AP$64:$AP$74,$AS$64:$AS$74,"",0,1),IF(N13="D6 TRI",L13*_xlfn.XLOOKUP(O13,$BC$64:$BC$82,CHOOSE(IF(L13=1,1,IF(L13=2,2,IF(AND(L13>=3,L13<=5),3,4))),$BJ$64:$BJ$82,$BK$64:$BK$82,$BL$64:$BL$82,$BM$64:$BM$82),"",0,1)*_xlfn.XLOOKUP(O13,$BC$64:$BC$82,$BF$64:$BF$82,"",0,1))) -> FALSE | CH13: =IF(N13="D6 MONO",L13*_xlfn.XLOOKUP(O13,$AP$64:$AP$74,CHOOSE(IF(L13=1,1,IF(L13=2,2,IF(AND(L13>=3,L13<=5),3,4))),$AW$64:$AW$74,$AX$64:$AX$74,$AY$64:$AY$74,$AZ$64:$AZ$74),"",0,1),IF(N13="D6 TRI",L13*_xlfn.XLOOKUP(O13,$BC$64:$BC$82,CHOOSE(IF(L13=1,1,IF(L13=2,2,IF(AND(L13>=3,L13<=5),3,4))),$BJ$64:$BJ$82,$BK$64:$BK$82,$BL$64:$BL$82,$BM$64:$BM$82),"",0,1))) -> FALSE
F14: 11 | O14: =IF(OR(N14="D6 MONO",N14="D6 TRI"),_xlfn.XLOOKUP(K14,$AQ$93:$AQ$112,$AP$93:$AP$112,"",1,1),"") ->  | P14: D4 - Demanda de fogão e forno elétrico, calculada conforme Tabela 11 (NDU 003), em quilowatts (kW) | AT14: T2 | AV14: 3 | AW14: 26,1 < D ≤ 32,6 | AY14: 16 | BA14: 16 | BB14: 16 | BC14: 16 | BD14: 10 | BE14: 10 | BF14: 16 | BH14: 50 | BI14: 1" | BN14: =IF(AND($BO$6>BP14,$BO$6<=BQ14),AT14,0) -> 0 | BP14: 26.1 | BQ14: 32.6 | BR14: =AND($BO$6>BP14,$BO$6<=BQ14) -> FALSE | CF14: =IF(N14="D6 MONO",L14*_xlfn.XLOOKUP(O14,$AP$64:$AP$74,CHOOSE(IF(L14=1,1,IF(L14=2,2,IF(AND(L14>=3,L14<=5),3,4))),$AW$64:$AW$74,$AX$64:$AX$74,$AY$64:$AY$74,$AZ$64:$AZ$74),"",0,1)*_xlfn.XLOOKUP(O14,$AP$64:$AP$74,$AS$64:$AS$74,"",0,1),IF(N14="D6 TRI",L14*_xlfn.XLOOKUP(O14,$BC$64:$BC$82,CHOOSE(IF(L14=1,1,IF(L14=2,2,IF(AND(L14>=3,L14<=5),3,4))),$BJ$64:$BJ$82,$BK$64:$BK$82,$BL$64:$BL$82,$BM$64:$BM$82),"",0,1)*_xlfn.XLOOKUP(O14,$BC$64:$BC$82,$BF$64:$BF$82,"",0,1))) -> FALSE | CH14: =IF(N14="D6 MONO",L14*_xlfn.XLOOKUP(O14,$AP$64:$AP$74,CHOOSE(IF(L14=1,1,IF(L14=2,2,IF(AND(L14>=3,L14<=5),3,4))),$AW$64:$AW$74,$AX$64:$AX$74,$AY$64:$AY$74,$AZ$64:$AZ$74),"",0,1),IF(N14="D6 TRI",L14*_xlfn.XLOOKUP(O14,$BC$64:$BC$82,CHOOSE(IF(L14=1,1,IF(L14=2,2,IF(AND(L14>=3,L14<=5),3,4))),$BJ$64:$BJ$82,$BK$64:$BK$82,$BL$64:$BL$82,$BM$64:$BM$82),"",0,1))) -> FALSE
F15: 12 | AT15: T3 | AV15: 3 | AW15: 32,6 < D ≤ 46,1 | AY15: 25 | BA15: 25 | BB15: 25 | BC15: 25 | BD15: 16 (25)¹ | BE15: 16 (25)¹ | BF15: 16 | BH15: 70 | BI15: 1 1/4" | BK15: 200 | BN15: =IF(AND($BO$6>BP15,$BO$6<=BQ15),AT15,0) -> 0 | BP15: 32.6 | BQ15: 46.1 | BR15: =AND($BO$6>BP15,$BO$6<=BQ15) -> FALSE | CF15: =IF(N15="D6 MONO",L15*_xlfn.XLOOKUP(O15,$AP$64:$AP$74,CHOOSE(IF(L15=1,1,IF(L15=2,2,IF(AND(L15>=3,L15<=5),3,4))),$AW$64:$AW$74,$AX$64:$AX$74,$AY$64:$AY$74,$AZ$64:$AZ$74),"",0,1)*_xlfn.XLOOKUP(O15,$AP$64:$AP$74,$AS$64:$AS$74,"",0,1),IF(N15="D6 TRI",L15*_xlfn.XLOOKUP(O15,$BC$64:$BC$82,CHOOSE(IF(L15=1,1,IF(L15=2,2,IF(AND(L15>=3,L15<=5),3,4))),$BJ$64:$BJ$82,$BK$64:$BK$82,$BL$64:$BL$82,$BM$64:$BM$82),"",0,1)*_xlfn.XLOOKUP(O15,$BC$64:$BC$82,$BF$64:$BF$82,"",0,1))) -> FALSE | CH15: =IF(N15="D6 MONO",L15*_xlfn.XLOOKUP(O15,$AP$64:$AP$74,CHOOSE(IF(L15=1,1,IF(L15=2,2,IF(AND(L15>=3,L15<=5),3,4))),$AW$64:$AW$74,$AX$64:$AX$74,$AY$64:$AY$74,$AZ$64:$AZ$74),"",0,1),IF(N15="D6 TRI",L15*_xlfn.XLOOKUP(O15,$BC$64:$BC$82,CHOOSE(IF(L15=1,1,IF(L15=2,2,IF(AND(L15>=3,L15<=5),3,4))),$BJ$64:$BJ$82,$BK$64:$BK$82,$BL$64:$BL$82,$BM$64:$BM$82),"",0,1))) -> FALSE
F16: 13 | P16: Fator de Demanda: | R16: ='CARGA INSTALADA_NDU 001'!Y61 -> 1 | S16: Carga: | T16: ='CARGA INSTALADA_NDU 001'!X61 -> 0 | U16: W | V16: Demanda: | W16: =T16*R16 -> 0 | X16: W | AT16: T4 | AV16: 3 | AW16: 46,1 < D ≤ 65,8 | AY16: 35 | BA16: 25 | BB16: 50 | BC16: 25 | BD16: 35 | BE16: 25 | BF16: 25 | BH16: 100 | BI16: 1 1/2" | BJ16: 200 | BN16: =IF(AND($BO$6>BP16,$BO$6<=BQ16),AT16,0) -> 0 | BP16: 46.1 | BQ16: 65.8 | BR16: =AND($BO$6>BP16,$BO$6<=BQ16) -> FALSE | CF16: =IF(N16="D6 MONO",L16*_xlfn.XLOOKUP(O16,$AP$64:$AP$74,CHOOSE(IF(L16=1,1,IF(L16=2,2,IF(AND(L16>=3,L16<=5),3,4))),$AW$64:$AW$74,$AX$64:$AX$74,$AY$64:$AY$74,$AZ$64:$AZ$74),"",0,1)*_xlfn.XLOOKUP(O16,$AP$64:$AP$74,$AS$64:$AS$74,"",0,1),IF(N16="D6 TRI",L16*_xlfn.XLOOKUP(O16,$BC$64:$BC$82,CHOOSE(IF(L16=1,1,IF(L16=2,2,IF(AND(L16>=3,L16<=5),3,4))),$BJ$64:$BJ$82,$BK$64:$BK$82,$BL$64:$BL$82,$BM$64:$BM$82),"",0,1)*_xlfn.XLOOKUP(O16,$BC$64:$BC$82,$BF$64:$BF$82,"",0,1))) -> FALSE | CH16: =IF(N16="D6 MONO",L16*_xlfn.XLOOKUP(O16,$AP$64:$AP$74,CHOOSE(IF(L16=1,1,IF(L16=2,2,IF(AND(L16>=3,L16<=5),3,4))),$AW$64:$AW$74,$AX$64:$AX$74,$AY$64:$AY$74,$AZ$64:$AZ$74),"",0,1),IF(N16="D6 TRI",L16*_xlfn.XLOOKUP(O16,$BC$64:$BC$82,CHOOSE(IF(L16=1,1,IF(L16=2,2,IF(AND(L16>=3,L16<=5),3,4))),$BJ$64:$BJ$82,$BK$64:$BK$82,$BL$64:$BL$82,$BM$64:$BM$82),"",0,1))) -> FALSE
F17: 14 | P17: D5 - Demanda dos aparelhos de ar-condicionado tipo janela ou centrais individuais, calculada conforme Tabelas 13 e 14 (NDU 003), respectivamente, para as residências e não residências, em quilowatts (kW) | AT17: T5 | AV17: 3 | AW17: 65,8 < D ≤ 81,5 | AY17: 70 | BA17: 35 | BB17: 70 | BC17: 35 | BD17: 50 (70)¹ | BE17: 25 (35)¹ | BF17: 25 (35)¹ | BH17: 125 | BI17: 2" | BJ17: 300 | BK17: N.A. | BL17: N.A. | BM17: CMD – BT 200 | BN17: =IF(AND($BO$6>BP17,$BO$6<=BQ17),AT17,0) -> 0 | BP17: 65.8 | BQ17: 81.5 | BR17: =AND($BO$6>BP17,$BO$6<=BQ17) -> FALSE | CF17: =IF(N17="D6 MONO",L17*_xlfn.XLOOKUP(O17,$AP$64:$AP$74,CHOOSE(IF(L17=1,1,IF(L17=2,2,IF(AND(L17>=3,L17<=5),3,4))),$AW$64:$AW$74,$AX$64:$AX$74,$AY$64:$AY$74,$AZ$64:$AZ$74),"",0,1)*_xlfn.XLOOKUP(O17,$AP$64:$AP$74,$AS$64:$AS$74,"",0,1),IF(N17="D6 TRI",L17*_xlfn.XLOOKUP(O17,$BC$64:$BC$82,CHOOSE(IF(L17=1,1,IF(L17=2,2,IF(AND(L17>=3,L17<=5),3,4))),$BJ$64:$BJ$82,$BK$64:$BK$82,$BL$64:$BL$82,$BM$64:$BM$82),"",0,1)*_xlfn.XLOOKUP(O17,$BC$64:$BC$82,$BF$64:$BF$82,"",0,1))) -> FALSE | CH17: =IF(N17="D6 MONO",L17*_xlfn.XLOOKUP(O17,$AP$64:$AP$74,CHOOSE(IF(L17=1,1,IF(L17=2,2,IF(AND(L17>=3,L17<=5),3,4))),$AW$64:$AW$74,$AX$64:$AX$74,$AY$64:$AY$74,$AZ$64:$AZ$74),"",0,1),IF(N17="D6 TRI",L17*_xlfn.XLOOKUP(O17,$BC$64:$BC$82,CHOOSE(IF(L17=1,1,IF(L17=2,2,IF(AND(L17>=3,L17<=5),3,4))),$BJ$64:$BJ$82,$BK$64:$BK$82,$BL$64:$BL$82,$BM$64:$BM$82),"",0,1))) -> FALSE
F18: 15 | CF18: =IF(N18="D6 MONO",L18*_xlfn.XLOOKUP(O18,$AP$64:$AP$74,CHOOSE(IF(L18=1,1,IF(L18=2,2,IF(AND(L18>=3,L18<=5),3,4))),$AW$64:$AW$74,$AX$64:$AX$74,$AY$64:$AY$74,$AZ$64:$AZ$74),"",0,1)*_xlfn.XLOOKUP(O18,$AP$64:$AP$74,$AS$64:$AS$74,"",0,1),IF(N18="D6 TRI",L18*_xlfn.XLOOKUP(O18,$BC$64:$BC$82,CHOOSE(IF(L18=1,1,IF(L18=2,2,IF(AND(L18>=3,L18<=5),3,4))),$BJ$64:$BJ$82,$BK$64:$BK$82,$BL$64:$BL$82,$BM$64:$BM$82),"",0,1)*_xlfn.XLOOKUP(O18,$BC$64:$BC$82,$BF$64:$BF$82,"",0,1))) -> FALSE | CH18: =IF(N18="D6 MONO",L18*_xlfn.XLOOKUP(O18,$AP$64:$AP$74,CHOOSE(IF(L18=1,1,IF(L18=2,2,IF(AND(L18>=3,L18<=5),3,4))),$AW$64:$AW$74,$AX$64:$AX$74,$AY$64:$AY$74,$AZ$64:$AZ$74),"",0,1),IF(N18="D6 TRI",L18*_xlfn.XLOOKUP(O18,$BC$64:$BC$82,CHOOSE(IF(L18=1,1,IF(L18=2,2,IF(AND(L18>=3,L18<=5),3,4))),$BJ$64:$BJ$82,$BK$64:$BK$82,$BL$64:$BL$82,$BM$64:$BM$82),"",0,1))) -> FALSE
F19: 16 | AQ19: LISTA | AU19: RAMAL DE LIGAÇÃO | AV19: 70°C | AW19: 90°C | CF19: =IF(N19="D6 MONO",L19*_xlfn.XLOOKUP(O19,$AP$64:$AP$74,CHOOSE(IF(L19=1,1,IF(L19=2,2,IF(AND(L19>=3,L19<=5),3,4))),$AW$64:$AW$74,$AX$64:$AX$74,$AY$64:$AY$74,$AZ$64:$AZ$74),"",0,1)*_xlfn.XLOOKUP(O19,$AP$64:$AP$74,$AS$64:$AS$74,"",0,1),IF(N19="D6 TRI",L19*_xlfn.XLOOKUP(O19,$BC$64:$BC$82,CHOOSE(IF(L19=1,1,IF(L19=2,2,IF(AND(L19>=3,L19<=5),3,4))),$BJ$64:$BJ$82,$BK$64:$BK$82,$BL$64:$BL$82,$BM$64:$BM$82),"",0,1)*_xlfn.XLOOKUP(O19,$BC$64:$BC$82,$BF$64:$BF$82,"",0,1))) -> FALSE | CH19: =IF(N19="D6 MONO",L19*_xlfn.XLOOKUP(O19,$AP$64:$AP$74,CHOOSE(IF(L19=1,1,IF(L19=2,2,IF(AND(L19>=3,L19<=5),3,4))),$AW$64:$AW$74,$AX$64:$AX$74,$AY$64:$AY$74,$AZ$64:$AZ$74),"",0,1),IF(N19="D6 TRI",L19*_xlfn.XLOOKUP(O19,$BC$64:$BC$82,CHOOSE(IF(L19=1,1,IF(L19=2,2,IF(AND(L19>=3,L19<=5),3,4))),$BJ$64:$BJ$82,$BK$64:$BK$82,$BL$64:$BL$82,$BM$64:$BM$82),"",0,1))) -> FALSE
F20: 17 | P20: Fator de Demanda: | R20: =IF(H2="Residência",'CARGA INSTALADA_NDU 001'!AF61,'CARGA INSTALADA_NDU 001'!AL61) -> 1 | S20: Carga: | T20: =IF(H2="Residência",'CARGA INSTALADA_NDU 001'!AE61,'CARGA INSTALADA_NDU 001'!AK61) -> 0 | U20: W | V20: Demanda: | W20: =T20*R20 -> 0 | X20: W | AQ20: 2#10 (10) | AR20: B2 | AS20: 2#10 (10) | AT20: M1 | AU20: =_xlfn.CONCAT(AV7,"x",1,"x",AY7,"+",BA7) -> 1x1x10+10 | AV20: =_xlfn.CONCAT(AV7,"#",BB7,"(",BC7,")") -> 1#6(6) | AW20: =_xlfn.CONCAT(AV7,"#",BD7,"(",BE7,")") -> 1#6(6) | CF20: =IF(N20="D6 MONO",L20*_xlfn.XLOOKUP(O20,$AP$64:$AP$74,CHOOSE(IF(L20=1,1,IF(L20=2,2,IF(AND(L20>=3,L20<=5),3,4))),$AW$64:$AW$74,$AX$64:$AX$74,$AY$64:$AY$74,$AZ$64:$AZ$74),"",0,1)*_xlfn.XLOOKUP(O20,$AP$64:$AP$74,$AS$64:$AS$74,"",0,1),IF(N20="D6 TRI",L20*_xlfn.XLOOKUP(O20,$BC$64:$BC$82,CHOOSE(IF(L20=1,1,IF(L20=2,2,IF(AND(L20>=3,L20<=5),3,4))),$BJ$64:$BJ$82,$BK$64:$BK$82,$BL$64:$BL$82,$BM$64:$BM$82),"",0,1)*_xlfn.XLOOKUP(O20,$BC$64:$BC$82,$BF$64:$BF$82,"",0,1))) -> FALSE | CH20: =IF(N20="D6 MONO",L20*_xlfn.XLOOKUP(O20,$AP$64:$AP$74,CHOOSE(IF(L20=1,1,IF(L20=2,2,IF(AND(L20>=3,L20<=5),3,4))),$AW$64:$AW$74,$AX$64:$AX$74,$AY$64:$AY$74,$AZ$64:$AZ$74),"",0,1),IF(N20="D6 TRI",L20*_xlfn.XLOOKUP(O20,$BC$64:$BC$82,CHOOSE(IF(L20=1,1,IF(L20=2,2,IF(AND(L20>=3,L20<=5),3,4))),$BJ$64:$BJ$82,$BK$64:$BK$82,$BL$64:$BL$82,$BM$64:$BM$82),"",0,1))) -> FALSE
F21: 18 | P21: D6 - Demanda dos motores elétricos e máquinas de solda tipo motor gerador, em quilowatts (kW), conforme Tabelas 16 (NDU 003) | AS21: 2#10 (16) | AT21: M2 | AU21: 1x1x10+10 | AV21: 1#10(10) | AW21: 1#6(6) | CF21: =IF(N21="D6 MONO",L21*_xlfn.XLOOKUP(O21,$AP$64:$AP$74,CHOOSE(IF(L21=1,1,IF(L21=2,2,IF(AND(L21>=3,L21<=5),3,4))),$AW$64:$AW$74,$AX$64:$AX$74,$AY$64:$AY$74,$AZ$64:$AZ$74),"",0,1)*_xlfn.XLOOKUP(O21,$AP$64:$AP$74,$AS$64:$AS$74,"",0,1),IF(N21="D6 TRI",L21*_xlfn.XLOOKUP(O21,$BC$64:$BC$82,CHOOSE(IF(L21=1,1,IF(L21=2,2,IF(AND(L21>=3,L21<=5),3,4))),$BJ$64:$BJ$82,$BK$64:$BK$82,$BL$64:$BL$82,$BM$64:$BM$82),"",0,1)*_xlfn.XLOOKUP(O21,$BC$64:$BC$82,$BF$64:$BF$82,"",0,1))) -> FALSE | CH21: =IF(N21="D6 MONO",L21*_xlfn.XLOOKUP(O21,$AP$64:$AP$74,CHOOSE(IF(L21=1,1,IF(L21=2,2,IF(AND(L21>=3,L21<=5),3,4))),$AW$64:$AW$74,$AX$64:$AX$74,$AY$64:$AY$74,$AZ$64:$AZ$74),"",0,1),IF(N21="D6 TRI",L21*_xlfn.XLOOKUP(O21,$BC$64:$BC$82,CHOOSE(IF(L21=1,1,IF(L21=2,2,IF(AND(L21>=3,L21<=5),3,4))),$BJ$64:$BJ$82,$BK$64:$BK$82,$BL$64:$BL$82,$BM$64:$BM$82),"",0,1))) -> FALSE
F22: 19 | AS22: 2#16 (10) | AT22: M3 | AU22: 1x1x16+16 | AV22: 1#16(16) | AW22: 1#10(10) | CF22: =IF(N22="D6 MONO",L22*_xlfn.XLOOKUP(O22,$AP$64:$AP$74,CHOOSE(IF(L22=1,1,IF(L22=2,2,IF(AND(L22>=3,L22<=5),3,4))),$AW$64:$AW$74,$AX$64:$AX$74,$AY$64:$AY$74,$AZ$64:$AZ$74),"",0,1)*_xlfn.XLOOKUP(O22,$AP$64:$AP$74,$AS$64:$AS$74,"",0,1),IF(N22="D6 TRI",L22*_xlfn.XLOOKUP(O22,$BC$64:$BC$82,CHOOSE(IF(L22=1,1,IF(L22=2,2,IF(AND(L22>=3,L22<=5),3,4))),$BJ$64:$BJ$82,$BK$64:$BK$82,$BL$64:$BL$82,$BM$64:$BM$82),"",0,1)*_xlfn.XLOOKUP(O22,$BC$64:$BC$82,$BF$64:$BF$82,"",0,1))) -> FALSE | CH22: =IF(N22="D6 MONO",L22*_xlfn.XLOOKUP(O22,$AP$64:$AP$74,CHOOSE(IF(L22=1,1,IF(L22=2,2,IF(AND(L22>=3,L22<=5),3,4))),$AW$64:$AW$74,$AX$64:$AX$74,$AY$64:$AY$74,$AZ$64:$AZ$74),"",0,1),IF(N22="D6 TRI",L22*_xlfn.XLOOKUP(O22,$BC$64:$BC$82,CHOOSE(IF(L22=1,1,IF(L22=2,2,IF(AND(L22>=3,L22<=5),3,4))),$BJ$64:$BJ$82,$BK$64:$BK$82,$BL$64:$BL$82,$BM$64:$BM$82),"",0,1))) -> FALSE
F23: 20 | P23: Demanda Total Motores: | R23: Demanda (W): | T23: =CF30*1000 -> 0 | U23: W | V23: Demanda (VA): | W23: =CH30*1000 -> 0 | X23: VA | AS23: 2#16 (16) | AT23: B1 | AU23: 2x1x10+10 | AV23: 2#10(10) | AW23: 2#10(10) | CF23: =IF(N23="D6 MONO",L23*_xlfn.XLOOKUP(O23,$AP$64:$AP$74,CHOOSE(IF(L23=1,1,IF(L23=2,2,IF(AND(L23>=3,L23<=5),3,4))),$AW$64:$AW$74,$AX$64:$AX$74,$AY$64:$AY$74,$AZ$64:$AZ$74),"",0,1)*_xlfn.XLOOKUP(O23,$AP$64:$AP$74,$AS$64:$AS$74,"",0,1),IF(N23="D6 TRI",L23*_xlfn.XLOOKUP(O23,$BC$64:$BC$82,CHOOSE(IF(L23=1,1,IF(L23=2,2,IF(AND(L23>=3,L23<=5),3,4))),$BJ$64:$BJ$82,$BK$64:$BK$82,$BL$64:$BL$82,$BM$64:$BM$82),"",0,1)*_xlfn.XLOOKUP(O23,$BC$64:$BC$82,$BF$64:$BF$82,"",0,1))) -> FALSE | CH23: =IF(N23="D6 MONO",L23*_xlfn.XLOOKUP(O23,$AP$64:$AP$74,CHOOSE(IF(L23=1,1,IF(L23=2,2,IF(AND(L23>=3,L23<=5),3,4))),$AW$64:$AW$74,$AX$64:$AX$74,$AY$64:$AY$74,$AZ$64:$AZ$74),"",0,1),IF(N23="D6 TRI",L23*_xlfn.XLOOKUP(O23,$BC$64:$BC$82,CHOOSE(IF(L23=1,1,IF(L23=2,2,IF(AND(L23>=3,L23<=5),3,4))),$BJ$64:$BJ$82,$BK$64:$BK$82,$BL$64:$BL$82,$BM$64:$BM$82),"",0,1))) -> FALSE
F24: 21 | P24: D7 - Demanda de máquinas de solda a transformador e aparelhos de raios-x, calculadas conforme Tabela 17 (NDU 003), em quilowatts (kW) | AS24: OUTRO | AT24: B2 | AU24: 2x1x16+16 | AV24: 2#16(16) | AW24: 2#10 (16)¹(10 (16)¹) | CF24: =IF(N24="D6 MONO",L24*_xlfn.XLOOKUP(O24,$AP$64:$AP$74,CHOOSE(IF(L24=1,1,IF(L24=2,2,IF(AND(L24>=3,L24<=5),3,4))),$AW$64:$AW$74,$AX$64:$AX$74,$AY$64:$AY$74,$AZ$64:$AZ$74),"",0,1)*_xlfn.XLOOKUP(O24,$AP$64:$AP$74,$AS$64:$AS$74,"",0,1),IF(N24="D6 TRI",L24*_xlfn.XLOOKUP(O24,$BC$64:$BC$82,CHOOSE(IF(L24=1,1,IF(L24=2,2,IF(AND(L24>=3,L24<=5),3,4))),$BJ$64:$BJ$82,$BK$64:$BK$82,$BL$64:$BL$82,$BM$64:$BM$82),"",0,1)*_xlfn.XLOOKUP(O24,$BC$64:$BC$82,$BF$64:$BF$82,"",0,1))) -> FALSE | CH24: =IF(N24="D6 MONO",L24*_xlfn.XLOOKUP(O24,$AP$64:$AP$74,CHOOSE(IF(L24=1,1,IF(L24=2,2,IF(AND(L24>=3,L24<=5),3,4))),$AW$64:$AW$74,$AX$64:$AX$74,$AY$64:$AY$74,$AZ$64:$AZ$74),"",0,1),IF(N24="D6 TRI",L24*_xlfn.XLOOKUP(O24,$BC$64:$BC$82,CHOOSE(IF(L24=1,1,IF(L24=2,2,IF(AND(L24>=3,L24<=5),3,4))),$BJ$64:$BJ$82,$BK$64:$BK$82,$BL$64:$BL$82,$BM$64:$BM$82),"",0,1))) -> FALSE
F25: 22 | AQ25: 3#16 (16) | AR25: T3 | AS25: 3#16 (16) | AT25: B3 | AU25: 2x1x25+25 | AV25: 2#25(25) | AW25: 2#16(16) | CF25: =IF(N25="D6 MONO",L25*_xlfn.XLOOKUP(O25,$AP$64:$AP$74,CHOOSE(IF(L25=1,1,IF(L25=2,2,IF(AND(L25>=3,L25<=5),3,4))),$AW$64:$AW$74,$AX$64:$AX$74,$AY$64:$AY$74,$AZ$64:$AZ$74),"",0,1)*_xlfn.XLOOKUP(O25,$AP$64:$AP$74,$AS$64:$AS$74,"",0,1),IF(N25="D6 TRI",L25*_xlfn.XLOOKUP(O25,$BC$64:$BC$82,CHOOSE(IF(L25=1,1,IF(L25=2,2,IF(AND(L25>=3,L25<=5),3,4))),$BJ$64:$BJ$82,$BK$64:$BK$82,$BL$64:$BL$82,$BM$64:$BM$82),"",0,1)*_xlfn.XLOOKUP(O25,$BC$64:$BC$82,$BF$64:$BF$82,"",0,1))) -> FALSE | CH25: =IF(N25="D6 MONO",L25*_xlfn.XLOOKUP(O25,$AP$64:$AP$74,CHOOSE(IF(L25=1,1,IF(L25=2,2,IF(AND(L25>=3,L25<=5),3,4))),$AW$64:$AW$74,$AX$64:$AX$74,$AY$64:$AY$74,$AZ$64:$AZ$74),"",0,1),IF(N25="D6 TRI",L25*_xlfn.XLOOKUP(O25,$BC$64:$BC$82,CHOOSE(IF(L25=1,1,IF(L25=2,2,IF(AND(L25>=3,L25<=5),3,4))),$BJ$64:$BJ$82,$BK$64:$BK$82,$BL$64:$BL$82,$BM$64:$BM$82),"",0,1))) -> FALSE
F26: 23 | P26: Condição: | R26: 1º Maior | S26: 2º Maior | T26: 3° Maior | V26: Soma dos Demais | X26: Pot. (Und) | AS26: 3#16 (25) | AT26: T1 | AU26: 3x1x10+10 | AV26: 3#10(10) | AW26: 3#6(6) | CF26: =IF(N26="D6 MONO",L26*_xlfn.XLOOKUP(O26,$AP$64:$AP$74,CHOOSE(IF(L26=1,1,IF(L26=2,2,IF(AND(L26>=3,L26<=5),3,4))),$AW$64:$AW$74,$AX$64:$AX$74,$AY$64:$AY$74,$AZ$64:$AZ$74),"",0,1)*_xlfn.XLOOKUP(O26,$AP$64:$AP$74,$AS$64:$AS$74,"",0,1),IF(N26="D6 TRI",L26*_xlfn.XLOOKUP(O26,$BC$64:$BC$82,CHOOSE(IF(L26=1,1,IF(L26=2,2,IF(AND(L26>=3,L26<=5),3,4))),$BJ$64:$BJ$82,$BK$64:$BK$82,$BL$64:$BL$82,$BM$64:$BM$82),"",0,1)*_xlfn.XLOOKUP(O26,$BC$64:$BC$82,$BF$64:$BF$82,"",0,1))) -> FALSE | CH26: =IF(N26="D6 MONO",L26*_xlfn.XLOOKUP(O26,$AP$64:$AP$74,CHOOSE(IF(L26=1,1,IF(L26=2,2,IF(AND(L26>=3,L26<=5),3,4))),$AW$64:$AW$74,$AX$64:$AX$74,$AY$64:$AY$74,$AZ$64:$AZ$74),"",0,1),IF(N26="D6 TRI",L26*_xlfn.XLOOKUP(O26,$BC$64:$BC$82,CHOOSE(IF(L26=1,1,IF(L26=2,2,IF(AND(L26>=3,L26<=5),3,4))),$BJ$64:$BJ$82,$BK$64:$BK$82,$BL$64:$BL$82,$BM$64:$BM$82),"",0,1))) -> FALSE
F27: 24 | P27: Fator de Demanda: | R27: 1 | S27: 0.7 | T27: 0.4 | V27: 0.3 | AS27: 3#25 (16) | AT27: T2 | AU27: 3x1x16+16 | AV27: 3#16(16) | AW27: 3#10(10) | CF27: =IF(N27="D6 MONO",L27*_xlfn.XLOOKUP(O27,$AP$64:$AP$74,CHOOSE(IF(L27=1,1,IF(L27=2,2,IF(AND(L27>=3,L27<=5),3,4))),$AW$64:$AW$74,$AX$64:$AX$74,$AY$64:$AY$74,$AZ$64:$AZ$74),"",0,1)*_xlfn.XLOOKUP(O27,$AP$64:$AP$74,$AS$64:$AS$74,"",0,1),IF(N27="D6 TRI",L27*_xlfn.XLOOKUP(O27,$BC$64:$BC$82,CHOOSE(IF(L27=1,1,IF(L27=2,2,IF(AND(L27>=3,L27<=5),3,4))),$BJ$64:$BJ$82,$BK$64:$BK$82,$BL$64:$BL$82,$BM$64:$BM$82),"",0,1)*_xlfn.XLOOKUP(O27,$BC$64:$BC$82,$BF$64:$BF$82,"",0,1))) -> FALSE | CH27: =IF(N27="D6 MONO",L27*_xlfn.XLOOKUP(O27,$AP$64:$AP$74,CHOOSE(IF(L27=1,1,IF(L27=2,2,IF(AND(L27>=3,L27<=5),3,4))),$AW$64:$AW$74,$AX$64:$AX$74,$AY$64:$AY$74,$AZ$64:$AZ$74),"",0,1),IF(N27="D6 TRI",L27*_xlfn.XLOOKUP(O27,$BC$64:$BC$82,CHOOSE(IF(L27=1,1,IF(L27=2,2,IF(AND(L27>=3,L27<=5),3,4))),$BJ$64:$BJ$82,$BK$64:$BK$82,$BL$64:$BL$82,$BM$64:$BM$82),"",0,1))) -> FALSE
F28: 25 | P28: Carga: | R28: ='CARGA INSTALADA_NDU 001'!CJ62 -> 0 | S28: ='CARGA INSTALADA_NDU 001'!CJ63 -> 0 | T28: ='CARGA INSTALADA_NDU 001'!CJ64 -> 0 | V28: ='CARGA INSTALADA_NDU 001'!CJ65 -> 0 | X28: W | AS28: 3#25 (25) | AT28: T3 | AU28: 3x1x25+25 | AV28: 3#25(25) | AW28: 3#16 (25)¹(16 (25)¹) | CF28: =IF(N28="D6 MONO",L28*_xlfn.XLOOKUP(O28,$AP$64:$AP$74,CHOOSE(IF(L28=1,1,IF(L28=2,2,IF(AND(L28>=3,L28<=5),3,4))),$AW$64:$AW$74,$AX$64:$AX$74,$AY$64:$AY$74,$AZ$64:$AZ$74),"",0,1)*_xlfn.XLOOKUP(O28,$AP$64:$AP$74,$AS$64:$AS$74,"",0,1),IF(N28="D6 TRI",L28*_xlfn.XLOOKUP(O28,$BC$64:$BC$82,CHOOSE(IF(L28=1,1,IF(L28=2,2,IF(AND(L28>=3,L28<=5),3,4))),$BJ$64:$BJ$82,$BK$64:$BK$82,$BL$64:$BL$82,$BM$64:$BM$82),"",0,1)*_xlfn.XLOOKUP(O28,$BC$64:$BC$82,$BF$64:$BF$82,"",0,1))) -> FALSE | CH28: =IF(N28="D6 MONO",L28*_xlfn.XLOOKUP(O28,$AP$64:$AP$74,CHOOSE(IF(L28=1,1,IF(L28=2,2,IF(AND(L28>=3,L28<=5),3,4))),$AW$64:$AW$74,$AX$64:$AX$74,$AY$64:$AY$74,$AZ$64:$AZ$74),"",0,1),IF(N28="D6 TRI",L28*_xlfn.XLOOKUP(O28,$BC$64:$BC$82,CHOOSE(IF(L28=1,1,IF(L28=2,2,IF(AND(L28>=3,L28<=5),3,4))),$BJ$64:$BJ$82,$BK$64:$BK$82,$BL$64:$BL$82,$BM$64:$BM$82),"",0,1))) -> FALSE
F29: 26 | P29: Demanda: | R29: =R28*R27 -> 0 | S29: =S28*S27 -> 0 | T29: =T28*T27 -> 0 | V29: =V28*V27 -> 0 | X29: W | AS29: OUTRO | AT29: T4 | AU29: 3x1x35+25 | AV29: 3#50(25) | AW29: 3#35(25) | CF29: =IF(N29="D6 MONO",L29*_xlfn.XLOOKUP(O29,$AP$64:$AP$74,CHOOSE(IF(L29=1,1,IF(L29=2,2,IF(AND(L29>=3,L29<=5),3,4))),$AW$64:$AW$74,$AX$64:$AX$74,$AY$64:$AY$74,$AZ$64:$AZ$74),"",0,1)*_xlfn.XLOOKUP(O29,$AP$64:$AP$74,$AS$64:$AS$74,"",0,1),IF(N29="D6 TRI",L29*_xlfn.XLOOKUP(O29,$BC$64:$BC$82,CHOOSE(IF(L29=1,1,IF(L29=2,2,IF(AND(L29>=3,L29<=5),3,4))),$BJ$64:$BJ$82,$BK$64:$BK$82,$BL$64:$BL$82,$BM$64:$BM$82),"",0,1)*_xlfn.XLOOKUP(O29,$BC$64:$BC$82,$BF$64:$BF$82,"",0,1))) -> FALSE | CH29: =IF(N29="D6 MONO",L29*_xlfn.XLOOKUP(O29,$AP$64:$AP$74,CHOOSE(IF(L29=1,1,IF(L29=2,2,IF(AND(L29>=3,L29<=5),3,4))),$AW$64:$AW$74,$AX$64:$AX$74,$AY$64:$AY$74,$AZ$64:$AZ$74),"",0,1),IF(N29="D6 TRI",L29*_xlfn.XLOOKUP(O29,$BC$64:$BC$82,CHOOSE(IF(L29=1,1,IF(L29=2,2,IF(AND(L29>=3,L29<=5),3,4))),$BJ$64:$BJ$82,$BK$64:$BK$82,$BL$64:$BL$82,$BM$64:$BM$82),"",0,1))) -> FALSE
F30: CARGA INSTALADA TOTAL (W) | M30: =SUM(M4:M29) -> 0 | N30: W | P30: DEMANDA TOTAL (kW): | S30: =SUM(R7,W10,W13,W16,W20,T23,R29,S29,T29,V29,F84)/1000 -> 0 | T30: DEMANDA TOTAL (kVA) : | X30: =(SUM(R7,W10,W13,W16,W20,R29,S29,T29,V29,F84)/(1000*0.92))+(W23/1000) -> 0 | Y30: Manter fatores da norma | Z30: NOTAS | AQ30: 3#50 (25) | AR30: T5 | AS30: 3#50 (25) | AT30: T5 | AU30: 3x1x70+35 | AV30: 3#70(35) | AW30: 3#50 (70)¹(25 (35)¹) | CE30: TOTAL | CF30: =SUM(CF4:CF29) -> 0 | CH30: =SUM(CH4:CH29) -> 0
P32: INFORMAÇÕES DA DEMANDA E OPÇÃO TARIFÁRIA
P33: OPÇÃO TARIFÁRIA: | T33: =IF(R33="Optante B", "Obs.: Não possui demanda contratada", "DEMANDA A SER CONTRATADA (KW):") -> DEMANDA A SER CONTRATADA (KW):
P34: =IF(R33=Listas!C2,"DEMANDA PONTA","") ->  | T34: =IF(R33=Listas!C2,"DEMANDA FORA PONTA","") -> 
P35: =IF(R33=Listas!A2,"ATENÇÃO!","") -> 
P36: =IF(R33=Listas!A2,"OBSERVAÇÕES IMPORTANTES:","") -> 
P37: =IF(R33=Listas!A2,"1. Opção de OPTANTE B é disponível somente para transformador de 75kVA e/ou 112,5kVA (REN ANEEL 1.059, §3,II);","") -> 
P39: =IF(R33=Listas!A2,"2. Nessa opção não é possível receber de outra unidade consumidora com geração de energia elétrica ou ratear créditos de energia caso seja geradora (REN ANEEL 1.059, §3,III);","") -> 
Z41: 2. Não é permitido que essa unidade seja atendida como grupo B (Vide Artigo 23° da resolução normativa ANEEL 1000) | AS41: 3#70 (25)
AV58: D6 MONO | BH58: D6 TRI
A59: TABELA 3 - Fatores de demanda para iluminação e pequenos aparelhos | H59: TABELA 4 - Fatores de demanda para aparelhos de aquecimento de água | N59: TABELA 5 - Fatores de demanda para secadores de roupas, máquina de lavar louça, forno de micro-ondas, e hidromassagem | U59: TABELA 6 - Fatores de demanda para fogões elétricos e fornos elétricos | AB59: TABELA 8 - Fatores de demanda para aparelhos de ar-condicionado residencial | AI59: TABELA 9 - Fatores de demanda para aparelhos de ar-condicionado não- residencial | AP59: TABELA 10 - Características e demanda de motores monofásicos | BC59: TABELA 11 - Características e demanda de motores trifásicos | CE59: TABELA 12 - Fatores de demanda para máquinas de solda a transformador, aparelhos de raios-x e galvanização
A60: Descrição | B60: Carga instalada | C60: Fator de demanda | D60: Calculos | H60: N.º de aparelhos | I60: Fator de demanda | N60: N.º de aparelhos | P60: Fator de demanda | R60: =SUMIF('CARGA INSTALADA_NDU 001'!N4:N29,"D3",'CARGA INSTALADA_NDU 001'!L4:L29) -> 0 | U60: N.º de aparelhos | V60: Fator de demanda | X60: =SUMIF('CARGA INSTALADA_NDU 001'!N4:N29,"D4",'CARGA INSTALADA_NDU 001'!L4:L29) -> 0 | AB60: N.º de aparelhos | AC60: Fator de demanda | AE60: =SUMIF('CARGA INSTALADA_NDU 001'!N4:N29,"D5",'CARGA INSTALADA_NDU 001'!L4:L29) -> 0 | AI60: N.º de aparelhos | AJ60: Fator de demanda | AK60: =SUMIF('CARGA INSTALADA_NDU 001'!N4:N29,"D5",'CARGA INSTALADA_NDU 001'!L4:L29) -> 0 | AP60: Valores nominais do motor | AW60: Demanda individual absorvida da rede kVA | BC60: Valores nominais do motor | BJ60: Demanda individual absorvida da rede | BQ60: Valores nominais do motor | BX60: Demanda individual absorvida da rede | CE60: Equipamento | CF60: Potência do aparelho | CG60: Fator de demanda | CI60: Qtdade | CJ60: Carga
B61: (kW) | C61: (%) | D61: =SUMIF('CARGA INSTALADA_NDU 001'!N4:N29,"D1",'CARGA INSTALADA_NDU 001'!M4:M29) -> 0 | G61: =MATCH(LARGE(D62:D72,1),D62:D72,0) -> 1 | I61: (%) | J61: =SUMIF('CARGA INSTALADA_NDU 001'!N4:N29,"D2",'CARGA INSTALADA_NDU 001'!L4:L29) -> 0 | K61: =SUMIF('CARGA INSTALADA_NDU 001'!N4:N29,"D2",'CARGA INSTALADA_NDU 001'!M4:M29) -> 0 | L61: =INDEX(I62:I86,MATCH(LARGE(K62:K86,1),K62:K86,0),1) -> 1 | P61: (%) | R61: =SUMIF('CARGA INSTALADA_NDU 001'!N4:N29,"D3",'CARGA INSTALADA_NDU 001'!M4:M29) -> 0 | S61: =INDEX(P62:P66,MATCH(LARGE(Q62:Q86,1),Q62:Q66,0),1) -> 1 | V61: (%) | X61: =SUMIF('CARGA INSTALADA_NDU 001'!N4:N29,"D4",'CARGA INSTALADA_NDU 001'!M4:M29) -> 0 | Y61: =INDEX(V62:V75,MATCH(LARGE(W62:W86,1),W62:W75,0),1) -> 1 | AC61: (%) | AE61: =SUMIF('CARGA INSTALADA_NDU 001'!N4:N29,"D5",'CARGA INSTALADA_NDU 001'!M4:M29) -> 0 | AF61: =INDEX(AC62:AC76,MATCH(LARGE(AD62:AD86,1),AD62:AD76,0),1) -> 1 | AJ61: (%) | AK61: =SUMIF('CARGA INSTALADA_NDU 001'!N4:N29,"D5",'CARGA INSTALADA_NDU 001'!M4:M29) -> 0 | AL61: =INDEX(AJ62:AJ76,MATCH(LARGE(AK62:AK86,1),AK62:AK76,0),1) -> 1 | AP61: Potência | AS61: Cos | AT61: ƞ | AU61: Corrente | AW61: 1 motor | AX61: 2 motores | AY61: 3 a 5 motores | AZ61: Mais de 5 motores | BC61: Potência | BF61: Cos | BG61: ƞ | BH61: Corrente | BJ61: 1 motor | BK61: 2 motores | BL61: 3 a 5 motores | BM61: Mais de 5 motores | BQ61: Potência | BT61: Cos | BU61: ƞ | BV61: Corrente | BX61: 1 motor | BY61: 2 motores | BZ61: 3 a 5 motores | CA61: Mais de 5 motores | CG61: (%) | CH61: Maquina de Solda | CI61: =SUMIF('CARGA INSTALADA_NDU 001'!N4:N29,"D7",'CARGA INSTALADA_NDU 001'!L4:L29) -> 0 | CJ61: =SUMIF('CARGA INSTALADA_NDU 001'!N4:N29,"D7",'CARGA INSTALADA_NDU 001'!M4:M29) -> 0
A62: Residência | B62: 0 < C ≤ 1 | C62: 0.86 | D62: =IF(AND($D$61<=1000,$D$61>0),$D$61,0) -> 0 | E62: =D62*C62 -> 0 | F62: Residência | G62: =INDEX(C62:C72,G61,1) -> 0.86 | H62: 1 | I62: 1 | J62: =IF($J$61=H62,$J$61,0) -> 0 | K62: =IF(J62=0,0,I62*$K$61) -> 0 | N62: 1 | P62: 1 | Q62: =IF(R60=1,R61,0) -> 0 | R62: =Q62*P62 -> 0 | U62: 1 | V62: 1 | W62: =IF($X$60=U62,$X$61,0) -> 0 | X62: =W62*V62 -> 0 | AB62: 1 | AC62: 1 | AD62: =IF($AE$60=AB62,$AE$61,0) -> 0 | AI62: 1 a 10 | AJ62: 1 | AK62: =IF(AND(AK60>=1,AK60<=10),AK61,0) -> 0 | AP62: Eixo | AQ62: Absorvida da rede | AU62: 127 V | AV62: 220 V | BC62: Eixo | BD62: Absorvida da rede (nota 2) | BH62: 220 V | BI62: 380 V | BQ62: Eixo | BR62: Absorvida da rede (nota 2) | BV62: 220 V | BW62: 380 V | CE62: Solda a arco e aparelhos de galvanização | CF62: 1º Maior | CG62: 1 | CH62: 1º Maior | CI62: =IF(CJ62<>0,1,0) -> 0 | CJ62: =IFERROR(LARGE(IF('CARGA INSTALADA_NDU 001'!N4:N29="D7",'CARGA INSTALADA_NDU 001'!K4:K29),1),0) -> 0 | CK62: =CJ62*CG62 -> 0
B63: 1 < C ≤ 2 | C63: 0.75 | D63: =IF(AND($D$61<=2000,$D$61>1000),$D$61,0) -> 0 | E63: 0 | F63: Restaurante e Similares | G63: =C73 -> 0.86 | H63: 2 | I63: 0.75 | J63: 0 | K63: 0 | N63: 2 a 4 | P63: 0.7 | Q63: =IF(AND(R60>=2,R60<=4),R61,0) -> 0 | R63: =Q63*P63 -> 0 | U63: 2 | V63: 0.6 | W63: 0 | X63: 0 | AB63: 2 | AC63: 0.88 | AD63: 0 | AI63: 11 a 20 | AJ63: 0.9 | AK63: =IF(AND(AK60>=11,AK60<=20),AK61,0) -> 0 | AP63: (CV) | AQ63: (kW) | AR63: (kVA) | AU63: (A) | AW63: 1 | AX63: 2 | AY63: 3 a 5 | AZ63: >5 | BC63: (CV) | BD63: (kW) | BE63: (kVA) | BH63: (A) | BJ63: (kVA) | BQ63: (CV) | BR63: (kW) | BS63: (kVA) | BV63: (A) | BX63: (kVA) | CF63: 2º Maior | CG63: 0.7 | CH63: 2º Maior | CI63: =IF(CJ63<>0,1,0) -> 0 | CJ63: =IFERROR(LARGE(IF(('CARGA INSTALADA_NDU 001'!N4:N29="D7")*('CARGA INSTALADA_NDU 001'!L4:L29>=2),'CARGA INSTALADA_NDU 001'!K4:K29),1),0) -> 0 | CK63: =CJ63*CG63 -> 0
B64: 2 < C ≤ 3 | C64: 0.66 | D64: =IF(AND($D$61<=3000,$D$61>2000),$D$61,0) -> 0 | E64: 0 | H64: 3 | I64: 0.7 | J64: 0 | K64: 0 | N64: 5 a 6 | P64: 0.6 | Q64: =IF(AND(R60>=5,R60<=6),R61,0) -> 0 | R64: =Q64*P64 -> 0 | U64: 3 | V64: 0.48 | W64: 0 | X64: 0 | AB64: 3 | AC64: 0.82 | AD64: 0 | AI64: 21 a 30 | AJ64: 0.82 | AK64: =IF(AND(AK60>=21,AK60<=30),AK61,0) -> 0 | AP64: 1/3 | AQ64: 0.52 | AR64: 0.74 | AS64: 0.71 | AT64: 0.47 | AU64: 3.34 | AV64: 1.93 | AW64: 0.74 | AX64: 0.59 | AY64: 0.51 | AZ64: 0.44 | BC64: 1/6 | BD64: 0.25 | BE64: 0.37 | BF64: 0.67 | BG64: 0.49 | BH64: 0.98 | BI64: 0.57 | BJ64: 0.37 | BK64: 0.3 | BL64: 0.26 | BM64: 0.22 | BN64: =BJ64/BE64 -> 1 | BO64: =BK64/BE64 -> 0.8108108108 | BP64: =BL64/BE64 -> 0.7027027027 | BQ64: 10 | BR64: 9.68 | BS64: 10.76 | BT64: 0.9 | BU64: 0.76 | BV64: 28.24 | BW64: 16.35 | BX64: 10.76 | BY64: 8.61 | BZ64: 7.53 | CA64: 6.46 | CF64: 3º Maior | CG64: 0.4 | CH64: 3º Maior | CI64: =IF(CJ64<>0,1,0) -> 0 | CJ64: =IFERROR(LARGE(IF(('CARGA INSTALADA_NDU 001'!N4:N29="D7")*('CARGA INSTALADA_NDU 001'!L4:L29>=3),'CARGA INSTALADA_NDU 001'!K4:K29),1),0) -> 0 | CK64: =CJ64*CG64 -> 0
B65: 3 < C ≤ 4 | C65: 0.59 | D65: =IF(AND($D$61<=4000,$D$61>3000),$D$61,0) -> 0 | E65: 0 | F65: =1000/1000 -> 1 | H65: 4 | I65: 0.66 | J65: 0 | K65: 0 | N65: 7 a 9 | P65: 0.5 | Q65: =IF(AND(R60>=7,R60<=9),R61,0) -> 0 | R65: =Q65*P65 -> 0 | U65: 4 | V65: 0.4 | W65: 0 | X65: 0 | AB65: 4 | AC65: 0.78 | AD65: 0 | AI65: 31 a 40 | AJ65: 0.8 | AK65: =IF(AND(AK60>=31,AK60<=40),AK61,0) -> 0 | AP65: 1/2 | AQ65: 0.66 | AR65: 0.91 | AS65: 0.72 | AT65: 0.56 | AU65: 4.15 | AV65: 2.4 | AW65: 0.91 | AX65: 0.73 | AY65: 0.64 | AZ65: 0.55 | BC65: 1/4 | BD65: 0.34 | BE65: 0.48 | BF65: 0.69 | BG65: 0.55 | BH65: 1.27 | BI65: 0.74 | BJ65: 0.48 | BK65: 0.39 | BL65: 0.34 | BM65: 0.29 | BP65: =BM64/BE64 -> 0.5945945946 | BQ65: 12.1/2 | BR65: 11.8 | BS65: 12.04 | BT65: 0.98 | BU65: 0.78 | BV65: 31.59 | BW65: 18.29 | BX65: 12.04 | BY65: 9.63 | BZ65: 8.42 | CA65: 7.22 | CF65: Soma dos Demais | CG65: 0.3 | CH65: Soma dos Demais | CI65: =CI61-(SUM(CI62:CI64)) -> 0 | CJ65: =CJ61-SUM(CJ62:CJ64) -> 0 | CK65: =CJ65*CG65 -> 0
B66: 4 < C ≤ 5 | C66: 0.52 | D66: =IF(AND($D$61<=5000,$D$61>4000),$D$61,0) -> 0 | E66: 0 | H66: 5 | I66: 0.62 | J66: 0 | K66: 0 | N66: Acima de 9 | P66: 0.45 | Q66: =IF(R60>9,R61,0) -> 0 | R66: =Q66*P66 -> 0 | U66: 5 | V66: 0.37 | W66: 0 | X66: 0 | AB66: 5 | AC66: 0.76 | AD66: 0 | AI66: 41 a 50 | AJ66: 0.77 | AK66: =IF(AND(AK60>=41,AK60<=50),AK61,0) -> 0 | AP66: 3/4 | AQ66: 0.89 | AR66: 1.24 | AS66: 0.72 | AT66: 0.62 | AU66: 5.62 | AV66: 3.25 | AW66: 1.24 | AX66: 0.99 | AY66: 0.87 | AZ66: 0.74 | BC66: 1/3 | BD66: 0.41 | BE66: 0.55 | BF66: 0.74 | BG66: 0.6 | BH66: 1.45 | BI66: 0.84 | BJ66: 0.55 | BK66: 0.44 | BL66: 0.39 | BM66: 0.33 | BQ66: 15 | BR66: 13.63 | BS66: 14.98 | BT66: 0.91 | BU66: 0.81 | BV66: 39.31 | BW66: 22.76 | BX66: 14.98 | BY66: 11.98 | BZ66: 10.48 | CA66: 8.99 | CE66: Solda a resistência | CF66: Maior | CG66: 1 | CJ66: Total
B67: 5 < C ≤ 6 | C67: 0.45 | D67: =IF(AND($D$61<=6000,$D$61>5000),$D$61,0) -> 0 | E67: 0 | H67: 6 | I67: 0.59 | J67: 0 | K67: 0 | U67: 6 | V67: 0.35 | W67: 0 | X67: 0 | AB67: 6 | AC67: 0.74 | AD67: 0 | AI67: Acima de 50 | AJ67: 0.75 | AK67: =IF($AK$60>=50,$AK$61,0) -> 0 | AP67: 1 | AQ67: 1.1 | AR67: 1.48 | AS67: 0.74 | AT67: 0.67 | AU67: 6.75 | AV67: 3.91 | AW67: 1.48 | AX67: 1.19 | AY67: 1.04 | AZ67: 0.89 | BC67: 1/2 | BD67: 0.57 | BE67: 0.72 | BF67: 0.79 | BG67: 0.65 | BH67: 1.88 | BI67: 1.09 | BJ67: 0.72 | BK67: 0.57 | BL67: 0.5 | BM67: 0.43 | BQ67: 20 | BR67: 18.4 | BS67: 20.67 | BT67: 0.89 | BU67: 0.8 | BV67: 54.26 | BW67: 31.41 | BX67: 20.67 | BY67: 16.54 | BZ67: 14.47 | CA67: 12.4 | CF67: Soma dos Demais | CG67: 0.6
B68: 6 < C ≤ 7 | C68: 0.4 | D68: =IF(AND($D$61<=7000,$D$61>6000),$D$61,0) -> 0 | E68: 0 | H68: 7 | I68: 0.56 | J68: 0 | K68: 0 | U68: 7 | V68: 0.33 | W68: 0 | X68: 0 | AB68: 7 | AC68: 0.72 | AD68: 0 | AP68: 1.1/2 | AQ68: 1.58 | AR68: 1.92 | AS68: 0.82 | AT68: 0.7 | AU68: 8.74 | AV68: 5.06 | AW68: 1.92 | AX68: 1.54 | AY68: 1.35 | AZ68: 1.15 | BC68: 2/3 | BD68: 0.82 | BE68: 1.08 | BF68: 0.76 | BG68: 0.67 | BH68: 2.84 | BI68: 1.65 | BJ68: 1.08 | BK68: 0.87 | BL68: 0.76 | BM68: 0.65 | BQ68: 25 | BR68: 22.44 | BS68: 24.66 | BT68: 0.91 | BU68: 0.82 | BV68: 64.71 | BW68: 37.46 | BX68: 24.66 | BY68: 19.73 | BZ68: 17.26 | CA68: 14.79 | CE68: Aparelho de raios X | CF68: Maior | CG68: 1
B69: 7 < C ≤ 8 | C69: 0.35 | D69: =IF(AND($D$61<=8000,$D$61>7000),$D$61,0) -> 0 | E69: 0 | H69: 8 | I69: 0.53 | J69: 0 | K69: 0 | U69: 8 | V69: 0.32 | W69: 0 | X69: 0 | AB69: 8 | AC69: 0.71 | AD69: 0 | AP69: 2 | AQ69: 2.07 | AR69: 2.44 | AS69: 0.85 | AT69: 0.71 | AU69: 11.09 | AV69: 6.42 | AW69: 2.44 | AX69: 1.95 | AY69: 1.71 | AZ69: 1.46 | BC69: 1 | BD69: 1.13 | BE69: 1.38 | BF69: 0.82 | BG69: 0.65 | BH69: 3.62 | BI69: 2.1 | BJ69: 1.38 | BK69: 1.1 | BL69: 0.97 | BM69: 0.83 | BQ69: 30 | BR69: 26.93 | BS69: 29.59 | BT69: 0.91 | BU69: 0.82 | BV69: 77.65 | BW69: 44.96 | BX69: 29.59 | BY69: 23.67 | BZ69: 20.71 | CA69: 17.75 | CF69: Soma dos Demais | CG69: 0.7
B70: 8 < C ≤ 9 | C70: 0.31 | D70: =IF(AND($D$61<=9000,$D$61>8000),$D$61,0) -> 0 | E70: 0 | H70: 9 | I70: 0.51 | J70: 0 | K70: 0 | U70: 9 | V70: 0.31 | W70: 0 | X70: 0 | AB70: 9 a 11 | AC70: 0.7 | AD70: =IF(AND($AE$60>=9,AE60<=11),$AE$61,0) -> 0 | AP70: 3 | AQ70: 3.07 | AR70: 3.19 | AS70: 0.96 | AT70: 0.72 | AU70: 14.52 | AV70: 8.41 | AW70: 3.19 | AX70: 2.56 | AY70: 2.24 | AZ70: 1.92 | BC70: 1.1/2 | BD70: 1.58 | BE70: 2.02 | BF70: 0.78 | BG70: 0.7 | BH70: 5.31 | BI70: 3.07 | BJ70: 2.02 | BK70: 1.62 | BL70: 1.42 | BM70: 1.21
B71: 9 < C ≤ 10 | C71: 0.27 | D71: =IF(AND($D$61<=10000,$D$61>9000),$D$61,0) -> 0 | E71: 0 | H71: 10 | I71: 0.49 | J71: 0 | K71: 0 | U71: 10 a 11 | V71: 0.3 | W71: =IF(AND($X$60>=10,X60<=11),$X$61,0) -> 0 | X71: 0 | AB71: 12 a 14 | AC71: 0.68 | AD71: =IF(AND($AE$60>=12,AE60<=14),$AE$61,0) -> 0 | AP71: 4 | AQ71: 3.98 | AR71: 4.14 | AS71: 0.96 | AT71: 0.74 | AU71: 18.84 | AV71: 10.91 | AW71: 4.14 | AX71: 3.32 | AY71: 2.9 | AZ71: 2.49 | BC71: 2 | BD71: 1.94 | BE71: 2.39 | BF71: 0.81 | BG71: 0.76 | BH71: 6.28 | BI71: 3.63 | BJ71: 2.39 | BK71: 1.91 | BL71: 1.67 | BM71: 1.43
B72: 10 < C ≤ 75 | C72: 0.24 | D72: =IF(AND($D$61<=75000,$D$61>10000),$D$61,0) -> 0 | E72: 0 | H72: 11 | I72: 0.47 | J72: 0 | K72: 0 | U72: 12 a 15 | V72: 0.28 | W72: =IF(AND($X$60>=12,$X$60<=15),$X$61,0) -> 0 | X72: 0 | AB72: 15 a 16 | AC72: 0.67 | AD72: =IF(AND($AE$60>=15,AE60<=16),$AE$61,0) -> 0 | AP72: 5 | AQ72: 4.91 | AR72: 5.22 | AS72: 0.94 | AT72: 0.75 | AU72: 23.73 | AV72: 13.74 | AW72: 5.22 | AX72: 4.18 | AY72: 3.65 | AZ72: 3.13 | BC72: 3 | BD72: 2.91 | BE72: 3.63 | BF72: 0.8 | BG72: 0.76 | BH72: 9.53 | BI72: 5.52 | BJ72: 3.63 | BK72: 2.91 | BL72: 2.54 | BM72: 2.18
A73: Restaurante e Similares | B73: - | C73: 0.86 | D73: =D61 -> 0 | E73: 0 | H73: 12 | I73: 0.45 | J73: 0 | K73: 0 | U73: 16 a 20 | V73: 0.27 | W73: =IF(AND($X$60>=16,$X$60<=20),$X$61,0) -> 0 | X73: 0 | AB73: 17 a 22 | AC73: 0.66 | AD73: =IF(AND($AE$60>=17,AE60<=22),$AE$61,0) -> 0 | AP73: 7.1/2 | AQ73: 7.46 | AR73: 7.94 | AS73: 0.94 | AT73: 0.74 | AU73: 36.07 | AV73: 20.88 | AW73: 7.94 | AX73: 6.35 | AY73: 5.55 | AZ73: 4.76 | BC73: 4 | BD73: 3.82 | BE73: 4.97 | BF73: 0.77 | BG73: 0.77 | BH73: 13.03 | BI73: 7.54 | BJ73: 4.97 | BK73: 3.97 | BL73: 3.48 | BM73: 2.98
A74: Loja e Similares | B74: - | C74: 0.86 | D74: =D61 -> 0 | E74: 0 | H74: 13 | I74: 0.43 | J74: 0 | K74: 0 | U74: 21 a 25 | V74: 0.26 | W74: =IF(AND($X$60>=21,$X$60<=25),$X$61,0) -> 0 | X74: 0 | AB74: 23 a 30 | AC74: 0.65 | AD74: =IF(AND($AE$60>=23,AE60<=30),$AE$61,0) -> 0 | AP74: 10 | AQ74: 9.44 | AR74: 10.04 | AS74: 0.94 | AT74: 0.78 | AU74: 45.63 | AV74: 26.42 | AW74: 10.04 | AX74: 8.03 | AY74: 7.03 | AZ74: 6.02 | BC74: 5 | BD74: 4.78 | BE74: 5.62 | BF74: 0.85 | BG74: 0.77 | BH74: 14.76 | BI74: 8.54 | BJ74: 5.62 | BK74: 4.5 | BL74: 3.94 | BM74: 3.37
A75: Igreja e Similares | B75: - | C75: 0.86 | D75: =D61 -> 0 | E75: 0 | H75: 14 | I75: 0.41 | J75: 0 | K75: 0 | U75: Acima de 25 | V75: 0.25 | W75: =IF($X$60>25,$X$61,0) -> 0 | X75: 0 | AB75: 31 a 50 | AC75: 0.64 | AD75: =IF(AND($AE$60>=31,AE60<=50),$AE$61,0) -> 0 | BC75: 6 | BD75: 5.45 | BE75: 6.49 | BF75: 0.84 | BG75: 0.81 | BH75: 17.03 | BI75: 9.86 | BJ75: 6.49 | BK75: 5.19 | BL75: 4.54 | BM75: 3.89
A76: Hospital e Similares | B76: para os primeiros 50 kW | C76: 0.4 | D76: =IF((D61-50000)<=0,D61,50000) -> 0 | E76: 0 | H76: 15 | I76: 0.4 | J76: 0 | K76: 0 | AB76: Acima de 50 | AC76: 0.62 | AD76: =IF($AE$60>=50,$AE$61,0) -> 0 | BC76: 7.1/2 | BD76: 6.9 | BE76: 8.12 | BF76: 0.85 | BG76: 0.8 | BH76: 21.3 | BI76: 12.33 | BJ76: 8.12 | BK76: 6.49 | BL76: 5.68 | BM76: 4.87
B77: para o que exceder de 50 kW | C77: 0.5 | D77: =IF((D61-50000)<=0,0,(D61-D76)) -> 0 | E77: 0 | H77: 16 | I77: 0.39 | J77: 0 | K77: 0 | BC77: 10 | BD77: 9.68 | BE77: 10.76 | BF77: 0.9 | BG77: 0.76 | BH77: 28.24 | BI77: 16.35 | BJ77: 10.76 | BK77: 8.61 | BL77: 7.53 | BM77: 6.46
A78: Hotel e Similares | B78: para os primeiros 20 kW | C78: 0.5 | D78: =IF((D61-20000)<=0,D61,20000) -> 0 | E78: 0 | H78: 17 | I78: 0.38 | J78: 0 | K78: 0 | BC78: 12.1/2 | BD78: 11.8 | BE78: 12.04 | BF78: 0.98 | BG78: 0.78 | BH78: 31.59 | BI78: 18.29 | BJ78: 12.04 | BK78: 9.63 | BL78: 8.42 | BM78: 7.22
B79: para os seguintes 80 kW | C79: 0.4 | D79: =IF(D61<20000,0,IF(AND(D61>20000,D61<=80000),D61-D78,80000)) -> 0 | E79: 0 | H79: 18 | I79: 0.37 | J79: 0 | K79: 0 | BC79: 15 | BD79: 13.63 | BE79: 14.98 | BF79: 0.91 | BG79: 0.81 | BH79: 39.31 | BI79: 22.76 | BJ79: 14.98 | BK79: 11.98 | BL79: 10.48 | BM79: 8.99
B80: para o que exceder de 100 kW | C80: 0.3 | D80: =IF(D61<100000,0,D61-D79-D78) -> 0 | E80: 0 | H80: 19 | I80: 0.36 | J80: 0 | K80: 0 | BC80: 20 | BD80: 18.4 | BE80: 20.67 | BF80: 0.89 | BG80: 0.8 | BH80: 54.26 | BI80: 31.41 | BJ80: 20.67 | BK80: 16.54 | BL80: 14.47 | BM80: 12.4
A81: Garagem, Áreas de Serviço e Similares | B81: - | C81: 0.86 | D81: =D61 -> 0 | E81: 0 | H81: 20 | I81: 0.35 | J81: 0 | K81: 0 | BC81: 25 | BD81: 22.44 | BE81: 24.66 | BF81: 0.91 | BG81: 0.82 | BH81: 64.71 | BI81: 37.46 | BJ81: 24.66 | BK81: 19.73 | BL81: 17.26 | BM81: 14.79
A82: Escritório | B82: para os primeiros 20 kW | C82: 0.86 | D82: =IF(D61<20000,D61,20000) -> 0 | E82: 0 | H82: 21 | I82: 0.34 | J82: 0 | K82: 0 | AP82: Motor | AQ82: QTD carga | AR82: =SUMIF('CARGA INSTALADA_NDU 001'!N4:N29,"D6",'CARGA INSTALADA_NDU 001'!L4:L29) -> 0 | BC82: 30 | BD82: 26.93 | BE82: 29.59 | BF82: 0.91 | BG82: 0.82 | BH82: 77.65 | BI82: 44.96 | BJ82: 29.59 | BK82: 23.67 | BL82: 20.71 | BM82: 17.75
B83: para o que exceder de 20 kW | C83: 0.7 | D83: =IF(D61<20000,0,D61-D82) -> 0 | E83: 0 | F83: SOMA DA EXCEÇÃO D0 | H83: 22 | I83: 0.33 | J83: 0 | K83: 0 | AP83: Carga | AQ83: =SUMIF('CARGA INSTALADA_NDU 001'!N4:N29,"D6",'CARGA INSTALADA_NDU 001'!M4:M29) -> 0
A84: Escola e Similares | B84: para os primeiros 12 kW | C84: 0.86 | D84: =IF(D61<12000,D61,12000) -> 0 | E84: 0 | F84: =SUMIF('CARGA INSTALADA_NDU 001'!N4:N29,"D0",'CARGA INSTALADA_NDU 001'!M4:M29) -> 0 | H84: 23 | I84: 0.32 | J84: 0 | K84: 0 | AP84: Fator de Potecia | AQ84: 1 | AR84: 1 | AS84: =IF(AR82=AQ84,AQ83,0) -> 0
B85: para o que exceder de 12 kW | C85: 0.5 | D85: =IF(D61<12000,0,D61-D84) -> 0 | E85: 0 | F85: D0 | H85: 24 | I85: 0.31 | J85: 0 | K85: 0 | AP85: Quantidade | AQ85: 2 | AR85: 0.81 | AS85: =IF(AR82=AQ85,AQ83,0) -> 0
A86: Clube e Similares | B86: - | C86: 0.86 | D86: =D61 -> 0 | E86: 0 | F86: D1 | H86: Acima de 24 | I86: 0.3 | J86: =IF($J$61>24,$J$61,0) -> 0 | K86: 0 | AQ86: 3 a 5 | AR86: 0.7 | AS86: =IF(AND(AR82>=3,AR82<=5),AQ83,0) -> 0
A87: Barbearia, Salão de Beleza e Similares | B87: - | C87: 0.86 | D87: =D61 -> 0 | E87: 0 | F87: D2 | AQ87: >5 | AR87: 0.6 | AS87: =IF(AR82>5,AQ83,0) -> 0
A88: Banco e Similares | B88: - | C88: 0.86 | D88: =D61 -> 0 | E88: 0 | F88: D3 | H88: Apartamento | AP88: EXIBIR
A89: Canteiro de Obras e Similares | B89: - | C89: 0.86 | D89: =D61 -> 0 | E89: 0 | F89: D4 | H89: Kit-net | AP89: =INDEX(AR84:AR98,MATCH(LARGE(AS84:AS108,1),AS84:AS98,0),1) -> 
A90: Auditório, Salão de Exposição e Similares | B90: - | C90: 0.86 | D90: =D61 -> 0 | E90: 0 | F90: D5 | H90: Sala
A91: Quartel e Similares | B91: Para os primeiros 15 kW | C91: 1 | D91: =IF(D61<15000,D61,15000) -> 0 | E91: 0 | F91: D6 MONO
B92: Para o que exceder de 15 kW | C92: 0.4 | D92: =IF(D61<15000,0,D61-D91) -> 0 | E92: 0 | F92: D6 TRI | AP92: POTÊNCIA (CV) | AQ92: POTÊNCIA (W) APROXIMADA | AS92: CV | AT92: demanda | AY92: =MATCH(TRUE,INDIRECT(AZ92),0) ->  | AZ92: =IF(AW93="Monofásico","BR7:BR9",IF(AW93="Bifásico","BR10:BR12",IF(AW93="Trifásico","BR13:BR17",""))) -> 
E93: 0 | F93: D7 | AP93: 1/6 | AQ93: =736/6 -> 122.6666667 | AR93: =IF(OR(N4="D6 MONO",N4="D6 TRI"),_xlfn.XLOOKUP(K4,AP93:AP112,AQ93:AQ112,""),"") ->  | AS93: =#REF! ->  | AT93: =#REF! ->  | AW93: =#REF! ->  | AZ93: =IF(AW93="Monofásico","BN7:BR9",IF(AW93="Bifásico","BN10:BR12",IF(AW93="Trifásico","BN13:BR17",""))) ->  | BA93: =IF(#REF!>AV104,"",INDEX(INDIRECT(AZ93),AY92,1)) -> 
AP94: 1/4 | AQ94: =736/4 -> 184 | AR94: =IF(OR(N5="D6 MONO",N5="D6 TRI"),_xlfn.XLOOKUP(K5,AP94:AP113,AQ94:AQ113,""),"") ->  | AS94: =IF(AND($BN$6>AU94,$BN$6<=AV94),Y94,0) -> 0 | AU94: 0 | AV94: 6 | AW94: =AND($BN$6>AU94,$BN$6<=AV94) -> FALSE
AP95: 1/3 | AQ95: =736/3 -> 245.3333333 | AS95: 0 | AU95: 6 | AV95: 11 | AW95: FALSE
AP96: 1/2 | AQ96: =736/2 -> 368 | AS96: 0 | AU96: 11 | AV96: 15.4 | AW96: FALSE
AP97: 3/4 | AQ97: =736*(3/4) -> 552 | AS97: 0 | AU97: 0 | AV97: 17.6 | AW97: FALSE
A98: Descrição | B98: % | C98: % | D98: % | E98: CARGA 1 | F98: CARGA 2 | G98: CARGA 3 | AP98: 2/3 | AQ98: =736*(2/3) -> 490.6666667 | AS98: 0 | AU98: 17.6 | AV98: 22 | AW98: FALSE
A99: Residência | B99: =INDEX(C62:C72,MATCH(LARGE(D62:D72,1),D62:D72,0),1) -> 0.86 | E99: =LARGE(D62:D72,1) -> 0 | AA99: Carga Declarada (W) | AB99: Trafo | AC99: Potência (kVA) | AD99: GPS Trafo | AF99: MEDIDOR | AG99: GPS MEDIDOR | AI99: Demanda (W) | AJ99: Demanda (VA) | AP99: 1 | AQ99: 736 | AS99: 0 | AU99: 22 | AV99: 26.3 | AW99: FALSE
A100: Restaurante e Similares | B100: =C73 -> 0.86 | E100: =D73 -> 0 | AD100: X | AE100: Y | AG100: X | AH100: Y | AP100: 1.1/2 | AQ100: =1.5*736 -> 1104 | AS100: =IF(AND($BO$6>AU100,$BO$6<=AV100),Y100,0) -> 0 | AU100: 0 | AV100: 26.1 | AW100: =AND($BO$6>AU100,$BO$6<=AV100) -> FALSE
A101: Loja e Similares | B101: =C74 -> 0.86 | E101: =D74 -> 0 | AA101: ='[3]CARGA E DEMANDA_1'!#REF!*1000 ->  | AI101: ='[3]CARGA E DEMANDA_1'!#REF!*1000 ->  | AJ101: ='[3]CARGA E DEMANDA_1'!#REF!*1000 ->  | AP101: 2 | AQ101: =736*2 -> 1472 | AS101: =IF(AND($BO$6>AU101,$BO$6<=AV101),Y101,0) -> 0 | AU101: 26.1 | AV101: 32.6 | AW101: =AND($BO$6>AU101,$BO$6<=AV101) -> FALSE
A102: Igreja e Similares | B102: =C75 -> 0.86 | E102: =D75 -> 0 | AP102: 3 | AQ102: =736*3 -> 2208 | AS102: =IF(AND($BO$6>AU102,$BO$6<=AV102),Y102,0) -> 0 | AU102: 32.6 | AV102: 46.1 | AW102: =AND($BO$6>AU102,$BO$6<=AV102) -> FALSE
A103: Hospital e Similares | B103: 0.4 | C103: 0.5 | E103: =D76 -> 0 | F103: =D77 -> 0 | AP103: 4 | AQ103: =736*4 -> 2944 | AS103: =IF(AND($BO$6>AU103,$BO$6<=AV103),Y103,0) -> 0 | AU103: 46.1 | AV103: 65.8 | AW103: =AND($BO$6>AU103,$BO$6<=AV103) -> FALSE
A104: Hotel e Similares | B104: 0.5 | C104: 0.4 | D104: 0.3 | E104: =D78 -> 0 | F104: =D79 -> 0 | G104: =D80 -> 0 | AP104: 5 | AQ104: =736*5 -> 3680 | AS104: =IF(AND($BO$6>AU104,$BO$6<=AV104),Y104,0) -> 0 | AU104: 65.8 | AV104: 81.5 | AW104: =AND($BO$6>AU104,$BO$6<=AV104) -> FALSE
A105: Garagem, Áreas de Serviço e Similares | B105: =C81 -> 0.86 | E105: =D81 -> 0 | F105: =D81 -> 0 | AP105: 6 | AQ105: =736*6 -> 4416
A106: Escritório | B106: 0.86 | C106: 0.7 | E106: =D82 -> 0 | F106: =D83 -> 0 | AP106: 7.1/2 | AQ106: =7.5*736 -> 5520
A107: Escola e Similares | B107: 0.86 | C107: 0.5 | E107: =D82 -> 0 | F107: =D85 -> 0 | AP107: 10 | AQ107: =736*10 -> 7360
A108: Clube e Similares | B108: =C86 -> 0.86 | E108: =D86 -> 0 | AP108: 12.1/2 | AQ108: =12.5*736 -> 9200
A109: Barbearia, Salão de Beleza e Similares | B109: =C87 -> 0.86 | E109: 0 | AP109: 15 | AQ109: =736*15 -> 11040
A110: Banco e Similares | B110: =C88 -> 0.86 | E110: 0 | AP110: 20 | AQ110: =736*20 -> 14720
A111: Canteiro de Obras e Similares | B111: =C89 -> 0.86 | E111: 0 | AP111: 25 | AQ111: =736*25 -> 18400
A112: Auditório, Salão de Exposição e Similares | B112: =C90 -> 0.86 | E112: 0 | AP112: 30 | AQ112: =736*30 -> 22080
A113: Quartel e Similares | B113: 1 | C113: 0.4 | E113: 0 | F113: =D92 -> 0
A116: LISTA SUSPENSA
A117: Auditório, Salão de Exposição e Similares
A118: Banco e Similares
A119: Barbearia, Salão de Beleza e Similares
A120: Canteiro de Obras e Similares
A121: Clube e Similares
A122: Escola e Similares
A123: Escritório
A124: Garagem, Áreas de Serviço e Similares
A125: Hospital e Similares
A126: Hotel e Similares
A127: Igreja e Similares
A128: Loja e Similares
A129: Quartel e Similares
A130: Residência
A131: Restaurante e Similares

Sheet CARGA INSTALADA_NDU 002 (hidden)
B1: UC | C1: =IF([2]DADOS!B23="", "Ligação Nova", [2]DADOS!B23) -> Ligação Nova | F1: RELAÇÃO DE CARGA INSTALADA - NDU 002 | O1: Ramo de atividade
B2: UC | C2: =IF([2]DADOS!I22="Não","ATENÇÃO! Apresentar outro memorial esse não pode ser utilizado",IF(C1="Ligação Nova","-",IF([2]DADOS!E23="","",[2]DADOS!E23))) -> - | F2: ITEM | G2: EQUIPAMENTOS | K2: POTÊNCIA (W) | L2: QUANT. | M2: TOTAL (W) | O2: RAMO DE ATIVIDADE
F3: 1 | M3: =IF(L3="","",K3*L3) ->  | O3: FATOR DE DEMANDA MÁXIMO: | R3: =IFERROR(VLOOKUP(Q2,'[2]Cálculo trafo'!B4:H168,7,0),"") -> 
F4: 2 | O4: CARGA INSTALADA TOTAL: | R4: =M29 -> 0 | S4: W
F5: 3 | O5: DEMANDA TOTAL (KW) | V5: =IF(R4=0,"",(R3*R4)/1000) ->  | W5: KW
F6: 4 | O6: DEMANDA TOTAL (KVA) | S6: FATOR DE POTÊNCIA: | U6: 0.92 | V6: =IFERROR(V5/U6,"") ->  | W6: KVA
F7: 5
F8: 6 | O8: INFORMAÇÕES DA DEMANDA E OPÇÃO TARIFÁRIA
F9: 7 | O9: OPÇÃO TARIFÁRIA: | S9: =IF(Q9="Optante B", "Obs.: Não possui demanda contratada", "DEMANDA A SER CONTRATADA (KW):") -> DEMANDA A SER CONTRATADA (KW):
F10: 8 | O10: =IF(Q9=[2]Listas!C2,"DEMANDA PONTA","") ->  | S10: =IF(Q9=[2]Listas!C2,"DEMANDA FORA PONTA","") -> 
F11: 9 | O11: =IF(Q9=Listas!A2,"ATENÇÃO!","") -> 
F12: 10 | O12: =IF(Q9=Listas!A2,"OBSERVAÇÕES IMPORTANTES:","") -> 
F13: 11 | O13: =IF(Q9=[2]Listas!A2,"1. Opção de OPTANTE B é disponível somente para transformador de 75kVA e/ou 112,5kVA (REN ANEEL 1.059, §3,II);","") -> 
F14: 12
F15: 13 | O15: =IF(Q9=Listas!A2,"2. Nessa opção não é possível receber de outra unidade consumidora com geração de energia elétrica ou ratear créditos de energia caso seja geradora (REN ANEEL 1.059, §3,III);","") -> 
F16: 14
F17: 15
F18: 16
F19: 17
F20: 18
F21: 19
F22: 20
F23: 21
F24: 22
F25: 23
F26: 24
F27: 25
F28: 26
F29: CARGA INSTALADA TOTAL (W) | M29: =SUM(M3:M28) -> 0

Sheet POSTO DE TRANSFORMAÇÃO
A1: PONTO DE DERIVAÇÃO
A2: COORDENADAS EM UTM (Ponto mais próximo da rede energisa): | C2: FUSO | D2: X: | G2: =IF(DADOS!F19="","",_xlfn.CONCAT("LOCALIZAÇÃO: ",DADOS!H19," - ",DADOS!F19)) -> 
D3: Y: | G3: ZONA: | H3: =IF(DADOS!H18="","",DADOS!H18) -> 
A4: TENSÃO DE ATENDIMENTO (KV): | E4: PARA-RAIO | G4: =H16 -> 
A5: PARÂMETROS DE ENTRADA
A6: TENSÃO PRIMÁRIA | C6: =IF(D4="","",D4) ->  | D6: kV | E6: SEÇÃO DO CONDUTOR DO RAMAL DE CONEXÃO:
A7: DISTÂNCIA ENTRE A DERIVAÇÃO E O TRANSFORMADOR : | G7: m | H7: =IF(AND(H3="RURAL",DADOS!F19="TO",F7>140),"Obs.:Apresentar medição em fronteira.","") ->  | P7: =IF(F7>140,"FALSO","VERDADEIRO") -> VERDADEIRO
A8: PARÂMETROS DE SAÍDA
A9: TENSÃO SECUNDÁRIA: | D9: V | E9: CORRENTE: | F9: =IF(OR(C6="", F11=0,F11=""),"",IF(F11>0,F11/((C6)*SQRT(3)))) ->  | G9: A | H9: =IF(DADOS!A25=Listas!A37,IF(AND('CARGA INSTALADA_NDU 002'!Q9=Listas!C3,'POSTO DE TRANSFORMAÇÃO'!D13>K12),"OBS.: Rever opção de consumo (OPTANTE B) , pois, essa opção só é permitida para transformador de 75kVA e/ou 112,5KVA",""),IF(AND('CARGA INSTALADA_NDU 001'!R33=Listas!C3,'POSTO DE TRANSFORMAÇÃO'!D13>K12),"OBS.: Rever opção de consumo (OPTANTE B) , pois, essa opção só é permitida para transformador de 75kVA e/ou 112,5KVA","")) -> 
A10: CARGA INSTALADA: | C10: =IF(DADOS!A25=Listas!A36,'CARGA INSTALADA_NDU 001'!M30,'CARGA INSTALADA_NDU 002'!M29)/1000 -> 0 | D10: kW | E10: DEMANDA: | F10: =IF(DADOS!A25=Listas!A36,'CARGA INSTALADA_NDU 001'!S30,'CARGA INSTALADA_NDU 002'!V5) ->  | G10: kW
F11: =IF(DADOS!A25=Listas!A36,'CARGA INSTALADA_NDU 001'!X30,'CARGA INSTALADA_NDU 002'!V6) ->  | G11: kVA | K11: 75
A12: DIMENSIONAMENTO DO POSTO DE TRANSFORMAÇÃO | K12: 112.5
A13: TRANSFORMADOR A SER UTILIZADO: (SUGERIDO PELA CONCESSIONÁRIA) | D13: =IF(OR(F11="",F11=0),"",IF(F11<=75,75,IF(AND(F11>75,F11<=112.5),112.5,IF(AND(F11>112.5,F11<=150),150,IF(AND(F11>150,F11<=225),225,IF(AND(F11>225,F11<=300),300,"SE Abrigada")))))) ->  | E13: kVA | F13: CÓDIGO DA PRANCHA PRÉ APROVADA:
A14: DESEJA UTILIZAR TRANSFORMADOR SUGERIDO? | F14: =IF(D14="","",IF(AND(D13<=75,D14="SIM"),"Obs.: Transformador particular SEM INCORPORAÇÃO pela concessionária",IF(D14="SIM","","DIGITE A POTÊNCIA DO TRANSFORMADOR"))) ->  | I14: =IF(D14="","",IF(D14="SIM","","kVA")) -> 
A15: POSTE DT | B15: ALTURA(m) : | E15: m | F15: =IF(H14="","",IF(H14<=75,"Obs.: Transformador particular SEM INCORPORAÇÃO pela concessionária",IF(H14>300,"SE Abrigada",""))) -> 
B16: ESFORÇO (daN) : | E16: daN | F16: PARA-RAIO | H16: =IF(C6="","",IF(C6='Lista - trafo'!E18,'Lista - trafo'!A24,IF(C6='Lista - trafo'!E19,'Lista - trafo'!A25,IF(C6='Lista - trafo'!E20,'Lista - trafo'!A26,IF(C6='Lista - trafo'!E21,'Lista - trafo'!A27,"-"))))) -> 
A17: DIMENSIONAMENTO DO CIRCUITO SECUNDÁRIO
A18: DISJUNTOR RECOMENDADO: | D18: =IF(D14="SIM",IF(D13="","",IF(C9="380/220",_xlfn.XLOOKUP(D13,'Lista - trafo'!$T$5:$T$12,'Lista - trafo'!W5:W12,"ERRO",0,1),_xlfn.XLOOKUP(D13,'Lista - trafo'!T21:T28,'Lista - trafo'!W21:W28,"ERRO",0,1))),IF(H14="","",IF(C9="380/220",_xlfn.XLOOKUP(H14,'Lista - trafo'!$T$5:$T$12,'Lista - trafo'!W5:W12,"ERRO",0,1),_xlfn.XLOOKUP(H14,'Lista - trafo'!T21:T28,'Lista - trafo'!W21:W28,"ERRO",0,1)))) ->  | F18: A | G18: CONDUTOR DE ATERRAMENTO
A19: CONDUTOR | B19: CLASSE DE ISOLAÇÃO: | G19: =IF(D18="","",IF(D18>0, 50, "")) ->  | I19: mm²
B20: SEÇÃO DO CONDUTOR: | D20: =IF(D14="SIM",IF(AND(C9='Lista - trafo'!A12,D19='Lista - trafo'!C11),VLOOKUP(D13,'Lista - trafo'!T25:Z28,5,0),IF(AND(C9='Lista - trafo'!A12,D19='Lista - trafo'!C12),VLOOKUP(D13,'Lista - trafo'!T25:Z28,7,0),IF(AND(C9='Lista - trafo'!A11,D19='Lista - trafo'!C11),VLOOKUP(D13,'Lista - trafo'!T9:Z12,5,0),IF(AND(C9='Lista - trafo'!A11,D19='Lista - trafo'!C12),VLOOKUP(D13,'Lista - trafo'!T9:Z12,7,0),"-")))),IF(AND(C9='Lista - trafo'!A12,D19='Lista - trafo'!C11),VLOOKUP(H14,'Lista - trafo'!T25:Z28,5,0),IF(AND(C9='Lista - trafo'!A12,D19='Lista - trafo'!C12),VLOOKUP(H14,'Lista - trafo'!T25:Z28,7,0),IF(AND(C9='Lista - trafo'!A11,D19='Lista - trafo'!C11),VLOOKUP(H14,'Lista - trafo'!T9:Z12,5,0),IF(AND(C9='Lista - trafo'!A11,D19='Lista - trafo'!C12),VLOOKUP(H14,'Lista - trafo'!T9:Z12,7,0),"-"))))) -> - | F20: mm² | G20: ELETRODUTO (mm): | I20: =IF(D14="SIM",IF(AND(C9='Lista - trafo'!A12,D19='Lista - trafo'!C11),VLOOKUP(D13,'Lista - trafo'!T25:AA28,6,0),IF(AND(C9='Lista - trafo'!A12,D19='Lista - trafo'!C12),VLOOKUP(D13,'Lista - trafo'!T25:AA28,8,0),IF(AND(C9='Lista - trafo'!A11,D19='Lista - trafo'!C11),VLOOKUP(D13,'Lista - trafo'!T9:AA12,6,0),IF(AND(C9='Lista - trafo'!A11,D19='Lista - trafo'!C12),VLOOKUP(D13,'Lista - trafo'!T9:AA12,8,0),"-")))),IF(AND(C9='Lista - trafo'!A12,D19='Lista - trafo'!C11),VLOOKUP(H14,'Lista - trafo'!T25:AA28,6,0),IF(AND(C9='Lista - trafo'!A12,D19='Lista - trafo'!C12),VLOOKUP(H14,'Lista - trafo'!T25:AA28,8,0),IF(AND(C9='Lista - trafo'!A11,D19='Lista - trafo'!C11),VLOOKUP(H14,'Lista - trafo'!T9:AA12,6,0),IF(AND(C9='Lista - trafo'!A11,D19='Lista - trafo'!C12),VLOOKUP(H14,'Lista - trafo'!T9:AA12,8,0),"-"))))) -> -
A21: MEDIÇÃO
A22: MEDIDOR: | B22: =IF(D14="SIM",IF(D13="","",IF(C9="380/220",_xlfn.XLOOKUP(D13,'Lista - trafo'!T5:T12,'Lista - trafo'!U5:U12,"ERRO",0,1),_xlfn.XLOOKUP(D13,'Lista - trafo'!T21:T28,'Lista - trafo'!U21:U28,"ERRO",0,1))),IF(D13="","",IF(C9="380/220",_xlfn.XLOOKUP(H14,'Lista - trafo'!T5:T12,'Lista - trafo'!U5:U12,"ERRO",0,1),_xlfn.XLOOKUP(H14,'Lista - trafo'!T21:T28,'Lista - trafo'!U21:U28,"ERRO",0,1)))) ->  | F22: TRANSFORMADOR DE CORRENTE (TC): | I22: =IF(D14="SIM",IF(D13="","",IF(C9="380/220",_xlfn.XLOOKUP(D13,'Lista - trafo'!T5:T12,'Lista - trafo'!V5:V12,"ERRO",0,1),_xlfn.XLOOKUP(D13,'Lista - trafo'!T21:T28,'Lista - trafo'!V21:V28,"ERRO",0,1))),IF(D13="","",IF(C9="380/220",_xlfn.XLOOKUP(H14,'Lista - trafo'!T5:T12,'Lista - trafo'!V5:V12,"ERRO",0,1),_xlfn.XLOOKUP(H14,'Lista - trafo'!T21:T28,'Lista - trafo'!V21:V28,"ERRO",0,1)))) ->  | L22: =IF(OR(D13="SE Abrigada",D13="Atendimento em baixa tensão"),"ALERTA_3",IF(AND(DADOS!I21=2,DADOS!I22="Não"),"ALERTA_2",IF(F7>140,"ALERTA",IF(DADOS!H18="","VAZIO",DADOS!H18)))) -> VAZIO
A23: ESPAÇO DISPONÍVEL PARA ASSINATURA DO RESPONSÁVEL TÉCNICO E/OU APRESENTAR LOGO DA EMPRESA
A31: =DADOS!A46 -> NOME:
A32: =DADOS!A47 -> CPF:
A33: =DADOS!A48 -> Nº DE REGISTRO PROFISSIONAL: -

Sheet Cálculo trafo (hidden)
A1: TABELA 13 - FATORES DE DEMANDA POR RAMO DE ATIVIDADE PRODUTIVA
A2: COD. | B2: Ramo de Atividade | C2: Intervalo Carga Instalada | D2: FD Máx | E2: FD Típico | F2: FC Típico | G2: FATOR DE DEMADA | H2: CÁLCULOS
C3: (kW) | D3: (%) | E3: (%) | F3: (%) | G3: =IF(DADOS!A25=Listas!A36,'CARGA INSTALADA_NDU 001'!M30,'CARGA INSTALADA_NDU 002'!M29)/1000 -> 0
A4: 1 | B4: Indústria de extração e tratamento de minerais | D4: 0.7 | E4: 43 | F4: 26 | H4: =D4 -> 0.7
A5: 2 | B5: Extração de minérios de ferro | C5: ≤500 | D5: 0.54 | E5: 36 | F5: 34 | G5: =IF($G$3<=500,D5,0) -> 0.54 | H5: =IF(G5=0,G6,G5) -> 0.54
C6: >500 | D6: 0.67 | E6: 49 | F6: 35 | G6: =IF($G$3>500,D6,0) -> 0
A7: 3 | B7: Extração de minérios de metais não ferrosos | D7: 0.85 | E7: 78 | F7: 76 | H7: =D7 -> 0.85
A8: 4 | B8: Extração de minerais para fabricação de adubos fertilizantes e para elaboração de outros produtos químicos | D8: 0.54 | E8: 37 | F8: 29 | H8: =D8 -> 0.54
A9: 5 | B9: Extração de pedras e outros minerais para construção | D9: 0.67 | E9: 49 | F9: 16 | H9: 0.67
A10: 6 | B10: Extração de pedras e outros minerais não metálicos | D10: 0.86 | E10: 43 | F10: 14 | H10: 0.86
A11: 7 | B11: Aparelhamento de pedras para construção e execução de trabalhos em mármore, ardósia, granito e outras pedras | D11: 0.63 | E11: 55 | F11: 30 | H11: 0.63
A12: 8 | B12: Britamento de pedras | C12: ≤130 | D12: 0.57 | E12: 39 | F12: 11 | G12: =IF($G$3<=130,D12,0) -> 0.57 | H12: =IF(G12=0,G13,G12) -> 0.57
C13: >130 | D13: 0.78 | E13: 54 | F13: 17 | G13: =IF($G$3>130,D13,0) -> 0
A14: 9 | B14: Fabricação de cal | D14: 0.91 | E14: 52 | F14: 18 | H14: =D14 -> 0.91
A15: 10 | B15: Fabricação de telhas, tijolos e outros artigos de barro cozido exclusive cerâmica | C15: ≤160 | D15: 0.97 | E15: 71 | F15: 13 | G15: =IF($G$3<=160,D15,0) -> 0.97 | H15: =IF(G15=0,G16,G15) -> 0.97
C16: >160 | D16: 0.91 | E16: 60 | F16: 30 | G16: =IF($G$3>160,D16,0) -> 0
A17: 11 | B17: Fabricação de material cerâmico - exclusive de barro cozido | C17: ≤100 | D17: 0.96 | E17: 76 | F17: 10 | G17: =IF($G$3<=100,D17,0) -> 0.96 | H17: =IF(G17=0,G18,G17) -> 0.96
C18: >100 | D18: 0.93 | E18: 66 | F18: 39 | G18: =IF($G$3>100,D18,0) -> 0
A19: 12 | B19: Fabricação de cimento | D19: 0.66 | E19: 64 | F19: 54 | H19: =D19 -> 0.66
A20: 13 | B20: Fabricação de peças, ornatos e estruturas de cimento, gesso e amianto | D20: 0.37 | E20: 23 | F20: 26 | H20: =D20 -> 0.37
A21: 14 | B21: Beneficiamento e preparação de minerais não metálicos, não associados à extração | D21: 0.78 | E21: 46 | F21: 51 | H21: 0.78
A22: 15 | B22: Indústria metalúrgica | D22: 0.65 | E22: 43 | F22: 30 | H22: 0.65
A23: 16 | B23: Produção de ferro gusa | D23: 0.83 | E23: 67 | F23: 79 | H23: 0.83
A24: 17 | B24: Produção de laminados de aço - inclusive de ferro ligas | D24: 0.75 | E24: 46 | F24: 24 | H24: 0.75
A25: 18 | B25: Produção de canos e tubos de ferro e aço | D25: 0.37 | E25: 30 | F25: 40 | H25: 0.37
A26: 19 | B26: Produção de fundidos de ferro e aço | C26: ≤150 | D26: 0.5 | E26: 33 | F26: 19 | G26: =IF($G$3<=150,D26,0) -> 0.5 | H26: =IF(G26=0,G27,G26) -> 0.5
C27: >150 | D27: 0.8 | E27: 55 | F27: 33 | G27: =IF($G$3>150,D27,0) -> 0
A28: 20 | B28: Produção de canos e tubos de metais e de ligas de metais não ferrosos | D28: 0.54 | E28: 45 | F28: 33 | H28: =D28 -> 0.54
A29: 21 22 | B29: Fabricação de estruturas metálicas | D29: 0.74 | E29: 39 | F29: 13 | H29: =D29 -> 0.74
A30: 22 | B30: Fabricação de artefatos de trefilados de ferro e aço e de metais não ferrosos exclusive móveis | D30: 0.68 | E30: 53 | F30: 19 | H30: 0.68
A31: 23 24 | B31: Estamparia, funilaria e latoaria | D31: 0.65 | E31: 26 | F31: 22 | H31: 0.65
A32: 24 | B32: Serralheria, fabricação de tanques, reservatórios e outros recipientes metálicos e de artigos de caldeireiro | D32: 0.48 | E32: 27 | F32: 23 | H32: 0.48
A33: 25 | B33: Tempera e cementação de aço, recozimento de arames e serviços de galvanotécnica | D33: 0.83 | E33: 52 | F33: 29 | H33: 0.83
A34: 26 | B34: Indústria mecânica | D34: 0.47 | E34: 29 | F34: 31 | H34: 0.47
A35: 27 | B35: Fabricação de máquinas motrizes não elétricas e de equipamentos de transmissão para fins industriais, inclusive peças e acessórios | D35: 0.19 | E35: 17 | F35: 50 | H35: 0.19
A36: 28 | B36: Fabricação de máquinas, aparelhos e equipamentos industriais para instalações hidráulicas, térmicas, de ventilação e refrigeração, equipadas ou não com motores elétricos, inclusive peças e acessórios | D36: 0.31 | E36: 27 | F36: 22 | H36: 0.31
A37: 29 | B37: Fabricação de produtos de padaria, confeitaria e pastelaria (inclusive panificadoras e similares) | D37: 0.82 | E37: 74 | F37: 28 | H37: 0.82
A38: 30 | B38: Fabricação de massas alimentícias e biscoitos | D38: 0.61 | E38: 54 | F38: 57 | H38: 0.61
A39: 31 | B39: Refinação e preparação de óleos e gorduras vegetais, produção de manteiga de cacau e de gordura de origem animal, destinadas à alimentação | D39: 0.89 | E39: 38 | F39: 39 | H39: 0.89
A40: 32 | B40: Fabricação de gelo | D40: 0.91 | E40: 75 | F40: 41 | H40: 0.91
A41: 33 | B41: Fabricação de rações balanceadas e de alimentos preparados para animais, inclusive farinha de carne, sangue, osso e peixe | D41: 0.85 | E41: 45 | F41: 29 | H41: 0.85
A42: 34 | B42: Indústria de bebidas | D42: 0.62 | E42: 41 | F42: 19 | H42: 0.62
A43: 35 | B43: Fabricação de aguardentes, licores e outras bebidas alcoólicas | D43: 0.68 | E43: 49 | F43: 43 | H43: 0.68
A44: 36 | B44: Fabricação de cervejas, chopes e malte | D44: 0.5 | E44: 27 | F44: 27 | H44: 0.5
A45: 37 | B45: Fabricação de bebidas não alcoólicas | D45: 0.57 | E45: 47 | F45: 69 | H45: 0.57
A46: 38 | B46: Indústria de fumo | D46: 0.96 | E46: 72 | F46: 32 | H46: 0.96
A47: 39 40 | B47: Fabricação de cigarros | D47: 0.43 | E47: 39 84 | F47: 59 51 | H47: 0.43
A48: 40 | B48: Indústria de utilidade pública, irrigação, água, esgoto e saneamento | D48: 0.95 | H48: 0.95
A49: 41 | B49: Distribuição de gás | D49: 0.57 | E49: 51 | F49: 40 | H49: 0.57
A50: 42 | B50: Tratamento e distribuição de água | C50: ≤100 | D50: 1 | E50: 92 | F50: 30 | G50: =IF($G$3<=100,D50,0) -> 1 | H50: =IF(G50=0,G51,G50) -> 1
C51: >100 | D51: 0.95 | E51: 75 | F51: 72 | G51: =IF($G$3>100,D51,0) -> 0
A52: 43 | B52: Indústria de construção | D52: 0.59 | E52: 36 | F52: 32 | H52: =D52 -> 0.59
A53: 44 | B53: Construção Civil | C53: ≤190 | D53: 0.8 | E53: 39 | F53: 31 | G53: =IF($G$3<=190,D53,0) -> 0.8 | H53: =IF(G53=0,G54,G53) -> 0.8
C54: >190 | D54: 0.3 | E54: 14 | F54: 33 | G54: =IF($G$3>190,D54,0) -> 0
A55: 45 | B55: Pavimentação, terraplenagem e construção de estradas | C55: ≤200 | D55: 0.9 | E55: 65 | F55: 21 | G55: =IF($G$3<=200,D55,0) -> 0.9 | H55: =IF(G55=0,G56,G55) -> 0.9
C56: >200 | D56: 0.79 | E56: 52 | F56: 41 | G56: =IF($G$3>200,D56,0) -> 0
A57: 46 | B57: Construção de obras de arte (viadutos, mirantes, etc.) | D57: 0.14 | E57: 11 | F57: 32 | H57: =D57 -> 0.14
A58: 47 | B58: Agricultura e criação animal | D58: 0.77 | E58: 43 | F58: 33 | H58: =D58 -> 0.77
A59: 48 | B59: Agricultura | D59: 0.91 | E59: 44 | F59: 30 | H59: 0.91
A60: 49 | B60: Agricultura (irrigação) | D60: 0.97 | E60: 54 | F60: 19 | H60: 0.97
A61: 50 | B61: Criação animal exc1usive bovinocultura (índices baseados na avicultura) | D61: 0.99 | E61: 61 | F61: 70 | H61: 0.99
A62: 51 | B62: Criação animal - suinocultura | D62: 0.91 | E62: 52 | F62: 24 | H62: 0.91
A63: 52 | B63: Bovinocultura | D63: 0.39 | E63: 22 | F63: 31 | H63: 0.39
A64: 53 | B64: Florestamento e reflorestamento | D64: 0.63 | E64: 32 | F64: 26 | H64: 0.63
A65: 54 | B65: Serviços de transporte | D65: 0.56 | E65: 28 | F65: 41 | H65: 0.56
A66: 55 | B66: Transportes ferroviários | D66: 0.66 | E66: 42 | F66: 49 | H66: 0.66
A67: 56 | B67: Transportes rodoviários de carga | D67: 0.24 | E67: 16 | F67: 34 | H67: 0.24
A68: 57 | B68: Transportes urbanos de passageiros - inclusive metroviários | D68: 0.78 | E68: 26 | F68: 41 | H68: 0.78
A69: 58 | B69: Serviços de comunicação | D69: 0.81 | E69: 43 | F69: 46 | H69: 0.81
A70: 59 | B70: Telegrafia, telefone e correios | C70: <150 | D70: 0.78 | E70: 40 | F70: 45 | G70: =IF($G$3<150,D70,0) -> 0.78 | H70: =IF(G70=0,G71,G70) -> 0.78
C71: >150 | D71: 0.92 | E71: 44 | F71: 55 | G71: =IF($G$3>150,D71,0) -> 0
A72: 60 | B72: Radiodifusão e televisão | D72: 0.73 | E72: 44 | F72: 37 | H72: =D72 -> 0.73
A73: 61 | B73: Serviços de alojamento e alimentação | D73: 0.81 | E73: 48 | F73: 46 | H73: =D73 -> 0.81
A74: 62 | B74: Hotéis e motéis | D74: 0.74 | E74: 35 | F74: 40 | H74: 0.74
A75: 63 | B75: Restaurantes e lanchonetes | D75: 0.88 | E75: 60 | F75: 52 | H75: 0.88
A76: 64 | B76: Fabricação de máquinas, ferramentas, máquinas operatrizes e aparelhos industriais acoplados ou não a motores elétricos | D76: 0.76 | E76: 30 | F76: 30 | H76: 0.76
A77: 65 | B77: Fabricação de peças, acessórios, utensílios e ferramentas para máquinas industriais | D77: 0.63 | E77: 38 | F77: 19 | H77: 0.63
A78: 66 | B78: Fabricação de máquinas, aparelhos e materiais para agricultura, avicultura, apicultura, criação de outros pequenos animais e obtenção de produtos de origem animal, e para beneficiamento ou preparação de produtos agrícolas - peças e acessórios | D78: 0.48 | E78: 28 | F78: 30 | H78: 0.48
A79: 67 | B79: Fabricação de cronômetros e relógios, elétricos ou não - inclusive a fabricação de peças | D79: 0.47 | E79: 33 | F79: 38 | H79: 0.47
A80: 68 | B80: Reparação ou manutenção de máquinas, aparelhos e equipamentos industriais, agrícolas e de máquinas de terraplenagem | D80: 0.43 | E80: 29 | F80: 27 | H80: 0.43
A81: 69 | B81: Indústria de material elétrico e de comunicações fabricação de aparelhos e utensílios elétricos para fins industriais e comerciais, inclusive peças e acessórios | D81: 0.84 | E81: 70 | F81: 32 | H81: 0.84
A82: 70 | B82: Indústria de material de transporte | D82: 0.45 | E82: 37 | F82: 36 | H82: 0.45
A83: 71 | B83: Reparação de veículos ferroviários | D83: 0.38 | E83: 35 | F83: 40 | H83: 0.38
A84: 72 | B84: Fabricação de carrocerias para veículos automotores- exclusive chassis | D84: 0.51 | E84: 38 | F84: 31 | H84: 0.51
A85: 73 | B85: Indústria de madeira | D85: 0.55 | E85: 38 | F85: 12 | H85: 0.55
A86: 74 | B86: Desdobramento da madeira | D86: 0.51 | E86: 36 | F86: 12 | H86: 0.51
A87: 75 | B87: Fabricação de chapas e placas de madeira, aglomerada ou prensada e de madeira compensada, revestida ou não com material plástico | D87: 0.59 | E87: 40 | F87: 11 | H87: 0.59
A88: 76 | B88: Indústria de mobiliário, fabricação de móveis de madeira, vime e junco | D88: 0.83 | E88: 42 | F88: 22 | H88: 0.83
A89: 77 | B89: Indústria de celulose, papel e papelão fabricação de papel, papelão, cartolina e cartão | D89: 0.82 | E89: 77 | F89: 71 | H89: 0.82
A90: 78 | B90: Indústria de borracha recondicionamento de pneumáticos | D90: 0.68 | E90: 58 | F90: 26 | H90: 0.68
A91: 79 | B91: Indústria de couros, peles e produtos similares curtimento e outras preparações de couros e peles - inclusive subprodutos | D91: 0.64 | E91: 51 | F91: 32 | H91: 0.64
A92: 80 | B92: Indústria química | D92: 0.67 | E92: 48 | F92: 23 | H92: 0.67
A93: 81 | B93: Produção de elementos Químicos e de produtos químicos inorgânicos, orgânicos, orgânicos inorgânicos, exclusive produtos derivados do processamento do petróleo, das rochas oleígenas, de carvão-de-pedra e de madeira | D93: 0.92 | E93: 54 | F93: 36 | H93: 0.92
A94: 82 | B94: Fabricação de asfalto | D94: 0.79 | E94: 52 | F94: 22 | H94: 0.79
A95: 83 | B95: Fabricação de resinas de fibras e de fios artificiais e sintéticos e de borracha e látex sintéticos | D95: 0.56 | E95: 48 | F95: 24 | H95: 0.56
A96: 84 | B96: Produção de óleos, gorduras e ceras vegetais e animais, em banho de óleos, essenciais vegetais e outros produtos da destilação da madeira - exclusive refinação de produtos alimentares (destilaria de álcool proveniente de madeira) | D96: 0.62 | E96: 43 | F96: 22 | H96: 0.62
A97: 85 | B97: Fabricação de concentrados aromáticos naturais, artificiais e sintéticos, inclusive mesclas | D97: 0.21 | E97: 15 | F97: 13 | H97: 0.21
A98: 86 | B98: Fabricação de preparados para limpeza e polimento, desinfetantes, inseticidas, germicidas e fungicidas | D98: 0.77 | E98: 66 | F98: 28 | H98: 0.77
A99: 87 | B99: Fabricação de adubos e fertilizantes e corretivos de solo | D99: 0.84 | E99: 57 | F99: 19 | H99: 0.84
A100: 88 | B100: Indústria de produtos farmacêuticos e veterinários | D100: 0.68 | E100: 39 | F100: 24 | H100: 0.68
A101: 89 | B101: Indústria de perfumaria, sabões e velas fabricação de sabões, detergentes e glicerinas | D101: 0.85 | E101: 46 | F101: 29 | H101: 0.85
A102: 90 | B102: Indústria de produtos de matérias plásticas | D102: 0.85 | E102: 41 | F102: 48 | H102: 0.85
A103: 91 | B103: Fabricação de artigos de material plástico para usos - exclusive embalagem e acondicionamento | D103: 0.85 | F103: 30 | H103: 0.85
A104: 92 | B104: Indústria têxtil | D104: 0.81 | E104: 52 | F104: 43 | H104: 0.81
A105: 93 | B105: Beneficiamento de fibras têxteis vegetais, artificiais e de materiais têxteis de origem animal, fabricação de estopa de materiais para estofados e recuperação de resíduos têxteis | D105: 0.6 | E105: 44 | F105: 36 | H105: 0.6
A106: 94 | B106: Fiação e Tecelagem | D106: 0.91 | E106: 57 | F106: 46 | H106: 0.91
A107: 95 | B107: Malharia e fabricação de tecidos elásticos | D107: 0.92 | E107: 55 | F107: 47 | H107: 0.92
A108: 96 | B108: Indústria de vestuário, calçados e artefatos de tecidos | D108: 0.49 | E108: 43 | F108: 27 | H108: 0.49
A109: 97 | B109: Confecções de roupas e agasalhos | D109: 0.28 | E109: 22 | F109: 25 | H109: 0.28
A110: 98 | B110: Fabricação de calçados | D110: 0.69 | E110: 63 | F110: 29 | H110: 0.69
A111: 99 | B111: Indústria de produtos alimentares | D111: 0.77 | E111: 56 | F111: 38 | H111: 0.77
A112: 100 | B112: Beneficiamento de café, cereais e produtos afins | C112: ≤130 | D112: 0.97 | E112: 56 | F112: 19 | G112: =IF($G$3<130,D112,0) -> 0.97 | H112: =IF(G112=0,G113,G112) -> 0.97
C113: >130 | D113: 0.6 | E113: 35 | F113: 27 | G113: =IF($G$3>130,D113,0) -> 0
A114: 101 | B114: Moagem de trigo | D114: 0.92 | E114: 72 | F114: 71 | H114: =D114 -> 0.92
A115: 102 | B115: Torrefação e moagem de café | D115: 0.82 | E115: 77 | F115: 19 | H115: =D115 -> 0.82
A116: 103 | B116: Fabricação de produtos de milho, exclusive óleos | D116: 0.55 | E116: 48 | F116: 12 | H116: 0.55
A117: 104 | B117: Beneficiamento, moagem, torrefação e fabricação de produtos alimentares diversos de origem vegetal, não especificados ou não classificados | D117: 0.91 | E117: 53 | F117: 14 | H117: 0.91
A118: 105 | B118: Refeições conservadas, conservas de frutas, legumes e outros vegetais, preparação de especiarias e condimentos e fabricação de doces, exclusive de confeitaria | D118: 0.54 | E118: 34 | F118: 28 | H118: 0.54
A119: 106 | B119: Abate de animais | C119: ≤200 | D119: 0.85 | E119: 72 | F119: 52 | G119: =IF($G$3<=200,D119,0) -> 0.85 | H119: =IF(G119=0,G120,G119) -> 0.85
C120: >200 | D120: 0.8 | E120: 53 | F120: 43 | G120: =IF($G$3>200,D120,0) -> 0
A121: 107 | B121: Preparação de conservas de carne - inclusive subprodutos - processados em matadouros e frigoríficos | C121: ≤120 | D121: 0.7 | E121: 38 | F121: 29 | G121: =IF($G$3<=120,D121,0) -> 0.7 | H121: =IF(G121=0,G122,G121) -> 0.7
C122: >120 | D122: 0.62 | E122: 48 | F122: 71 | G122: =IF($G$3>120,D122,0) -> 0
A123: 108 | B123: Preparação de conservas de carne e produtos de salsicharia, não processados em matadouros e frigoríficos | D123: 0.56 | E123: 44 | F123: 39 | H123: =D123 -> 0.56
A124: 109 | B124: Preparação de leite e fabricação de produtos de laticínios | C124: <80 | D124: 0.9 | E124: 82 | F124: 28 | G124: =IF($G$3<80,D124,0) -> 0.9 | H124: =IF(G124>0,G124,IF(G125>0,G125,G126)) -> 0.9
C125: >80 ≤300 | D125: 0.97 | E125: 65 | F125: 38 | G125: =IF(AND($G$3>80,$G$3<=300),D125,0) -> 0
C126: >300 | D126: 0.95 | E126: 57 | F126: 64 | G126: =IF($G$3>300,D126,0) -> 0
A127: 110 | B127: Fabricação de açúcar | D127: 0.54 | E127: 30 | F127: 49 | H127: =D127 -> 0.54
A128: 111 | B128: Fabricação de balas, caramelos, pastilhas, drops, bombons, chocolates, etc. - inclusive goma de mascar | D128: 0.96 | E128: 78 | F128: 30 | H128: =D128 -> 0.96
A129: 112 | B129: Serviços de reparação, manutenção e conservação | D129: 0.52 | E129: 34 | F129: 32 | H129: 0.52
A130: 113 | B130: Reparação, manutenção e conservação de máquinas e de uso doméstico - exclusive máquinas de costura | D130: 0.36 | E130: 27 | F130: 40 | H130: 0.36
A131: 114 | B131: Reparação de veículos - exclusive embarcações, aeronaves e veículos ferroviários | D131: 0.63 | E131: 42 | F131: 36 | H131: 0.63
A132: 115 | B132: Manutenção e conservação de veículos em geral | D132: 0.47 | E132: 33 | F132: 32 | H132: 0.47
A133: 116 | B133: Serviços pessoais | D133: 0.62 | E133: 43 | F133: 32 | H133: 0.62
A134: 117 | B134: Serviços de higiene - barbearias, saunas, lavanderias, etc. | D134: 0.58 | E134: 46 | F134: 36 | H134: 0.58
A135: 118 | B135: Hospitais e casas de saúde | C135: ≤110 | D135: 0.81 | E135: 61 | F135: 40 | G135: =IF($G$3<=110,D135,0) -> 0.81 | H135: =IF(G135=0,G136,G135) -> 0.81
C136: >110 | D136: 0.6 | E136: 32 | F136: 35 | G136: =IF($G$3>110,D136,0) -> 0
A137: 119 | B137: Estabelecimentos de ensino tradicional (10 e 2° graus) | D137: 0.63 | E137: 58 | F137: 31 | H137: =D137 -> 0.63
A138: 120 | B138: Estabelecimentos de ensino superior - Faculdade | D138: 0.42 | E138: 26 | F138: 24 | H138: =D138 -> 0.42
A139: 121 | B139: Estabelecimentos de ensino integrado - unidades integradas | D139: 0.65 | E139: 34 | F139: 25 | H139: 0.65
A140: 122 | B140: Serviços comerciais | D140: 0.59 | E140: 41 | F140: 33 | H140: 0.59
A141: 123 | B141: Serviços auxiliares do comércio de mercadorias, inclusive de distribuição | D141: 0.36 | E141: 23 | F141: 24 | H141: 0.36
A142: 124 | B142: Armazéns gerais e trapiches | D142: 0.48 | E142: 26 | F142: 14 | H142: 0.48
A143: 125 | B143: Serviço de processamento de dados | D143: 0.78 | E143: 56 | F143: 50 | H143: 0.78
A144: 126 | B144: Serviços de contabilidade e despachante | D144: 0.74 | E144: 59 | F144: 43 | H144: 0.74
A145: 127 | B145: Serviços de diversões | D145: 0.26 | E145: 13 | F145: 19 | H145: 0.26
A146: 128 | B146: Entidades financeiras | D146: 0.92 | E146: 64 | F146: 31 | H146: 0.92
A147: 129 | B147: Bancos comerciais e caixas econômicas | D147: 0.92 | E147: 64 | F147: 31 | H147: 0.92
A148: 130 | B148: Comércio atacadista | D148: 0.44 | E148: 37 | F148: 32 | H148: 0.44
A149: 131 | B149: Comércio atacadista de ferragens e produtos metalúrgicos | D149: 0.46 | E149: 25 | F149: 17 | H149: 0.46
A150: 132 | B150: Comércio atacadista de combustíveis e lubrificantes (terminal) | D150: 0.44 | E150: 35 | F150: 29 | H150: 0.44
A151: 133 | B151: Comércio atacadista de cereais e farinhas | D151: 0.27 | E151: 13 | F151: 23 | H151: 0.27
A152: 133 | B152: Comércio atacadista de produtos alimentícios diversos | D152: 0.46 | E152: 34 | F152: 32 | H152: 0.46
A153: 133 | B153: Comércio atacadista de mercadorias em geral com produtos alimentícios | D153: 0.96 | E153: 65 | F153: 56 | H153: 0.96
A154: 136 | B154: Comércio varejista | D154: 0.75 | E154: 52 | F154: 38 | H154: 0.75
A155: 137 | B155: Comércio varejista de veículos | D155: 0.6 | E155: 36 | F155: 25 | H155: 0.6
A156: 138 | B156: Comércio varejista de veículos e acessórios | D156: 0.91 | E156: 69 | F156: 23 | H156: 0.91
A157: 139 | B157: Comércio varejista de móveis, artigos de habitação e de utilidade doméstica | D157: 0.4 | E157: 37 | F157: 47 | H157: 0.4
A158: 140 | B158: Comércio varejista de combustíveis e lubrificantes, exclusive gás liquefeito de petróleo | D158: 0.89 | E158: 42 | F158: 40 | H158: 0.89
A159: 141 | B159: Supermercados | D159: 0.98 | E159: 77 | F159: 54 | H159: 0.98
A160: 142 | B160: Cooperativas | D160: 0.87 | E160: 75 | F160: 41 | H160: 0.87
A161: 143 | B161: Cooperativas de beneficiamento, industrialização e comercialização | D161: 0.98 | E161: 82 | F161: 27 | H161: 0.98
A162: 144 | B162: Cooperativas de consumo de bens e serviços | D162: 0.77 | E162: 69 | F162: 54 | H162: 0.77
A163: 145 | B163: Fundações, entidades e associações de fins não lucrativos | D163: 0.4 | E163: 27 | F163: 19 | H163: 0.4
A164: 146 | B164: Fundações beneficentes, religiosas e assistenciais | D164: 0.33 | E164: 19 | F164: 26 | H164: 0.33
A165: 147 | B165: Fundações culturais, científicas e educacionais | D165: 0.22 | E165: 17 | F165: 18 | H165: 0.22
A166: 148 | B166: Associações beneficentes, religiosas e assistenciais | D166: 0.65 | E166: 41 | F166: 33 | H166: 0.65
A167: 149 | B167: Associações esportivas e recreativas | D167: 0.4 | E167: 29 | F167: 3 | H167: 0.4
A168: 150 | B168: Administração pública direta ou Autárquica | D168: 0.81 | E168: 45 | F168: 43 | H168: 0.81

Sheet Lista - trafo (hidden)
H1: TABELA 01 - DIMENSIONAMENTO DE CONDUTORES – 11,4 kV, 13,8 kV, 22 kV e 34,5 kV | T1: TABELA 02 - FORNECIMENTO TRIFÁSICO EM MÉDIA TENSÃO COM MEDIÇÃO NA BT | AD1: TABELA 03 - PROTEÇÃO DE TRANSFORMADORES COM ELOS FUSÍVEIS TIPO H OU K
H2: Ramal de ligação e Ramal de entrada – Cabo de Alumínio Nu | T2: 380/220 | X2: CONDUTOR | Z2: CONDUTOR | AD2: Elos-fusíveis para transformadores monofásicos
H3: SEÇÃO NOMINAL (AWG/MCM) | I3: CAPACIDADE DE MÁXIMA DE CORRENTE (A) | K3: kVA MÁXIMO ADMISSÍVEL | T3: TRANSFORMADOR kVA | U3: MEDIÇÃO | W3: DISJUNTOR Máximo) (A) | X3: EPR OU XLPE 0,6/1 kV 90ºC | Y3: ELETRODUTO AÇO (mm) | Z3: PVC 0,6/1 kV 70ºC (MM2) | AA3: ELETRODUTO AÇO (mm) | AB3: POSTE (daN) | AD3: POTÊNCIA EM kVA | AE3: ELO- FUSÍVEL
A4: Existente - Executado pela concessionária | K4: 11,4 kV | M4: 13,8 kV | O4: 22 kV | Q4: 34,5 kV | U4: MEDIDOR | V4: TC | W4: T | AE4: 6,5 kV | AG4: 7,9 kV | AI4: 12,7 kV | AK4: 19,9 kV
A5: Existente - Executado por terceiro com projeto da concessionária | I5: CA | J5: CAA | K5: CA | L5: CAA | M5: CA | N5: CAA | O5: CA | P5: CAA | Q5: CA | R5: CAA | T5: 15 | U5: Direto de 120A | V5: - | W5: 25 | X5: 3#10(10) | Y5: 40 | Z5: 3#10(10) | AA5: 40 | AB5: 600 | AE5: IN (A) | AF5: ELO | AG5: IN (A) | AH5: ELO | AI5: IN (A) | AJ5: ELO | AK5: IN (A) | AL5: ELO
A6: A Instalar - Executado e projetado por terceiro | H6: 2 | I6: 168 | J6: 171 | K6: 3.317 | L6: 3.376 | M6: 4.016 | N6: 4.087 | O6: 6.402 | P6: 6.516 | Q6: 10.038 | R6: 10.218 | T6: 30 | U6: Direto de 120A | V6: - | W6: 50 | X6: 3#10(10) | Y6: 40 | Z6: 3#16(16) | AA6: 40 | AB6: 600 | AD6: 5 | AE6: 0.77 | AF6: 0,5 H | AG6: 0.63 | AH6: 0,5 H | AI6: 0.39 | AJ6: 0,5 H | AK6: 0.25 | AL6: 0,5 H
A7: RURAL | B7: URBANA | H7: 1/0 | I7: 227 | J7: 230 | K7: 4.482 | L7: 4.541 | M7: 5.426 | N7: 5.498 | O7: 8.65 | P7: 8.764 | Q7: 13.564 | R7: 13.743 | T7: 45 | U7: Direto de 120A | V7: - | W7: 70 | X7: 3#25(25) | Y7: 50 | Z7: 3#35(35) | AA7: 50 | AB7: 600 | AD7: 10
A8: ALUMÍNIO NU | B8: PROTEGIDO | C8: Atendimento em baixa tensão | H8: 4/0 | T8: 75 | U8: Direto de 200A | V8: - | W8: 125 | X8: 3#50(25) | Y8: 65 | Z8: 3#70(35) | AA8: 80 | AB8: 600 | AE8: 1.54 | AF8: 1 H | AG8: 1.27 | AH8: 1 H | AI8: 0.79 | AJ8: 1 H | AK8: 0.5 | AL8: 0,5 H
A9: PROTEGIDO | C9: SE Abrigada | H9: 336 | T9: 112.5 | U9: Direto de 200A | V9: - | W9: 175 | X9: 3#70(35) | Y9: 80 | Z9: 3#95(50) | AA9: 80 | AB9: 600 | AD9: 15
H10: Ramal de Ligação e Ramal de Entrada – Cabo Protegido | T10: 150 | U10: Trifásico | V10: 200:5 | W10: 225 | X10: 3#120(70) | Y10: 100 | Z10: 3#150(95) | AA10: 100 | AB10: 1000 | AE10: 2.31 | AF10: 2 H | AG10: 1.9 | AH10: 2 H | AI10: 1.18 | AJ10: 1 H | AK10: 0.75 | AL10: 1 H
A11: 380/220 | C11: EPR OU XLPE 0,6/1 kV 90ºC | H11: SEÇÃO | I11: NOMINAL (mm2) | J11: CAPACIDADE DE MÁXIMA DE CORRENTE (A) XLPE | K11: kVA MÁXIMO ADMISSÍVEL | T11: 225 | U11: Trifásico | V11: 400:5 | W11: 350 | X11: 3#240(120) | Y11: 100 | Z11: 2x{3#120(70)} | AA11: 2x100 | AB11: 1000 | AD11: 25
A12: 220/127 | C12: PVC 0,6/1 kV 70ºC | K12: 11,4 kV | L12: 13,8 kV | M12: 22 kV | N12: 34,5 kV | T12: 300 | U12: Trifásico | V12: 400:5 | W12: 500 | X12: 2x{3#120(70)} | Y12: 2x100 | Z12: 2x{3#150(95)} | AA12: 2x100 | AB12: 1000 | AE12: 3.85 | AF12: 3 H | AG12: 3.16 | AH12: 3 H | AI12: 1.97 | AJ12: 2 H | AK12: 1.26 | AL12: 2 H
K13: XLPE | L13: XLPE | M13: XLPE | N13: XLPE
A14: Áereo | H14: 50 | J14: 179 | K14: 3.534 | L14: 4.279 | M14: 6.821 | N14: 10.696 | AB14: 600
A15: Subterrâneo | H15: 70 | AB15: 1000
H16: 120 | J16: 317 | K16: 6.259 | L16: 7.577 | M16: 12.079 | N16: 18.942 | AB16: 1500
H17: 185 | J17: 416 | K17: 8.214 | L17: 9.943 | M17: 15.852 | N17: 24.858 | T17: TABELA 02 - FORNECIMENTO TRIFÁSICO EM MÉDIA TENSÃO COM MEDIÇÃO NA BT | AD17: Elos-fusíveis para transformadores trifásicos
C18: 11 | E18: 11.4 | T18: 220/127 | X18: CONDUTOR | Z18: CONDUTOR | AE18: 11,4 kV | AG18: 13,8 kV | AI18: 22kV | AK18: 34,5 kV
C19: 12 | E19: 13.8 | H19: ESTADO | T19: TRANSFORMADOR kVA | U19: MEDIÇÃO | W19: DISJUNTOR Máximo) (A) | X19: EPR OU XLPE 0,6/1 kV 90ºC | Y19: ELETRODUTO AÇO (mm) | Z19: PVC 0,6/1 kV 70ºC (MM2) | AA19: ELETRODUTO AÇO (mm) | AB19: POSTE (daN) | AD19: IN (A) | AF19: ELO | AG19: IN (A) | AH19: ELO | AI19: IN (A) | AJ19: ELO | AK19: IN (A) | AL19: ELO
A20: 15 kV - 315 A - 3,5 kA | E20: 22 | U20: MEDIDOR | V20: TC | W20: T | AD20: 15 | AE20: 0.76 | AF20: 1H | AG20: 0.63 | AH20: 0,5H | AI20: 0.39 | AJ20: 0,5H | AK20: 0.25 | AL20: 0,5H
A21: 25 kV - 315 A - 3,5 kA | E21: 34.5 | T21: 15 | U21: Direto de 120A | V21: - | W21: 50 | X21: 3#10(10) | Y21: 40 | Z21: 3#16(16) | AA21: 40 | AB21: 600 | AD21: 30 | AE21: 1.52 | AF21: 2H | AG21: 1.26 | AH21: 1H | AI21: 0.79 | AJ21: 1H | AK21: 0.5 | AL21: 0,5H
A22: 36,5 kV - 315 A - 3,5 kA | H22: AC | T22: 30 | U22: Direto de 120A | V22: - | W22: 90 | X22: 3#25(25) | Y22: 50 | Z22: 3#35(35) | AA22: 50 | AB22: 600 | AD22: 45 | AE22: 2.28 | AF22: 2H | AG22: 1.88 | AH22: 2H | AI22: 1.18 | AJ22: 1H | AK22: 0.75 | AL22: 1H
H23: MG | T23: 45 | U23: Direto de 120A | V23: - | W23: 125 | X23: 3#70(35) | Y23: 80 | Z23: 3#70(35) | AA23: 75 | AB23: 600 | AD23: 75 | AE23: 3.8 | AF23: 3H | AG23: 3.14 | AH23: 3H | AI23: 1.97 | AJ23: 2H | AK23: 1.26 | AL23: 1H
A24: 10 kV - 10 kA | B24: 11.4 | H24: MS | T24: 75 | U24: Direto de 200A | V24: - | W24: 200 | X24: 3#95(50) | Y24: 80 | Z24: - | AA24: 100 | AB24: 600 | AD24: 112.5 | AE24: 5.7 | AF24: 5H | AG24: 4.71 | AH24: 5H | AI24: 2.95 | AJ24: 3H | AK24: 1.88 | AL24: 2H
A25: 12 kV - 10 kA | B25: 13.8 | H25: MT | T25: 112.5 | U25: Trifásico | V25: 200:5 | W25: 300 | X25: 3#185(95) | Y25: 100 | Z25: 3#300(150) | AA25: 100 | AB25: 600 | AD25: 150 | AE25: 7.6 | AF25: 8K | AG25: 6.28 | AH25: 6K | AI25: 3.94 | AJ25: 5H | AK25: 2.51 | AL25: 3H
A26: 18kV - 10 kA | B26: 22 | H26: PB | T26: 150 | U26: Trifásico | V26: 400:5 | W26: 400 | X26: 2x{3#95(50)} | Y26: 2x100 | Z26: 2x{3#120(70)} | AA26: 2x100 | AB26: 1000 | AD26: 225 | AE26: 11.4 | AF26: 12K | AG26: 9.41 | AH26: 10K | AI26: 5.9 | AJ26: 5H | AK26: 3.77 | AL26: 5H
A27: 30kV - 10 kA | B27: 34.5 | H27: RJ | T27: 225 | U27: Trifásico | V27: 400:5 | W27: 600 | X27: 2x{3#185(95)} | Y27: 2x100 | Z27: 2x{3#300(150)} | AA27: 2x100 | AB27: 1500 | AD27: 300 | AE27: 15.19 | AF27: 15K | AG27: 12.55 | AH27: 12K | AI27: 7.87 | AJ27: 8K | AK27: 5.02 | AL27: 5H
A28: =IF(A29>0,"TC","") -> TC | H28: RO | T28: 300 | U28: Trifásico | V28: 600:5 | W28: 800 | X28: 2x{3#240(120)} | Y28: 2x100 | Z28: 2x{3#300(150)} | AA28: 2x100 | AB28: 1000 | AD28: 400 | AE28: 19.26 | AF28: 20K | AG28: 16.73 | AH28: 15K | AI28: 10.5 | AJ28: 10K | AK28: 6.69 | AL28: 6K
A29: =IFERROR("",IF(OR('POSTO DE TRANSFORMAÇÃO'!D13^0,'POSTO DE TRANSFORMAÇÃO'!D13:F14=""),VLOOKUP('POSTO DE TRANSFORMAÇÃO'!D13,'Lista - trafo'!T9:V12,3,0),"")) ->  | H29: SE | AD29: 500 | AE29: 25.32 | AF29: 25K | AG29: 19.92 | AH29: 25K | AI29: 13.12 | AJ29: 12K | AK29: 8.37 | AL29: 10K
H30: SP | AD30: 750 | AE30: 37.98 | AF30: 40K | AG30: 31.38 | AH30: 30K | AI30: 19.68 | AJ30: 20K | AK30: 12.55 | AL30: 12K
A31: =_xlfn.CONCAT('POSTO DE TRANSFORMAÇÃO'!D15,"/",'POSTO DE TRANSFORMAÇÃO'!D16) -> / | H31: TO | AD31: 1000 | AE31: x | AF31: x | AG31: 41.84 | AH31: 40K | AI31: 26.24 | AJ31: 25K | AK31: 16.73 | AL31: 15K
A36: RAMO DE ATIVIDADE
A37: Abate de animais
A38: Administração pública direta ou Autárquica
A39: Agricultura
A40: Agricultura (irrigação)
A41: Agricultura e criação animal
A42: Aparelhamento de pedras para construção e execução de trabalhos em mármore, ardósia, granito e outras pedras
A43: Armazéns gerais e trapiches
A44: Associações beneficentes, religiosas e assistenciais
A45: Associações esportivas e recreativas
A46: Bancos comerciais e caixas econômicas
A47: Beneficiamento de café, cereais e produtos afins
A48: Beneficiamento de fibras têxteis vegetais, artificiais e de materiais têxteis de origem animal, fabricação de estopa de materiais para estofados e recuperação de resíduos têxteis
A49: Beneficiamento e preparação de minerais não metálicos, não associados à extração
A50: Beneficiamento, moagem, torrefação e fabricação de produtos alimentares diversos de origem vegetal, não especificados ou não classificados
A51: Bovinocultura
A52: Britamento de pedras
A53: Britamento de pedras
A54: Comércio atacadista
A55: Comércio atacadista de cereais e farinhas
A56: Comércio atacadista de combustíveis e lubrificantes (terminal)
A57: Comércio atacadista de ferragens e produtos metalúrgicos
A58: Comércio atacadista de mercadorias em geral com produtos alimentícios
A59: Comércio atacadista de produtos alimentícios diversos
A60: Comércio varejista
A61: Comércio varejista de combustíveis e lubrificantes, exclusive gás liquefeito de petróleo
A62: Comércio varejista de móveis, artigos de habitação e de utilidade doméstica
A63: Comércio varejista de veículos
A64: Comércio varejista de veículos e acessórios
A65: Confecções de roupas e agasalhos
A66: Construção Civil
A67: Construção de obras de arte (viadutos, mirantes, etc.)
A68: Cooperativas
A69: Cooperativas de beneficiamento, industrialização e comercialização
A70: Cooperativas de consumo de bens e serviços
A71: Criação animal - suinocultura
A72: Criação animal exclusive bovinocultura (índices baseados na avicultura)
A73: Desdobramento da madeira
A74: Distribuição de gás
A75: Entidades financeiras
A76: Estabelecimentos de ensino integrado - unidades integradas
A77: Estabelecimentos de ensino superior - Faculdade
A78: Estabelecimentos de ensino tradicional (10 e 2° graus)
A79: Estamparia, funilaria e latoaria
A80: Extração de minerais para fabricação de adubos fertilizantes e para elaboração de outros produtos químicos
A81: Extração de minérios de ferro
A82: Extração de minérios de metais não ferrosos
A83: Extração de pedras e outros minerais não metálicos
A84: Extração de pedras e outros minerais para construção
A85: Fabricação de açúcar
A86: Fabricação de adubos e fertilizantes e corretivos de solo
A87: Fabricação de aguardentes, licores e outras bebidas alcoólicas
A88: Fabricação de artefatos de trefilados de ferro e aço e de metais não ferrosos exclusive móveis
A89: Fabricação de artigos de material plástico para usos - exclusive embalagem e acondicionamento
A90: Fabricação de asfalto
A91: Fabricação de balas, caramelos, pastilhas, drops, bombons, chocolates, etc. - inclusive goma de mascar
A92: Fabricação de bebidas não alcoólicas
A93: Fabricação de cal
A94: Fabricação de calçados
A95: Fabricação de carrocerias para veículos automotores- exclusive chassis
A96: Fabricação de cervejas, chopes e malte
A97: Fabricação de chapas e placas de madeira, aglomerada ou prensada e de madeira compensada, revestida ou não com material plástico
A98: Fabricação de cigarros
A99: Fabricação de cimento
A100: Fabricação de concentrados aromáticos naturais, artificiais e sintéticos, inclusive mesclas
A101: Fabricação de cronômetros e relógios, elétricos ou não - inclusive a fabricação de peças
A102: Fabricação de estruturas metálicas
A103: Fabricação de gelo
A104: Fabricação de máquinas motrizes não elétricas e de equipamentos de transmissão para fins industriais, inclusive peças e acessórios
A105: Fabricação de máquinas, aparelhos e equipamentos industriais para instalações hidráulicas, térmicas, de ventilação e refrigeração, equipadas ou não com motores elétricos, inclusive peças e acessórios
A106: Fabricação de máquinas, aparelhos e materiais para agricultura, avicultura, apicultura, criação de outros pequenos animais e obtenção de produtos de origem animal, e para beneficiamento ou preparação de produtos agrícolas - peças e acessórios
A107: Fabricação de máquinas, ferramentas, máquinas operatrizes e aparelhos industriais acoplados ou não a motores elétricos
A108: Fabricação de massas alimentícias e biscoitos
A109: Fabricação de material cerâmico - exclusive de barro cozido
A110: Fabricação de peças, acessórios, utensílios e ferramentas para máquinas industriais
A111: Fabricação de peças, ornatos e estruturas de cimento, gesso e amianto
A112: Fabricação de preparados para limpeza e polimento, desinfetantes, inseticidas, germicidas e fungicidas
A113: Fabricação de produtos de milho, exclusive óleos
A114: Fabricação de produtos de padaria, confeitaria e pastelaria (inclusive panificadoras e similares)
A115: Fabricação de rações balanceadas e de alimentos preparados para animais, inclusive farinha de carne, sangue, osso e peixe
A116: Fabricação de resinas de fibras e de fios artificiais e sintéticos e de borracha e látex sintéticos
A117: Fabricação de telhas, tijolos e outros artigos de barro cozido exclusive cerâmica
A118: Fabricação de telhas, tijolos e outros artigos de barro cozido exclusive cerâmica
A119: Fiação e Tecelagem
A120: Florestamento e reflorestamento
A121: Fundações beneficentes, religiosas e assistenciais
A122: Fundações culturais, científicas e educacionais
A123: Fundações, entidades e associações de fins não lucrativos
A124: Hospitais e casas de saúde
A125: Hotéis e motéis
A126: Indústria de extração e tratamento de minerais
A127: Indústria de bebidas
A128: Indústria de borracha recondicionamento de pneumáticos
A129: Indústria de celulose, papel e papelão fabricação de papel, papelão, cartolina e cartão
A130: Indústria de construção
A131: Indústria de couros, peles e produtos similares curtimento e outras preparações de couros e peles - inclusive subprodutos
A132: Indústria de fumo
A133: Indústria de madeira
A134: Indústria de material de transporte
A135: Indústria de material elétrico e de comunicações fabricação de aparelhos e utensílios elétricos para fins industriais e comerciais, inclusive peças e acessórios
A136: Indústria de mobiliário, fabricação de móveis de madeira, vime e junco
A137: Indústria de perfumaria, sabões e velas fabricação de sabões, detergentes e glicerinas
A138: Indústria de produtos alimentares
A139: Indústria de produtos de matérias plásticas
A140: Indústria de produtos farmacêuticos e veterinários
A141: Indústria de utilidade pública, irrigação, água, esgoto e saneamento
A142: Indústria de vestuário, calçados e artefatos de tecidos
A143: Indústria mecânica
A144: Indústria metalúrgica
A145: Indústria química
A146: Indústria têxtil
A147: Malharia e fabricação de tecidos elásticos
A148: Manutenção e conservação de veículos em geral
A149: Moagem de trigo
A150: Pavimentação, terraplenagem e construção de estradas
A151: Preparação de conservas de carne - inclusive subprodutos - processados em matadouros e frigoríficos
A152: Preparação de conservas de carne e produtos de salsicharia, não processados em matadouros e frigoríficos
A153: Preparação de leite e fabricação de produtos de laticínios
A154: Produção de canos e tubos de ferro e aço
A155: Produção de canos e tubos de metais e de ligas de metais não ferrosos
A156: Produção de elementos Químicos e de produtos químicos inorgânicos, orgânicos, orgânicos inorgânicos, exclusive produtos derivados do processamento do petróleo, das rochas oleígenas, de carvão-de-pedra e de madeira
A157: Produção de ferro gusa
A158: Produção de fundidos de ferro e aço
A159: Produção de laminados de aço - inclusive de ferro ligas
A160: Produção de óleos, gorduras e ceras vegetais e animais, em banho de óleos, essenciais vegetais e outros produtos da destilação da madeira - exclusive refinação de produtos alimentares (destilaria de álcool proveniente de madeira)
A161: Radiodifusão e televisão
A162: Refeições conservadas, conservas de frutas, legumes e outros vegetais, preparação de especiarias e condimentos e fabricação de doces, exclusive de confeitaria
A163: Refinação e preparação de óleos e gorduras vegetais, produção de manteiga de cacau e de gordura de origem animal, destinadas à alimentação
A164: Reparação de veículos - exclusive embarcações, aeronaves e veículos ferroviários
A165: Reparação de veículos ferroviários
A166: Reparação ou manutenção de máquinas, aparelhos e equipamentos industriais, agrícolas e de máquinas de terraplenagem
A167: Reparação, manutenção e conservação de máquinas e de uso doméstico - exclusive máquinas de costura
A168: Restaurantes e lanchonetes
A169: Serralheria, fabricação de tanques, reservatórios e outros recipientes metálicos e de artigos de caldeireiro
A170: Serviço de processamento de dados
A171: Serviços auxiliares do comércio de mercadorias, inclusive de distribuição
A172: Serviços comerciais
A173: Serviços de alojamento e alimentação
A174: Serviços de comunicação
A175: Serviços de contabilidade e despachante
A176: Serviços de diversões
A177: Serviços de higiene - barbearias, saunas, lavanderias, etc.
A178: Serviços de reparação, manutenção e conservação
A179: Serviços de transporte
A180: Serviços pessoais
A181: Supermercados
A182: Telegrafia, telefone e correios
A183: Tempera e cementação de aço, recozimento de arames e serviços de galvanotécnica
A184: Torrefação e moagem de café
A185: Transportes ferroviários
A186: Transportes rodoviários de carga
A187: Transportes urbanos de passageiros - inclusive metroviários
A188: Tratamento e distribuição de água

Sheet CHECKLIST
A1: APRESENTAR ITEM DISPONÍVEL NESSE ARQUIVO OU QUE DEVE SER APRSENTADO | B1: RELAÇÃO DE DOCUMENTOS
B2: DESCRIÇÃO | C2: SINALIZAR | E2: STATUS | F2: OBSERVAÇÃO
A3: SIM | B3: ART/TRT de elaboração de projeto | D3: FALSE | E3: =IF(D3=FALSE(),"Apresentar à parte","Concluído") -> Apresentar à parte | F3: =IF(A3="SIM", "Esse item não é disponibilizado nesse arquivo. Favor elaborar arquivo, assinar e apresentar") -> Esse item não é disponibilizado nesse arquivo. Favor elaborar arquivo, assinar e apresentar
A4: =IF(DADOS!H18="","",IF(DADOS!H18=Listas!A19,"SIM","NÃO")) ->  | B4: Autorização de Passagem (Do solicitante e de terceiros caso houver) | D4: FALSE | E4: =IF(A4="","Aguardando",IF(A4="SIM",IF(D4=FALSE(),"Apresentar","Concluído"),"Dispensável")) -> Aguardando | F4: =IF(A4="","Aguardando informações serem incluidas na 'aba DADOS!'",IF(A4="SIM","Ao gerar Pdf este item estará incluso, incluir informações na assinatura e apresentar assinado","Dispensável a apresentação desse item")) -> Aguardando informações serem incluidas na 'aba DADOS!'
A5: =IF(DADOS!H18="","",IF(DADOS!H18=Listas!A19,"SIM","NÃO")) ->  | B5: CAR - Cadastro Ambiental Rural | D5: FALSE | E5: =IF(A5="","Aguardado",IF(A11="SIM",IF(D5=FALSE(),"Apresentar a parte","Concluído"),"Dispensável")) -> Aguardado | F5: =IF(A5="","Aguardando informações serem incluidas na 'aba DADOS!'",IF(A5="SIM","Esse item não é disponibilizado nesse arquivo, portanto: Apresentar a parte","Dispensável a apresentação desse item")) -> Aguardando informações serem incluidas na 'aba DADOS!'
A6: =IF(DADOS!D20="","",IF(DADOS!D20=Listas!A34,"NÃO","SIM")) ->  | B6: Características do gerador | D6: FALSE | E6: =IF(A6="","Aguardado",IF(A6="SIM",IF(D6=FALSE(),"Apresentar a parte","Concluído"),"Dispensável")) -> Aguardado | F6: =IF(A6="","Aguardando informações serem incluidas na 'aba DADOS!'",IF(A6="SIM","Esse item não é disponibilizado nesse arquivo, portanto: Apresentar a parte","Dispensável a apresentação desse item")) -> Aguardando informações serem incluidas na 'aba DADOS!'
A7: SIM | B7: Carta orçamento | D7: FALSE | E7: =IF(D7=FALSE(),"Apresentar à parte","Concluído") -> Apresentar à parte | F7: =IF(A7="SIM", "Esse item não é disponibilizado nesse arquivo. Favor selecionar opção da carta, assinar e apresentar") -> Esse item não é disponibilizado nesse arquivo. Favor selecionar opção da carta, assinar e apresentar
A8: =IF(DADOS!B10="","",IF(DADOS!B10="Pessoa Fisíca","NÃO")) ->  | B8: Cartão C.N.P.J | D8: FALSE | E8: =IF(A8="","Aguardado",IF(A8="SIM",IF(D8=FALSE(),"Apresentar a parte","Concluído"),"Dispensável")) -> Aguardado | F8: =IF(A8="","Aguardando informações serem incluidas na 'aba DADOS!'",IF(A8="SIM","Esse item não é disponibilizado nesse arquivo, portanto: Apresentar a parte","Dispensável a apresentação desse item")) -> Aguardando informações serem incluidas na 'aba DADOS!'
A9: =IF(DADOS!B10="","",IF(DADOS!B10="Pessoa Fisíca","NÃO")) ->  | B9: Contrato social | D9: FALSE | E9: =IF(A9="","Aguardado",IF(A9="SIM",IF(D9=FALSE(),"Apresentar a parte","Concluído"),"Dispensável")) -> Aguardado | F9: =IF(A9="","Aguardando informações serem incluidas na 'aba DADOS!'",IF(A9="SIM","Esse item não é disponibilizado nesse arquivo, portanto: Apresentar a parte","Dispensável a apresentação desse item")) -> Aguardando informações serem incluidas na 'aba DADOS!'
A10: SIM | B10: Diagrama de partida de motores (ATENÇÃO! Se possuir motores acima de 7,5CV ou cargas perturbadoras) | D10: FALSE | E10: =IF(D10=FALSE(),"Apresentar à parte","Concluído") -> Apresentar à parte | F10: =IF(A10="SIM", "Esse item não é disponibilizado nesse arquivo. Favor apresentar à parte caso necessário") -> Esse item não é disponibilizado nesse arquivo. Favor apresentar à parte caso necessário
A11: =IF(DADOS!H18="","",IF(DADOS!H18=Listas!A19,"SIM","NÃO")) ->  | B11: Documentos que comprove posse da propriede (Ex.: Escritura, Certidão de inteiro teor, entre outros) OBS.: Termo de posse, contrato de arrendamento e contrato de compra e venda não comprovam posse da propriedade caso sejam apresentados sem documentos da propriedade (Escritura, entre outros) | D11: FALSE | E11: =IF(A11="","Aguardado",IF(A11="SIM",IF(D11=FALSE(),"Apresentar a parte","Concluído"),"Dispensável")) -> Aguardado | F11: =IF(A11="","Aguardando informações serem incluídas na 'aba DADOS!'",IF(A11="SIM","Esse item não é disponibilizado nesse arquivo, portanto: Apresentar a parte","Dispensável a apresentação desse item")) -> Aguardando informações serem incluídas na 'aba DADOS!'
A12: =IF(DADOS!H18="","",IF(DADOS!H18=Listas!A19,"SIM","NÃO")) ->  | B12: Licença Ambiental | D12: FALSE | E12: =IF(A12="","Aguardado",IF(A12="SIM",IF(D12=FALSE(),"Apresentar a parte","Concluído"),"Dispensável")) -> Aguardado | F12: =IF(A12="","Aguardando informações serem incluídas na 'aba DADOS!'",IF(A12="SIM","Esse item não é disponibilizado nesse arquivo, portanto: Apresentar a parte","Dispensável a apresentação desse item")) -> Aguardando informações serem incluídas na 'aba DADOS!'
A13: SIM | B13: Memorial Técnico Descritivo | D13: FALSE | E13: =IF(D13=FALSE(),"Apresentar ","Concluído") -> Apresentar | F13: Ao gerar PDF, este item estará incluso e deve ser assinado
A14: SIM | B14: Planta Localização | D14: FALSE | E14: =IF(D14=FALSE(),"Apresentar à parte","Concluído") -> Apresentar à parte | F14: =IF(A14="SIM", "Esse item não é disponibilizado nesse arquivo. Favor apresentar à parte","Dispensável a apresentação desse item") -> Esse item não é disponibilizado nesse arquivo. Favor apresentar à parte
A15: SIM | B15: Projeto em DWG | D15: FALSE | E15: =IF(D15=FALSE(),"Apresentar à parte","Concluído") -> Apresentar à parte | F15: =IF(A15="SIM", "Esse item não é disponibilizado nesse arquivo. Favor apresentar à parte caso necessário","Dispensável a apresentação desse item") -> Esse item não é disponibilizado nesse arquivo. Favor apresentar à parte caso necessário
A16: SIM | B16: Relação de Carga e Demanda | D16: FALSE | E16: =IF(D16=FALSE(),"Apresentar","Concluído") -> Apresentar | F16: Ao gerar PDF, este item estará incluso
A17: SIM | B17: Relação de Materiais | D17: FALSE | E17: =IF(D17=FALSE(),"Apresentar à parte","Concluído") -> Apresentar à parte | F17: =IF(A17="SIM", "Esse item não é disponibilizado nesse arquivo. Favor apresentar à parte","Dispensável a apresentação desse item") -> Esse item não é disponibilizado nesse arquivo. Favor apresentar à parte
A18: SIM | B18: Termo de Faturamento | D18: FALSE | E18: =IF(D18=FALSE(),"Apresentar","Concluído") -> Apresentar | F18: =IF(E18="Dispensável","Dispensável a apresentação desse item", "Ao gerar PDF, este item estará incluso. Incluir informações na assinatura e apresentar assinado") -> Ao gerar PDF, este item estará incluso. Incluir informações na assinatura e apresentar assinado
A19: SIM | B19: Termo de manutenção das instalações da subestação (Apêndice G) | D19: FALSE | E19: =IF(D19=FALSE(),"Apresentar","Concluído") -> Apresentar | F19: =IF(E19="Dispensável","Dispensável a apresentação desse item", "Ao gerar PDF, este item estará incluso. Incluir informações na assinatura e apresentar assinado") -> Ao gerar PDF, este item estará incluso. Incluir informações na assinatura e apresentar assinado
A20: =IF(DADOS!D20="","",IF(DADOS!D20=Listas!A34,"SIM","NÃO")) ->  | B20: Termo De Não Emprego de Geração Própria (Apêndice F) | D20: FALSE | E20: =IF(A20="","Aguardado",IF(A20="SIM",IF(D20=FALSE(),"Apresentar","Concluído"),"Dispensável")) -> Aguardado | F20: =IF(A20="","Aguardando informações serem incluídas na 'aba DADOS!'",IF(E20="Dispensável","Dispensável a apresentação desse item","Ao gerar Pdf ele estará incluso, incluir informações na assinatura e apresentar assinado")) -> Aguardando informações serem incluídas na 'aba DADOS!'
A21: =IF(DADOS!D20="","",IF(DADOS!D20=Listas!A32,"SIM","NÃO")) ->  | B21: Termo Geração Própria em Regime Isolado (Apêndice E) | D21: FALSE | E21: =IF(A21="","Aguardado",IF(A21="SIM",IF(D21=FALSE(),"Apresentar","Concluído"),"Dispensável")) -> Aguardado | F21: =IF(A21="","Aguardando informações serem incluídas na 'aba DADOS!'",IF(E21="Dispensável","Dispensável a apresentação desse item","Ao gerar Pdf este item estará incluso, incluir informações na assinatura e apresentar assinado")) -> Aguardando informações serem incluídas na 'aba DADOS!'
A22: =IF(DADOS!D20="","",IF(DADOS!D20=Listas!A33,"SIM","NÃO")) ->  | B22: Termo de Uso de Geração Própria em Regime de Paralelismo Momentâneo (Apêndice D) | D22: FALSE | E22: =IF(A22="","Aguardado",IF(A22="SIM",IF(D22=FALSE(),"Apresentar","Concluído"),"Dispensável")) -> Aguardado | F22: =IF(A22="","Aguardando informações serem incluídas na 'aba DADOS!'",IF(E22="Dispensável","Dispensável a apresentação desse item","Ao gerar Pdf este item estará incluso, incluir informações na assinatura e apresentar assinado")) -> Aguardando informações serem incluídas na 'aba DADOS!'
D23: FALSE

Sheet TERMO (hidden)
C2: TERMO DE COMPROMISSO DE MANUTENÇÃO DAS INSTALAÇÕES DA SUBESTAÇÃO
C5: ="Eu, "&DADOS!B9&", abaixo assinado, desejo construir um posto de transformação na tensão de "&'POSTO DE TRANSFORMAÇÃO'!D4&" kV, com o objetivo de receber energia elétrica para as instalações em minha propriedade, localizada na "&DADOS!B11&", no município de "&DADOS!H19&" - "&DADOS!F19&". Declaro:" -> Eu, , abaixo assinado, desejo construir um posto de transformação na tensão de kV, com o objetivo de receber energia elétrica para as instalações em minha propriedade, localizada na , no município de - . Declaro:
C7: 1. Que me responsabilizo pela conservação e manutenção da citada instalação, bem como pelos acidentes e danos que o mesmo der causa; 2. Que me comprometo a atender com presteza, às observações que esta Concessionária venha a fazer a respeito das instalações e a necessidade de sua reparação; 3. Que o não atendimento de minha parte ou de meus sucessores das observações desta concessionária, autoriza independentemente de qualquer ação ou notificação judicial, a imediata interrupção do fornecimento de energia elétrica sem direito a qualquer indenização; 4. Que o(s) transformador (es) a ser (em) instalado(s) de minha propriedade terá(ão) as seguintes características:
C9: ="Potência de "&IF('POSTO DE TRANSFORMAÇÃO'!D14="SIM",'POSTO DE TRANSFORMAÇÃO'!D13,'POSTO DE TRANSFORMAÇÃO'!H14)&" kVA" -> Potência de kVA
C10: ="Entrada de "&'POSTO DE TRANSFORMAÇÃO'!D4&" kV" -> Entrada de kV
C11: =(DADOS!H19& " - "&DADOS!F19) -> -
C12: =TODAY() -> 2026-05-28
C13: Atenciosamente,
C15: __________________________
C16: Nome:
C17: CGC/CNPJ:
C21: __________________________
C22: Nome:
C23: RG/CPF:
C25: __________________________
C26: Nome:
C27: RG/CPF:

Sheet APÊNDICE E (hidden)
C3: TERMO DE RESPONSABILIDADE
D4: Uso de Geração Própria em Regime Isolado
Q5: A Empresa
C6: =(Q5&DADOS!B39&'APÊNDICE E'!Q6&DADOS!B40&'APÊNDICE E'!Q7&DADOS!B33&'APÊNDICE E'!Q8&DADOS!I34&'APÊNDICE E'!Q9&DADOS!G34&'APÊNDICE E'!Q10&DADOS!B9&'APÊNDICE E'!Q11&DADOS!F10&'APÊNDICE E'!Q12&R12&'APÊNDICE E'!Q13&DADOS!B18 &", "& DADOS!B19&'APÊNDICE E'!Q14&DADOS!H19& " - " &DADOS!F19&'APÊNDICE E'!Q15) -> A Empresa , CNPJ: n.º, representada pelo Engenheiro/Técnico , registrado no conselho de classe sob o n. º , declara ser responsável pelo projeto, dimensionamento dos equipamentos, dispositivos de proteção e instalação do Sistema de Geração própria particular para operação de forma isolada, instalado no consumidor CPF/CNPJ nº , UC n.º Ligação Nova situado à , , Município de - , o qual é responsável pela operação e manutenção do referido sistema, visando não energizar em hipótese alguma o alimentador da Energisa, quando este estiver fora de operação, assumindo total responsabilidade civil e criminal, na ocorrência de acidentes ocasionados por insuficiência técnica do projeto, defeitos ou operação inadequada dos equipamentos desse sistema. | Q6: =_xlfn.CONCAT(", ",R6, " n.º") -> , CNPJ: n.º | R6: =DADOS!A40 -> CNPJ:
C7: Sendo assim, a fim de cumprir exigência da Concessionária e evitar qualquer possibilidade de paralelismo com a rede desta mesma, os projetos das instalações elétricas obedeceram a seguinte solução marcada abaixo: | Q7: , representada pelo Engenheiro/Técnico
Q8: , registrado no conselho de classe
C9: Construção de circuito de emergência absolutamente independente da instalação normal, alimentado unicamente pela geração particular. | Q9: sob o n. º
Q10: , declara ser responsável pelo projeto, dimensionamento dos equipamentos, dispositivos de proteção e instalação do Sistema de Geração própria particular para operação de forma isolada, instalado no consumidor
C11: Instalação de um dispositivo de reversão de acionamento manual ou elétrico, com inter travamento elétrico e mecânico separando os circuitos alimentados pelo sistema da Energisa e pela geração particular, de modo a alternar o fornecimento. | Q11: CPF/CNPJ nº
Q12: , UC n.º | R12: =IF(DADOS!B23="", "Ligação Nova", DADOS!B23) -> Ligação Nova
Q13: situado à
Q14: , Município de
D15: =(DADOS!H19& " - " &DADOS!F19&",") -> - , | F15: =TODAY() -> 2026-05-28 | Q15: , o qual é responsável pela operação e manutenção do referido sistema, visando não energizar em hipótese alguma o alimentador da Energisa, quando este estiver fora de operação, assumindo total responsabilidade civil e criminal, na ocorrência de acidentes ocasionados por insuficiência técnica do projeto, defeitos ou operação inadequada dos equipamentos desse sistema.
D19: __________________________ | G19: _______________________________________
D20: Assinatura do Responsável | G20: Assinatura do Responsável
D21: Técnico Consumidor

Sheet APÊNDICE D (hidden)
D3: TERMO DE RESPONSABILIDADE Uso de Geração Própria em Regime de Paralelismo Momentâneo
... 2 more rows

Sheet APÊNDICE F (hidden)
D3: DECLARAÇÃO De Não Emprego de Geração Própria
... 2 more rows

Sheet AUTORIZAÇÃO DE PASSAGEM (hidden)
D2: AUTORIZAÇÃO DE PASSAGEM | XFD2: Eu,
C4: =(XFD2&DADOS!B9&'AUTORIZAÇÃO DE PASSAGEM'!XFD4&DADOS!F10&'AUTORIZAÇÃO DE PASSAGEM'!XFD5&DADOS!B18 &", "& DADOS!B19&'AUTORIZAÇÃO DE PASSAGEM'!XFD7&DADOS!B18&'AUTORIZAÇÃO DE PASSAGEM'!XFD8& DADOS!H19 &" - "&DADOS!F19&'AUTORIZAÇÃO DE PASSAGEM'!XFD9&'POSTO DE TRANSFORMAÇÃO'!D4&'AUTORIZAÇÃO DE PASSAGEM'!XFD10) -> Eu, portador(a) do CPF/CNPJ: residente domiciliado(a) na , proprietário(a) do imóvel rural denominado situado no município de - autorizo(a) a utilização da faixa do terreno do imóvel acima citado, para efeito de travessia de Rede de Distribuição de energia elétrica rural, tensão KV nos termos do presente instrumento, ficando constituída a servidão de passagem. A servidão ora instituída é de forma gratuita, ficando isenta de qualquer pagamento e/ou indenização, com renúncia de direito de qualquer medida judicial ou extrajudicial. A autorização inclui permissão para o livre trânsito pela propriedade, de empreiteiras credenciadas, para efetuar levantamento, projetos, construções, operação e manutenção da rede de distribuição rural, e de empregados da Energisa para efetuar fiscalização da obra e ligação de unidade consumidora. Autorizo ainda, independentemente de qualquer ressarcimento, o corte e/ou poda de árvores que por ventura tornem inviável técnica e economicamente a construção da rede ou coloquem em risco a segurança em geral, ficando permitida a cultura de baixa altura (1m). Todavia, tenho ciência quanto ao impedimento para realizar edificações e plantações de grande porte na faixa de servidão. Comprometo-me finalmente, a valer o presente instrumento perante meus herdeiros e sucessores, e a não fazer qualquer construção na faixa de segurança, reservando apenas o direito de efetuar o plantio de culturas rasteiras ou de pequena altura, que não venham perturbar as instalações da rede de distribuição e o suprimento de energia elétrica. | XFD4: portador(a) do CPF/CNPJ:
XFD5: residente domiciliado(a) na
XFD7: proprietário(a) do imóvel rural denominado
... 5 more rows

Sheet TERMO OPÇÃO DE FATURAMENTO_GB (hidden)
D3: TERMO DE OPÇÃO DE FATURAMENTO PELO GRUPO “B”
C5: À ENERGISA DEPARTAMENTO DE CONSTRUÇÃO E MANUTENÇÃO DA DISTRIBUIÇÃO – DCMD COORDENAÇÃO DE PROJETO E CADASTRO - COPC
C6: Prezados, Pela presente venho de conformidade com o Artigo 292 da Resolução Normativa ANEEL nº 1000, solicitar de V.Sas. que o faturamento mensal das unidades consumidoras de Energia Elétrica do edifício abaixo identificado seja com aplicação da tarifa do Grupo B que corresponder a respectiva classe:
C8: =("Nome: "&DADOS!B9) -> Nome:
C9: =("CNPJ/CPF: "&DADOS!F10) -> CNPJ/CPF:
C10: =("Endereço: "&DADOS!B18&", "&DADOS!B19) -> Endereço: ,
C11: =("Município: "& DADOS!H19 &" - "&DADOS!F19) -> Município: -
C14: Atenciosamente,
D18: =(DADOS!H19 &" - "&DADOS!F19& ", ") -> - , | F18: =TODAY() -> 2026-05-28
C23: Nome:
C24: CPF:

Sheet TERMO OPÇÃO DE FATURAMENTO_GA (hidden)
D3: TERMO DE OPÇÃO DE FATURAMENTO PELO GRUPO “A”
C5: A ENERGISA DEPARTAMENTO CONSTRUÇÃO, MANUTENÇÃO DA DISTRIBUIÇÃO – DCMD COORDENAÇÃO DE PROJETO E CADASTRO - COPC | XFD5: =IF(DADOS!A25=Listas!A36,'CARGA INSTALADA_NDU 001'!R33,'CARGA INSTALADA_NDU 002'!Q9) -> 0
C6: =(XFD6&XFD5&".") -> Prezado(s) Senhor(es): Pelo presente venho (vimos) de conformidade com o artigo 23 de Resolução Normativa nº 1000 da ANEEL, de 07/12/2021, solicitar de V.Sas., que o faturamento mensal de minha unidade consumidora de energia elétrica abaixo identificada, seja faturada com aplicação da tarifa do GRUPO A 0. | XFD6: Prezado(s) Senhor(es): Pelo presente venho (vimos) de conformidade com o artigo 23 de Resolução Normativa nº 1000 da ANEEL, de 07/12/2021, solicitar de V.Sas., que o faturamento mensal de minha unidade consumidora de energia elétrica abaixo identificada, seja faturada com aplicação da tarifa do GRUPO A
C8: =("Nome:"&DADOS!B9) -> Nome:
C9: =("CNPJ/CPF: "&DADOS!F10) -> CNPJ/CPF:
C10: =("Endereço: "&DADOS!B18 &", "& DADOS!B19) -> Endereço: ,
C11: =("Município: "& DADOS!H19 &" - "&DADOS!F19) -> Município: -
C14: Sem mais, Atenciosamente,
D18: =(DADOS!H19& " - " &DADOS!F19&",") -> - , | F18: =TODAY() -> 2026-05-28
C23: Nome:
C24: CPF:
